﻿OrganisationalUnit,BeneficiaryName,PaymentDate,Amount,Purpose
Law & Governence,Weightmans LLP,02/04/2015,"1,974.60",Supplies and Services
 Schools,TeacherActive Ltd,08/04/2015,"1,146.45",Employees
Adult Social Care,SOUTH STAFFORDSHIRE COLLEGE,13/04/2015,-500.00,Supplies and Services
 Schools,WHITTAN IND LTD T/A LINK LOCKE,28/04/2015,-660.00,Premises
Cultural Services,SECURITY SERVICES,10/04/2015,869.00,Premises
 Schools,Catering Management Cons Ltd,02/04/2015,"2,250.00",Supplies and Services
ICT,BRITISH TELECOMMUNICATIONS PLC,09/04/2015,31.57,Supplies and Services
ICT,BRITISH TELECOMMUNICATIONS PLC,09/04/2015,"1,194.20",Supplies and Services
Other Education and Children's services,ABBOTS BROMLEY SCHOOL FOR GIRL,02/04/2015,510.00,Transport
Adult Social Care,ASIST,15/04/2015,"3,000.00",Supplies and Services
Adult Social Care,ASIST,15/04/2015,204.00,Transport
Highways and transport,RICOH UK LTD,07/04/2015,544.15,Capital
Highways and transport,TAMWORTH BOROUGH COUNCIL,09/04/2015,"201,082.00",Third Party
Highways and transport,TAMWORTH BOROUGH COUNCIL,09/04/2015,"-164,647.00",Income
 Schools,Staffs & Stoke on Trent P'shp,01/04/2015,"22,175.00",Supplies and Services
Law & Governence,Wheaton Aston Comm Bowls Club,24/04/2015,750.00,Third Party
Adult Social Care,Stafford & Rural Homes,13/04/2015,500.00,Supplies and Services
Adult Social Care,Stafford & Rural Homes,13/04/2015,750.00,Supplies and Services
Adult Social Care,Stafford & Rural Homes,13/04/2015,478.74,Supplies and Services
Other Education and Children's services,Street Teams,22/04/2015,"1,070.00",Supplies and Services
Highways and transport,NDORS LTD,02/04/2015,"1,400.00",Supplies and Services
Entrust,Hulleys Group,15/04/2015,-652.26,Supplies and Services
 Schools,SOUTH STAFFORDSHIRE WATER PLC,01/04/2015,555.37,Premises
 Schools,IMAP CENTRE LTD,10/04/2015,"2,437.52",Supplies and Services
Adult Social Care,IMAP CENTRE LTD,10/04/2015,"12,665.48",Supplies and Services
 Schools,IMAP CENTRE LTD,10/04/2015,"2,698.68",Supplies and Services
Adult Social Care,IMAP CENTRE LTD,10/04/2015,"13,576.32",Supplies and Services
 Schools,DANHEAT LTD,02/04/2015,"3,250.00",Third Party
Trading Service Occupational Health,HOBSON HEALTH LTD,02/04/2015,"2,380.00",Supplies and Services
 Schools,SOUTH STAFFORDSHIRE WATER PLC,15/04/2015,"1,434.58",Premises
 Schools,SOUTH STAFFORDSHIRE WATER PLC,15/04/2015,897.49,Premises
 Schools,BAYLISS CONTRACT SERVICES,02/04/2015,460.00,Supplies and Services
Adult Social Care,Slimming World,16/04/2015,"-1,872.00",Supplies and Services
 Schools,ACTIVE LEARNING SPORTS,08/04/2015,750.00,Supplies and Services
 Schools,RM Education Plc,17/04/2015,"1,413.60",Supplies and Services
Entrust,BRAKE BROS FOODSERVICE LTD,22/04/2015,608.39,Supplies and Services
Entrust,BRAKE BROS FOODSERVICE LTD,22/04/2015,13.36,Supplies and Services
Entrust,BRAKE BROS FOODSERVICE LTD,22/04/2015,488.28,Supplies and Services
Entrust,BRAKE BROS FOODSERVICE LTD,22/04/2015,753.06,Supplies and Services
Entrust,BRAKE BROS FOODSERVICE LTD,22/04/2015,88.30,Supplies and Services
Entrust,BRAKE BROS FOODSERVICE LTD,22/04/2015,"1,079.88",Supplies and Services
Entrust,BRAKE BROS FOODSERVICE LTD,22/04/2015,172.35,Supplies and Services
Entrust,BRAKE BROS FOODSERVICE LTD,22/04/2015,"1,141.55",Supplies and Services
Entrust,BRAKE BROS FOODSERVICE LTD,22/04/2015,174.15,Supplies and Services
Entrust,Freshview Foods Ltd,22/04/2015,48.50,Supplies and Services
Entrust,Freshview Foods Ltd,22/04/2015,171.45,Supplies and Services
Entrust,Freshview Foods Ltd,22/04/2015,187.02,Supplies and Services
Entrust,Freshview Foods Ltd,22/04/2015,230.85,Supplies and Services
 Schools,UNIVERSITY CAMB LOCAL EXAM SYN,09/04/2015,670.60,Supplies and Services
Environment,FCC RECYCLING (UK) LTD,09/04/2015,"24,628.00",Premises
Entrust,WELLS FARM DAIRY,22/04/2015,65.22,Supplies and Services
Entrust,WELLS FARM DAIRY,22/04/2015,178.89,Supplies and Services
Entrust,WELLS FARM DAIRY,22/04/2015,150.72,Supplies and Services
Entrust,WELLS FARM DAIRY,22/04/2015,244.10,Supplies and Services
 CXO,L.W. SKIPS & CONQUEST TRANSPOR,02/04/2015,650.00,Supplies and Services
 Schools,COPPICE ACADEMY,02/04/2015,"5,950.00",Supplies and Services
 Schools,WALTON HALL ACADEMY,02/04/2015,"5,200.00",Supplies and Services
 CXO,BIFFA WASTE SERVICES LTD,02/04/2015,613.60,Supplies and Services
 Schools,PEARSON EDUCATION LTD,01/04/2015,601.48,Supplies and Services
 Schools,PEARSON EDUCATION LTD,01/04/2015,292.46,Supplies and Services
 Schools,MITIE TECH FACILITIES MGMNT LT,09/04/2015,118.28,Premises
 Schools,MITIE TECH FACILITIES MGMNT LT,09/04/2015,103.86,Premises
 Schools,MITIE TECH FACILITIES MGMNT LT,09/04/2015,103.86,Premises
 Schools,MITIE TECH FACILITIES MGMNT LT,09/04/2015,"1,142.46",Premises
 Schools,MITIE TECH FACILITIES MGMNT LT,09/04/2015,103.86,Premises
 Schools,MITIE TECH FACILITIES MGMNT LT,09/04/2015,859.72,Premises
 Schools,MITIE TECH FACILITIES MGMNT LT,09/04/2015,"1,001.09",Premises
 Schools,MITIE TECH FACILITIES MGMNT LT,09/04/2015,311.58,Premises
Corporate & Democratic Core,MITIE TECH FACILITIES MGMNT LT,09/04/2015,207.72,Premises
 CXO,MITIE TECH FACILITIES MGMNT LT,09/04/2015,"1,156.88",Premises
 Schools,NPOWER,01/04/2015,502.21,Premises
 Schools,ITN MARK EDUCATION,01/04/2015,525.00,Employees
 Schools,Patrick Ganley,01/04/2015,"1,201.00",Premises
 Schools,Corona Energy Retail 4 Ltd,01/04/2015,615.14,Premises
 Schools,ITN MARK EDUCATION,01/04/2015,525.00,Employees
 Schools,Corona Energy Retail 4 Ltd,02/04/2015,"2,012.27",Premises
ICT,SEAM,08/04/2015,"-3,876.00",Supplies and Services
Adult Social Care,Stafford & Rural Homes,01/04/2015,"1,480.00",Supplies and Services
Finance,WEIGHTMANS,08/04/2015,"4,485.10",Supplies and Services
Finance,WEIGHTMANS,08/04/2015,"-4,485.10",Supplies and Services
 Schools,YESS,02/04/2015,700.00,Supplies and Services
Adult Social Care,Changes Heath & Wellbeing,08/04/2015,"8,412.58",Supplies and Services
Adult Social Care,Changes Heath & Wellbeing,08/04/2015,"9,551.08",Supplies and Services
Adult Social Care,Changes Heath & Wellbeing,08/04/2015,"4,718.00",Supplies and Services
Adult Social Care,Changes Heath & Wellbeing,08/04/2015,"4,718.00",Supplies and Services
Adult Social Care,Changes Heath & Wellbeing,08/04/2015,"4,718.00",Supplies and Services
Other Education and Children's services,Barnardos West,08/04/2015,"23,400.00",Supplies and Services
 Schools,OPTIMUM REPORTS LTD,01/04/2015,570.00,Supplies and Services
 Schools,Jones Learning Exchange,01/04/2015,543.20,Employees
 Schools,ASPIRE PEOPLE LTD,02/04/2015,450.00,Employees
 Schools,GL EDUCATION GROUP LTD,02/04/2015,"-1,375.00",Supplies and Services
 Schools,GL EDUCATION GROUP LTD,02/04/2015,"4,124.65",Supplies and Services
 Schools,Teachers2Parents Ltd,01/04/2015,749.00,Supplies and Services
 CXO,ADEPT TRANSCRIPTION LTD,01/04/2015,774.76,Supplies and Services
Trading Service Scientific Services,COVENTRY CITY COUNCIL,02/04/2015,"1,140.00",Supplies and Services
 Schools,ITN MARK EDUCATION,01/04/2015,"1,247.47",Employees
 Schools,ITN MARK EDUCATION,01/04/2015,999.75,Employees
 Schools,ITN MARK EDUCATION,01/04/2015,"1,125.00",Employees
 Schools,ITN MARK EDUCATION,01/04/2015,569.85,Employees
Adult Social Care,NHS North Staffordshire CCG,01/04/2015,"51,320.79",Supplies and Services
Adult Social Care,NHS North Staffordshire CCG,01/04/2015,"5,235.09",Supplies and Services
Adult Social Care,NHS North Staffordshire CCG,01/04/2015,"14,437.62",Supplies and Services
Adult Social Care,Jump 2 Independence Ltd,02/04/2015,"1,013.68",Third Party
Adult Social Care,Jump 2 Independence Ltd,02/04/2015,"1,264.93",Third Party
Adult Social Care,Jump 2 Independence Ltd,02/04/2015,"1,409.12",Third Party
Adult Social Care,Jump 2 Independence Ltd,02/04/2015,859.12,Third Party
 Schools,Serco Ltd,01/04/2015,"1,200.00",Employees
Cultural Services,Kanyini Education CIC,02/04/2015,"9,060.78",Third Party
Finance,LOOKERS LEASING LTD,02/04/2015,936.00,Transport
Finance,LOOKERS LEASING LTD,02/04/2015,"1,140.00",Transport
 Schools,BLAKEMORE FOOD SERVICE LTD,01/04/2015,389.54,Supplies and Services
 Schools,BLAKEMORE FOOD SERVICE LTD,01/04/2015,222.85,Supplies and Services
 Schools,Ace Star Sports Coaching Ltd,02/04/2015,798.00,Employees
Other Education and Children's services,EVOLVE YP,10/04/2015,"8,949.35",Supplies and Services
 Schools,ASPIRE PEOPLE LTD,02/04/2015,22.00,Employees
 Schools,ASPIRE PEOPLE LTD,02/04/2015,975.00,Employees
 Schools,ASPIRE PEOPLE LTD,02/04/2015,767.00,Employees
 Schools,ASPIRE PEOPLE LTD,02/04/2015,110.00,Employees
 Schools,ASPIRE PEOPLE LTD,02/04/2015,66.00,Employees
ICT,STAFFORDSHIRE UNIVERSITY,02/04/2015,613.75,Supplies and Services
 Schools,SCIENCE BOFFINS,02/04/2015,302.50,Supplies and Services
 Schools,SCIENCE BOFFINS,02/04/2015,302.50,Supplies and Services
 Schools,RICOH UK LTD,01/04/2015,684.66,Supplies and Services
Adult Social Care,Aptean,02/04/2015,701.02,Supplies and Services
 Schools,EDIT INTERACTIVE LIMITED,01/04/2015,836.50,Supplies and Services
 Schools,ASPIRE PEOPLE LTD,02/04/2015,"1,506.00",Employees
 Schools,Jones Learning Exchange,01/04/2015,500.00,Employees
 Schools,J RICHARDS,02/04/2015,632.05,Employees
Adult Social Care,Turning Point,02/04/2015,"2,387.79",Third Party
 Schools,Academics,01/04/2015,800.00,Employees
 Schools,EDEXCEL,01/04/2015,"7,018.05",Supplies and Services
Adult Social Care,COVENTRY CITY COUNCIL,02/04/2015,599.25,Supplies and Services
 Schools,MITIE FACILITIES SERVICES LTD,02/04/2015,"1,279.60",Premises
 Schools,ASPIRE PEOPLE LTD,02/04/2015,450.00,Employees
Finance,BDO LLP,01/04/2015,"4,000.00",Employees
Other Education and Children's services,LICHFIELD DISTRICT COUNCIL,01/04/2015,"1,777.48",Supplies and Services
Adult Social Care,ENGAGING COMMUNITIES STAFFORDS,24/04/2015,"128,120.00",Supplies and Services
Adult Social Care,ENGAGING COMMUNITIES STAFFORDS,24/04/2015,"52,367.75",Supplies and Services
 Schools,ASPIRE PEOPLE LTD,02/04/2015,895.00,Employees
 Schools,FOCUS EDUCATION,01/04/2015,875.00,Employees
Other Education and Children's services,D A ALLEN,01/04/2015,479.60,Supplies and Services
Other Education and Children's services,D A ALLEN,01/04/2015,479.60,Supplies and Services
 Schools,Mellors Catering Services Ltd,02/04/2015,12.60,Supplies and Services
 Schools,Mellors Catering Services Ltd,02/04/2015,"1,795.50",Supplies and Services
 Schools,ASPIRE PEOPLE LTD,02/04/2015,716.00,Employees
 Schools,Mellors Catering Services Ltd,02/04/2015,200.90,Supplies and Services
 Schools,Mellors Catering Services Ltd,02/04/2015,412.05,Supplies and Services
 Schools,Mellors Catering Services Ltd,02/04/2015,46.72,Supplies and Services
 Schools,Michael Meecham T/A Le Club Fr,02/04/2015,"1,220.00",Employees
 Schools,ASPIRE PEOPLE LTD,02/04/2015,"1,560.00",Employees
 Schools,ASPIRE PEOPLE LTD,02/04/2015,994.00,Employees
 Schools,LEWIS CHARLTON SCHOOL,02/04/2015,"19,666.00",Supplies and Services
 Schools,West Midland Safari Park,02/04/2015,424.54,Supplies and Services
Planning & Economic Development,ARRIVA MIDLANDS LTD,01/04/2015,"2,504.00",Transport
Finance,Sap UK & Eire User Group Ltd,02/04/2015,950.00,Supplies and Services
 Schools,FOCUS EDUCATION,01/04/2015,875.00,Employees
 Schools,XMA LTD,01/04/2015,168.65,Supplies and Services
 Schools,XMA LTD,01/04/2015,332.61,Supplies and Services
Cultural Services,Perton Manor  & Woodford House,02/04/2015,800.00,Supplies and Services
 Schools,Mellors Catering Services Ltd,02/04/2015,"1,946.70",Supplies and Services
 Schools,Mellors Catering Services Ltd,02/04/2015,984.90,Supplies and Services
 Schools,Mellors Catering Services Ltd,02/04/2015,95.45,Supplies and Services
 Schools,Mellors Catering Services Ltd,02/04/2015,12.60,Supplies and Services
Cultural Services,St Quentin Residential Home,02/04/2015,800.00,Supplies and Services
 Schools,SEVERN TRENT WATER,02/04/2015,924.31,Premises
Health Trust,RICOH UK LTD,13/04/2015,877.13,Supplies and Services
 Schools,Mellors Catering Services Ltd,02/04/2015,"1,484.70",Supplies and Services
 Schools,Mellors Catering Services Ltd,02/04/2015,"1,234.80",Supplies and Services
 Schools,Mellors Catering Services Ltd,02/04/2015,14.50,Supplies and Services
 Schools,R A EDWARDS & PARTNERS LTD,02/04/2015,"1,765.00",Premises
 Schools,FOCUS EDUCATION,01/04/2015,605.00,Employees
 Schools,FOCUS EDUCATION,02/04/2015,726.00,Employees
 Schools,Academics,01/04/2015,"1,172.50",Employees
 Schools,M W CRIPWELL LTD,01/04/2015,"1,358.92",Premises
 Schools,FOCUS EDUCATION,01/04/2015,536.00,Employees
 Schools,RICOH UK LTD,01/04/2015,"1,882.73",Supplies and Services
 Schools,The Key Support Services Limit,02/04/2015,"1,095.00",Supplies and Services
 Schools,Academics,01/04/2015,300.00,Employees
 Schools,Academics,01/04/2015,627.25,Employees
 Schools,SANDWELL METRO B C,01/04/2015,"6,600.00",Supplies and Services
 Schools,Mellors Catering Services Ltd,02/04/2015,"1,453.45",Supplies and Services
 Schools,Mellors Catering Services Ltd,02/04/2015,218.05,Supplies and Services
 Schools,Mellors Catering Services Ltd,02/04/2015,693.00,Supplies and Services
 Schools,Mellors Catering Services Ltd,02/04/2015,451.50,Supplies and Services
 Schools,Mellors Catering Services Ltd,02/04/2015,119.70,Supplies and Services
 Schools,Mellors Catering Services Ltd,02/04/2015,31.50,Supplies and Services
 Schools,Mellors Catering Services Ltd,02/04/2015,21.00,Supplies and Services
 Schools,GERRARD ELECTRICAL CONTRACTORS,02/04/2015,538.85,Premises
 Schools,TEACHING PERSONNEL LTD,01/04/2015,"1,017.00",Employees
 Schools,Mellors Catering Services Ltd,01/04/2015,648.90,Supplies and Services
 Schools,iLiveSounds,02/04/2015,390.00,Supplies and Services
 Schools,iLiveSounds,02/04/2015,180.00,Supplies and Services
 Schools,NEOPOST LTD - CREDIFON A/CS,02/04/2015,500.00,Supplies and Services
 Schools,LEON'S COACH TRAVEL STAFFORD L,01/04/2015,750.00,Supplies and Services
 Schools,EDUCATION  GROUP LTD,01/04/2015,449.00,Supplies and Services
 Schools,WATERSTONE'S,02/04/2015,621.25,Supplies and Services
 Schools,Mellors Catering Services Ltd,02/04/2015,"1,054.20",Supplies and Services
 Schools,Mellors Catering Services Ltd,02/04/2015,348.60,Supplies and Services
 Schools,Mellors Catering Services Ltd,02/04/2015,14.70,Supplies and Services
 Schools,Mellors Catering Services Ltd,02/04/2015,21.60,Supplies and Services
 Schools,MANOR HOUSE PROPERTY SERVICES,02/04/2015,"2,437.86",Premises
 Schools,ASPIRE PEOPLE LTD,02/04/2015,895.00,Employees
 Schools,TEACHING PERSONNEL LTD,01/04/2015,"2,224.30",Employees
 Schools,Middle England Schools Supply,02/04/2015,"1,237.50",Employees
 Schools,BLAKEMORE FOOD SERVICE LTD,02/04/2015,409.78,Supplies and Services
 Schools,BLAKEMORE FOOD SERVICE LTD,02/04/2015,103.15,Supplies and Services
 Schools,SOUTH STAFFORDSHIRE WATER PLC,01/04/2015,"1,039.86",Premises
Adult Social Care,HFM Pyrotechnics Ltd,08/04/2015,"1,509.25",Income
 Schools,MICRO LIBRARIAN SYSTEMS LTD,02/04/2015,"4,015.00",Supplies and Services
 Schools,EDIT INTERACTIVE LIMITED,02/04/2015,456.00,Supplies and Services
Highways and transport,VALUATION OFFICE AGENCY,07/04/2015,"3,872.00",Capital
Other Education and Children's services,JOINED UP CONSULTING LTD,02/04/2015,"3,500.00",Supplies and Services
Cultural Services,MAKE SOME NOISE WEST MIDLANDS,27/04/2015,"7,185.00",Income
Other Education and Children's services,BROOK STREET UK LIMITED,01/04/2015,825.28,Third Party
Other Education and Children's services,BROOK STREET UK LIMITED,01/04/2015,"1,384.06",Third Party
Other Education and Children's services,BROOK STREET UK LIMITED,01/04/2015,471.22,Third Party
Other Education and Children's services,BROOK STREET UK LIMITED,01/04/2015,696.09,Third Party
 Schools,FLETCHER'S COACHES,01/04/2015,"1,045.00",Supplies and Services
Adult Social Care,Mid Cheshire Hospitals,01/04/2015,"3,440.00",Supplies and Services
 Schools,Painsley Catholic Academy,01/04/2015,"1,768.65",Employees
Cultural Services,MAKE SOME NOISE WEST MIDLANDS,14/04/2015,"7,185.00",Income
Other Education and Children's services,BROOK STREET UK LIMITED,01/04/2015,"1,238.09",Third Party
Other Education and Children's services,BROOK STREET UK LIMITED,01/04/2015,565.26,Third Party
Other Education and Children's services,CHEDDLETON PARISH COUNCIL,07/04/2015,883.50,Supplies and Services
Other Education and Children's services,BENNETT'S TAXIS,07/04/2015,650.00,Transport
Adult Social Care,COVENTRY CITY COUNCIL,07/04/2015,599.25,Supplies and Services
 Schools,HAYS EDUCATION PERSONNEL,02/04/2015,825.00,Employees
 Schools,Mellors Catering Services Ltd,02/04/2015,659.40,Supplies and Services
 Schools,Mellors Catering Services Ltd,02/04/2015,37.80,Supplies and Services
 Schools,Mellors Catering Services Ltd,01/04/2015,968.95,Supplies and Services
 Schools,Mellors Catering Services Ltd,01/04/2015,4.51,Supplies and Services
 Schools,CROPPER GROUNDS MAINTENANCE LT,07/04/2015,535.00,Premises
 Schools,EDIT INTERACTIVE LIMITED,01/04/2015,"2,080.00",Supplies and Services
 Schools,Corona Energy Retail 4 Ltd,01/04/2015,741.18,Premises
 Schools,RIX PETROLEUM MERCIA,02/04/2015,660.25,Premises
 Schools,Mellors Catering Services Ltd,02/04/2015,961.40,Supplies and Services
 Schools,Mellors Catering Services Ltd,02/04/2015,10.70,Supplies and Services
 Schools,Mellors Catering Services Ltd,02/04/2015,21.00,Supplies and Services
 Schools,Ruth Miskin Literacy Ltd,02/04/2015,"1,100.00",Employees
 Schools,ABC TEACHERS LIMITED,07/04/2015,504.95,Employees
 Schools,AMANDA FOR BLINDS,02/04/2015,"1,500.00",Supplies and Services
 Schools,ABC TEACHERS LIMITED,07/04/2015,"1,309.98",Employees
 Schools,NPOWER,01/04/2015,540.37,Premises
 Schools,Mellors Catering Services Ltd,02/04/2015,"2,908.50",Supplies and Services
 Schools,Mellors Catering Services Ltd,02/04/2015,"1,152.90",Supplies and Services
 Schools,Mellors Catering Services Ltd,02/04/2015,379.00,Supplies and Services
 Schools,Mellors Catering Services Ltd,02/04/2015,81.90,Supplies and Services
 Schools,Mellors Catering Services Ltd,02/04/2015,2.10,Supplies and Services
 Schools,Mellors Catering Services Ltd,02/04/2015,10.80,Supplies and Services
Cultural Services,Warwickshire County Council,02/04/2015,"2,200.69",Supplies and Services
 Schools,ABC TEACHERS LIMITED,07/04/2015,465.00,Employees
 Schools,ABC TEACHERS LIMITED,07/04/2015,189.00,Employees
 Schools,ITN MARK EDUCATION,01/04/2015,675.00,Employees
 Schools,MAGGIE SANGER EDUC SERVICES LT,02/04/2015,850.00,Supplies and Services
 Schools,S Gartland,02/04/2015,850.00,Supplies and Services
 Schools,Academics,01/04/2015,"1,333.25",Employees
Health Trust,Morecare at Home,01/04/2015,"1,919.60",Supplies and Services
ICT,Nova Training,02/04/2015,"1,159.00",Premises
 Schools,UK Computer Supplies,02/04/2015,"2,286.00",Supplies and Services
 Schools,ABC TEACHERS LIMITED,07/04/2015,463.96,Employees
 Schools,ABC TEACHERS LIMITED,07/04/2015,497.97,Employees
 Schools,ABC TEACHERS LIMITED,07/04/2015,89.99,Employees
 Schools,ABC TEACHERS LIMITED,07/04/2015,554.97,Employees
 Schools,WALTON HALL ACADEMY,02/04/2015,"18,830.00",Supplies and Services
 CXO,QA Research,02/04/2015,825.00,Supplies and Services
 Schools,BLACKFRIARS ACADEMY,10/04/2015,"48,690.00",Supplies and Services
 Schools,PURE DATA SOLUTIONS,02/04/2015,"1,451.60",Supplies and Services
 Schools,COPPICE ACADEMY,02/04/2015,"24,570.00",Supplies and Services
 Schools,WALSALL COLLEGE,01/04/2015,"13,088.00",Supplies and Services
 Schools,CAPITA BUSINESS SERVICES LTD,01/04/2015,"1,025.50",Employees
 Schools,ABC TEACHERS LIMITED,07/04/2015,"1,584.90",Employees
 Schools,Academics,01/04/2015,575.00,Employees
Other Education and Children's services,RELATE DERBY & SOUTHERN DERBYS,02/04/2015,"2,800.00",Supplies and Services
 Schools,Vietec Ltd,02/04/2015,550.00,Supplies and Services
 Schools,FOCUS EDUCATION,01/04/2015,630.00,Employees
 Schools,Mellors Catering Services Ltd,02/04/2015,424.35,Supplies and Services
 Schools,Mellors Catering Services Ltd,02/04/2015,"1,182.85",Supplies and Services
 Schools,Mellors Catering Services Ltd,02/04/2015,136.12,Supplies and Services
 Schools,Mellors Catering Services Ltd,02/04/2015,20.38,Supplies and Services
 Schools,EDUCATION CITY LTD,01/04/2015,"1,680.00",Supplies and Services
 Schools,Stormtech Support Ltd,02/04/2015,"1,188.27",Supplies and Services
 Schools,Stormtech Support Ltd,02/04/2015,457.38,Supplies and Services
 Schools,Stormtech Support Ltd,02/04/2015,521.93,Supplies and Services
 Schools,TWS CONSTRUCTION UK LTD,02/04/2015,"1,630.00",Supplies and Services
Adult Social Care,Staffordshire University  Nurs,02/04/2015,"200,000.00",Supplies and Services
Adult Social Care,Staffordshire University  Nurs,02/04/2015,"200,000.00",Supplies and Services
Other Education and Children's services,A2B Cars,07/04/2015,540.00,Transport
Adult Social Care,Craegmoor S Y I 371,02/04/2015,"1,831.80",Third Party
Adult Social Care,Craegmoor Priory Group,02/04/2015,"2,127.06",Third Party
Adult Social Care,BROOK STREET UK LIMITED,01/04/2015,530.56,Supplies and Services
 Schools,Academics,01/04/2015,"1,800.00",Employees
 Schools,SIMPLYICT LTD,07/04/2015,"1,127.00",Supplies and Services
 Schools,ABC TEACHERS LIMITED,07/04/2015,"1,410.92",Employees
 Schools,S WILLEY,08/04/2015,900.00,Supplies and Services
Planning & Economic Development,STAFFORDSHIRE WILDLIFE TRUST L,08/04/2015,"1,500.00",Third Party
Adult Social Care,Great Wyrley Health Centre,08/04/2015,825.00,Supplies and Services
 Schools,SAPERE,07/04/2015,"2,200.00",Employees
 Schools,Skip-hop.co.uk,07/04/2015,700.00,Supplies and Services
 Schools,HAYS EDUCATION PERSONNEL,01/04/2015,"1,150.00",Employees
Adult Social Care,BROOK STREET UK LIMITED,01/04/2015,"1,329.74",Supplies and Services
Adult Social Care,BROOK STREET UK LIMITED,01/04/2015,"1,184.11",Supplies and Services
Adult Social Care,BROOK STREET UK LIMITED,01/04/2015,"1,140.91",Supplies and Services
 Schools,EDUCATION CITY LTD,02/04/2015,"1,316.25",Supplies and Services
 Schools,SIMPLYICT LTD,07/04/2015,"1,246.00",Supplies and Services
 Schools,SIMPLYICT LTD,07/04/2015,321.00,Supplies and Services
Adult Social Care,Walk Digital Ltd,08/04/2015,"4,650.00",Supplies and Services
ICT,St. Giles and St. George's Cof,27/04/2015,"4,750.00",Employees
Law & Governence,J Lattimer,02/04/2015,720.00,Supplies and Services
Entrust,WELLS FARM DAIRY,22/04/2015,221.57,Supplies and Services
Entrust,WELLS FARM DAIRY,22/04/2015,116.29,Supplies and Services
Entrust,WELLS FARM DAIRY,22/04/2015,197.57,Supplies and Services
Entrust,WELLS FARM DAIRY,22/04/2015,107.14,Supplies and Services
Entrust,WELLS FARM DAIRY,22/04/2015,188.11,Supplies and Services
Entrust,WELLS FARM DAIRY,22/04/2015,235.58,Supplies and Services
 Schools,ASPIRE PEOPLE LTD,02/04/2015,"2,446.55",Employees
 Schools,Prime Principle Ltd,27/04/2015,"3,540.00",Supplies and Services
Other Education and Children's services,GRAIL COURT HOTEL,07/04/2015,471.52,Supplies and Services
 Schools,TMS GROUNDS MAINTENANCE LTD,02/04/2015,"1,716.67",Premises
 Schools,TMS GROUNDS MAINTENANCE LTD,02/04/2015,500.00,Premises
 Schools,ABC TEACHERS LIMITED,07/04/2015,539.98,Employees
 Schools,ASPIRE PEOPLE LTD,10/04/2015,745.00,Employees
Entrust,Freshview Foods Ltd,22/04/2015,293.11,Supplies and Services
Entrust,Freshview Foods Ltd,22/04/2015,133.48,Supplies and Services
Entrust,Freshview Foods Ltd,22/04/2015,204.18,Supplies and Services
 CXO,NEWCASTLE U LYME BOROUGH COUNC,08/04/2015,"2,875.00",Premises
 Schools,FOCUS EDUCATION,01/04/2015,"1,229.00",Employees
 Schools,ABC TEACHERS LIMITED,07/04/2015,596.96,Employees
 Schools,Mellors Catering Services Ltd,02/04/2015,"2,656.60",Supplies and Services
 Schools,Mellors Catering Services Ltd,02/04/2015,20.70,Supplies and Services
 Schools,Painsley Catholic Academy,08/04/2015,435.00,Supplies and Services
Adult Social Care,Scotia Heights,08/04/2015,"1,324.35",Capital
 Schools,SOUTH STAFFORDSHIRE WATER PLC,01/04/2015,"1,716.53",Premises
Planning & Economic Development,John Lowe Catering Services,09/04/2015,900.00,Supplies and Services
 CXO,INTEGRATED WATER SERVICES,01/04/2015,100.00,Premises
 CXO,INTEGRATED WATER SERVICES,01/04/2015,100.00,Premises
 Schools,INTEGRATED WATER SERVICES,01/04/2015,148.00,Premises
 Schools,INTEGRATED WATER SERVICES,01/04/2015,148.00,Premises
 Schools,INTEGRATED WATER SERVICES,01/04/2015,148.00,Premises
Corporate & Democratic Core,INTEGRATED WATER SERVICES,01/04/2015,148.00,Premises
Corporate & Democratic Core,INTEGRATED WATER SERVICES,01/04/2015,148.00,Premises
 Schools,INTEGRATED WATER SERVICES,01/04/2015,148.00,Premises
 CXO,INTEGRATED WATER SERVICES,01/04/2015,100.00,Premises
 CXO,INTEGRATED WATER SERVICES,01/04/2015,100.00,Premises
 CXO,INTEGRATED WATER SERVICES,01/04/2015,148.00,Premises
Highways and transport,INTEGRATED WATER SERVICES,01/04/2015,84.00,Premises
 Schools,INTEGRATED WATER SERVICES,01/04/2015,276.00,Premises
 CXO,INTEGRATED WATER SERVICES,01/04/2015,100.00,Premises
 CXO,INTEGRATED WATER SERVICES,01/04/2015,84.00,Premises
 CXO,INTEGRATED WATER SERVICES,01/04/2015,100.00,Premises
Adult Social Care,INTEGRATED WATER SERVICES,01/04/2015,100.00,Premises
Corporate & Democratic Core,INTEGRATED WATER SERVICES,01/04/2015,148.00,Premises
 CXO,INTEGRATED WATER SERVICES,01/04/2015,100.00,Premises
Adult Social Care,INTEGRATED WATER SERVICES,01/04/2015,100.00,Premises
 Schools,Reed Specialist Recruitment Lt,02/04/2015,760.00,Employees
 CXO,INTEGRATED WATER SERVICES,01/04/2015,148.00,Premises
 CXO,INTEGRATED WATER SERVICES,01/04/2015,100.00,Premises
 CXO,INTEGRATED WATER SERVICES,01/04/2015,148.00,Premises
 CXO,INTEGRATED WATER SERVICES,01/04/2015,100.00,Premises
 CXO,INTEGRATED WATER SERVICES,01/04/2015,84.00,Premises
 CXO,INTEGRATED WATER SERVICES,01/04/2015,100.00,Premises
 CXO,INTEGRATED WATER SERVICES,01/04/2015,100.00,Premises
 CXO,INTEGRATED WATER SERVICES,01/04/2015,84.00,Premises
 CXO,INTEGRATED WATER SERVICES,01/04/2015,100.00,Premises
 Schools,INTEGRATED WATER SERVICES,01/04/2015,148.00,Premises
Corporate & Democratic Core,INTEGRATED WATER SERVICES,01/04/2015,148.00,Premises
 CXO,INTEGRATED WATER SERVICES,01/04/2015,84.00,Premises
 CXO,INTEGRATED WATER SERVICES,01/04/2015,148.00,Premises
 CXO,INTEGRATED WATER SERVICES,01/04/2015,100.00,Premises
Corporate & Democratic Core,INTEGRATED WATER SERVICES,01/04/2015,100.00,Premises
 Schools,INTEGRATED WATER SERVICES,01/04/2015,148.00,Premises
 Schools,INTEGRATED WATER SERVICES,01/04/2015,148.00,Premises
Corporate & Democratic Core,INTEGRATED WATER SERVICES,01/04/2015,100.00,Premises
 Schools,INTEGRATED WATER SERVICES,01/04/2015,148.00,Premises
 Schools,INTEGRATED WATER SERVICES,01/04/2015,148.00,Premises
Corporate & Democratic Core,INTEGRATED WATER SERVICES,01/04/2015,148.00,Premises
 Schools,INTEGRATED WATER SERVICES,01/04/2015,148.00,Premises
 Schools,INTEGRATED WATER SERVICES,01/04/2015,148.00,Premises
 Schools,INTEGRATED WATER SERVICES,01/04/2015,148.00,Premises
 Schools,INTEGRATED WATER SERVICES,01/04/2015,212.00,Premises
 CXO,INTEGRATED WATER SERVICES,01/04/2015,100.00,Premises
Adult Social Care,INTEGRATED WATER SERVICES,01/04/2015,100.00,Premises
 Schools,INTEGRATED WATER SERVICES,01/04/2015,100.00,Premises
Other Education and Children's services,Peak Associates Ltd,02/04/2015,"1,831.52",Supplies and Services
 CXO,INTEGRATED WATER SERVICES,01/04/2015,212.00,Premises
 CXO,INTEGRATED WATER SERVICES,01/04/2015,148.00,Premises
 CXO,INTEGRATED WATER SERVICES,01/04/2015,100.00,Premises
 CXO,INTEGRATED WATER SERVICES,01/04/2015,100.00,Premises
 CXO,INTEGRATED WATER SERVICES,01/04/2015,100.00,Premises
 CXO,INTEGRATED WATER SERVICES,01/04/2015,148.00,Premises
Health Trust,INTEGRATED WATER SERVICES,01/04/2015,148.00,Premises
Adult Social Care,INTEGRATED WATER SERVICES,01/04/2015,100.00,Premises
 Schools,INTEGRATED WATER SERVICES,01/04/2015,148.00,Premises
Corporate & Democratic Core,INTEGRATED WATER SERVICES,01/04/2015,84.00,Premises
 Schools,INTEGRATED WATER SERVICES,01/04/2015,148.00,Premises
 Schools,INSPIRED COACHING,01/04/2015,674.00,Supplies and Services
 Schools,INTEGRATED WATER SERVICES,01/04/2015,276.00,Premises
 Schools,INTEGRATED WATER SERVICES,01/04/2015,148.00,Premises
 Schools,INTEGRATED WATER SERVICES,01/04/2015,148.00,Premises
 CXO,INTEGRATED WATER SERVICES,01/04/2015,148.00,Premises
 Schools,INTEGRATED WATER SERVICES,01/04/2015,148.00,Premises
 CXO,INTEGRATED WATER SERVICES,01/04/2015,100.00,Premises
Corporate & Democratic Core,INTEGRATED WATER SERVICES,01/04/2015,148.00,Premises
 Schools,INTEGRATED WATER SERVICES,01/04/2015,148.00,Premises
 Schools,INTEGRATED WATER SERVICES,01/04/2015,148.00,Premises
 Schools,INTEGRATED WATER SERVICES,01/04/2015,148.00,Premises
 Schools,INTEGRATED WATER SERVICES,01/04/2015,424.00,Premises
 Schools,INTEGRATED WATER SERVICES,01/04/2015,148.00,Premises
 Schools,INTEGRATED WATER SERVICES,01/04/2015,148.00,Premises
 Schools,INTEGRATED WATER SERVICES,01/04/2015,148.00,Premises
 CXO,INTEGRATED WATER SERVICES,01/04/2015,212.00,Premises
Corporate & Democratic Core,INTEGRATED WATER SERVICES,01/04/2015,148.00,Premises
 Schools,INTEGRATED WATER SERVICES,01/04/2015,148.00,Premises
 Schools,INTEGRATED WATER SERVICES,01/04/2015,148.00,Premises
 Schools,TOP QUALITY MARQUE,02/04/2015,665.30,Supplies and Services
 Schools,Point Thirteen Media Ltd,02/04/2015,875.00,Employees
 Schools,TeacherActive Ltd,07/04/2015,779.00,Employees
 Schools,ABC TEACHERS LIMITED,07/04/2015,"2,097.82",Employees
 Schools,HAYS EDUCATION PERSONNEL,01/04/2015,540.00,Employees
 Schools,HIGH PEAK BOROUGH COUNCIL,01/04/2015,483.80,Premises
 Schools,WEST MERCIA SUPPLIES,02/04/2015,494.12,Supplies and Services
 CXO,CHUBB FIRE & SECURITY LTD,02/04/2015,81.00,Premises
 CXO,CHUBB FIRE & SECURITY LTD,02/04/2015,81.00,Premises
 CXO,CHUBB FIRE & SECURITY LTD,02/04/2015,81.00,Premises
 CXO,CHUBB FIRE & SECURITY LTD,02/04/2015,81.00,Premises
Corporate & Democratic Core,CHUBB FIRE & SECURITY LTD,02/04/2015,81.00,Premises
Planning & Economic Development,CHUBB FIRE & SECURITY LTD,02/04/2015,81.00,Premises
Planning & Economic Development,CHUBB FIRE & SECURITY LTD,02/04/2015,81.00,Premises
Planning & Economic Development,CHUBB FIRE & SECURITY LTD,02/04/2015,81.00,Premises
Planning & Economic Development,CHUBB FIRE & SECURITY LTD,02/04/2015,81.00,Premises
Planning & Economic Development,CHUBB FIRE & SECURITY LTD,02/04/2015,81.00,Premises
Planning & Economic Development,CHUBB FIRE & SECURITY LTD,02/04/2015,81.00,Premises
Planning & Economic Development,CHUBB FIRE & SECURITY LTD,02/04/2015,81.00,Premises
 Schools,CHUBB FIRE & SECURITY LTD,02/04/2015,81.00,Premises
Corporate & Democratic Core,CHUBB FIRE & SECURITY LTD,02/04/2015,81.00,Premises
 CXO,CHUBB FIRE & SECURITY LTD,02/04/2015,81.00,Premises
Corporate & Democratic Core,CHUBB FIRE & SECURITY LTD,02/04/2015,81.00,Premises
Corporate & Democratic Core,CHUBB FIRE & SECURITY LTD,02/04/2015,81.00,Premises
 Schools,CHUBB FIRE & SECURITY LTD,02/04/2015,81.00,Premises
 Schools,CHUBB FIRE & SECURITY LTD,02/04/2015,81.00,Premises
 Schools,CHUBB FIRE & SECURITY LTD,02/04/2015,81.00,Premises
 CXO,CHUBB FIRE & SECURITY LTD,02/04/2015,81.00,Premises
 CXO,CHUBB FIRE & SECURITY LTD,02/04/2015,81.00,Premises
 CXO,CHUBB FIRE & SECURITY LTD,02/04/2015,81.00,Premises
 Schools,CHUBB FIRE & SECURITY LTD,02/04/2015,81.00,Premises
 Schools,CHUBB FIRE & SECURITY LTD,02/04/2015,81.00,Premises
 Schools,CHUBB FIRE & SECURITY LTD,02/04/2015,81.00,Premises
Health Trust,LSC Nursing Care & Services Lt,01/04/2015,882.87,Supplies and Services
 CXO,CHUBB FIRE & SECURITY LTD,02/04/2015,81.00,Premises
 CXO,CHUBB FIRE & SECURITY LTD,02/04/2015,81.00,Premises
 CXO,CHUBB FIRE & SECURITY LTD,02/04/2015,81.00,Premises
 CXO,CHUBB FIRE & SECURITY LTD,02/04/2015,81.00,Premises
 CXO,CHUBB FIRE & SECURITY LTD,02/04/2015,81.00,Premises
 CXO,CHUBB FIRE & SECURITY LTD,02/04/2015,81.00,Premises
 CXO,CHUBB FIRE & SECURITY LTD,02/04/2015,81.00,Premises
 Schools,CHUBB FIRE & SECURITY LTD,02/04/2015,81.00,Premises
 Schools,CHUBB FIRE & SECURITY LTD,02/04/2015,81.00,Premises
Corporate & Democratic Core,CHUBB FIRE & SECURITY LTD,02/04/2015,81.00,Premises
 CXO,CHUBB FIRE & SECURITY LTD,02/04/2015,81.00,Premises
Adult Social Care,CHUBB FIRE & SECURITY LTD,02/04/2015,81.00,Premises
Planning & Economic Development,CHUBB FIRE & SECURITY LTD,02/04/2015,81.00,Premises
 Schools,CHUBB FIRE & SECURITY LTD,02/04/2015,81.00,Premises
 Schools,CHUBB FIRE & SECURITY LTD,02/04/2015,81.00,Premises
 Schools,CHUBB FIRE & SECURITY LTD,02/04/2015,81.00,Premises
 Schools,CHUBB FIRE & SECURITY LTD,02/04/2015,81.00,Premises
 Schools,CHUBB FIRE & SECURITY LTD,02/04/2015,81.00,Premises
 CXO,CHUBB FIRE & SECURITY LTD,02/04/2015,81.00,Premises
 Schools,CHUBB FIRE & SECURITY LTD,02/04/2015,81.00,Premises
 Schools,CHUBB FIRE & SECURITY LTD,02/04/2015,81.00,Premises
 Schools,CHUBB FIRE & SECURITY LTD,02/04/2015,81.00,Premises
 Schools,CHUBB FIRE & SECURITY LTD,02/04/2015,81.00,Premises
 Schools,CHUBB FIRE & SECURITY LTD,02/04/2015,81.00,Premises
 Schools,CHUBB FIRE & SECURITY LTD,02/04/2015,81.00,Premises
 CXO,CHUBB FIRE & SECURITY LTD,02/04/2015,81.00,Premises
Highways and transport,CHUBB FIRE & SECURITY LTD,02/04/2015,81.00,Premises
 CXO,CHUBB FIRE & SECURITY LTD,02/04/2015,81.00,Premises
 CXO,CHUBB FIRE & SECURITY LTD,02/04/2015,81.00,Premises
 CXO,CHUBB FIRE & SECURITY LTD,02/04/2015,81.00,Premises
Corporate & Democratic Core,CHUBB FIRE & SECURITY LTD,02/04/2015,81.00,Premises
Corporate & Democratic Core,CHUBB FIRE & SECURITY LTD,02/04/2015,81.00,Premises
Corporate & Democratic Core,CHUBB FIRE & SECURITY LTD,02/04/2015,81.00,Premises
 Schools,FLOURISH EDUCATION LIMITED,07/04/2015,925.00,Employees
ICT,Jamtec (Stoke) Ltd,07/04/2015,"1,850.00",Supplies and Services
 Schools,CONNEX HOLDINGS LTD,02/04/2015,425.00,Employees
 Schools,Staffordshire Education Supply,02/04/2015,"1,715.00",Employees
 Schools,STODDARDS LTD,08/04/2015,587.58,Premises
 Schools,SOUTH STAFFORDSHIRE WATER PLC,01/04/2015,"1,243.29",Premises
 Schools,ABC TEACHERS LIMITED,07/04/2015,"1,188.92",Employees
 Schools,ITN MARK EDUCATION,08/04/2015,950.35,Employees
 Schools,Staffordshire Education Supply,02/04/2015,"2,457.00",Employees
 Schools,Staffordshire Education Supply,02/04/2015,"1,323.00",Employees
 Schools,Staffordshire Education Supply,02/04/2015,770.00,Employees
Health Trust,Morecare at Home,01/04/2015,"1,919.60",Supplies and Services
Other Education and Children's services,V Mandalia,02/04/2015,"4,800.00",Supplies and Services
Law & Governence,CHEADLE NEW LIFE,07/04/2015,"1,200.00",Third Party
 Schools,PBM INSPECTION SERVICES LTD,02/04/2015,650.00,Supplies and Services
 Schools,HAYS EDUCATION PERSONNEL,01/04/2015,975.00,Employees
 Schools,HAYS EDUCATION PERSONNEL,01/04/2015,780.00,Employees
Other Education and Children's services,A CRAVEN,02/04/2015,"2,100.00",Supplies and Services
 Schools,Staffordshire Education Supply,02/04/2015,550.00,Employees
 Schools,Staffordshire Education Supply,02/04/2015,550.00,Employees
 Schools,Painsley Catholic Academy,08/04/2015,"1,305.00",Employees
 Schools,PEARSON EDUCATION LTD,02/04/2015,507.38,Supplies and Services
 Schools,PEARSON EDUCATION LTD,02/04/2015,3.75,Supplies and Services
 Schools,H & H SPALDING (BOOKS),02/04/2015,"1,335.99",Supplies and Services
Adult Social Care,Royal Wolverhamton Hosp NHS Tr,07/04/2015,"5,290.36",Supplies and Services
Adult Social Care,NHS CANNOCK CHASE CCG,01/04/2015,"2,671.27",Supplies and Services
Adult Social Care,NHS CANNOCK CHASE CCG,01/04/2015,"1,750.89",Supplies and Services
Adult Social Care,NHS Stafford and Surrounds CCG,01/04/2015,"7,386.11",Supplies and Services
Adult Social Care,NHS Stafford and Surrounds CCG,01/04/2015,"2,856.63",Supplies and Services
Adult Social Care,NHS CANNOCK CHASE CCG,01/04/2015,"4,562.00",Supplies and Services
Adult Social Care,NHS Stafford and Surrounds CCG,01/04/2015,"8,524.00",Supplies and Services
Adult Social Care,NHS CANNOCK CHASE CCG,01/04/2015,"3,621.06",Supplies and Services
Adult Social Care,NHS CANNOCK CHASE CCG,01/04/2015,"4,432.00",Supplies and Services
Adult Social Care,NHS Stafford and Surrounds CCG,01/04/2015,"5,780.00",Supplies and Services
Adult Social Care,NHS Stafford and Surrounds CCG,01/04/2015,"5,505.31",Supplies and Services
Adult Social Care,UNIVERSITY HOSPITAL B'AM NHS,01/04/2015,670.00,Supplies and Services
 Schools,SIMPLYICT LTD,07/04/2015,"1,108.66",Supplies and Services
Adult Social Care,UNIVERSITY HOSPITAL B'AM NHS,01/04/2015,"1,753.73",Supplies and Services
 Schools,Durham University,02/04/2015,905.40,Supplies and Services
Adult Social Care,UNIVERSITY HOSPITAL B'AM NHS,01/04/2015,940.66,Supplies and Services
Adult Social Care,NHS Stafford and Surrounds CCG,02/04/2015,"2,951.49",Supplies and Services
Adult Social Care,Univ Hospitals of North Mids N,01/04/2015,"10,143.00",Supplies and Services
 Schools,K Jones,01/04/2015,700.00,Supplies and Services
Adult Social Care,Northern Devon Healthcare NHS,02/04/2015,518.00,Supplies and Services
Adult Social Care,TAMWORTH BOROUGH COUNCIL,02/04/2015,"20,000.00",Supplies and Services
 Schools,TARA PROFESSIONAL RECRUITMENT,02/04/2015,740.00,Employees
Health Trust,Tamworth Home Care Ltd,02/04/2015,959.84,Supplies and Services
Other Education and Children's services,Groundwork West Midlands,02/04/2015,"14,998.41",Supplies and Services
Other Education and Children's services,Ami Creative,07/04/2015,"3,392.00",Supplies and Services
 Schools,ASPIRE PEOPLE LTD,09/04/2015,"1,456.50",Employees
Adult Social Care,EAST CHESHIRE NHS TRUST,02/04/2015,"2,845.00",Supplies and Services
Adult Social Care,Tiger Health Centre,02/04/2015,"2,200.00",Supplies and Services
Health Trust,Tamworth Home Care Ltd,02/04/2015,"1,423.52",Supplies and Services
Health Trust,Tamworth Home Care Ltd,02/04/2015,755.48,Supplies and Services
 Schools,FORBES WEST LTD,01/04/2015,"3,373.79",Third Party
 Schools,All Saints' CE(VA) First Sch,10/04/2015,624.00,Third Party
 Schools,INSPIRED COACHING,01/04/2015,510.00,Supplies and Services
 Schools,Stoke on Trent City Council,02/04/2015,"1,867.80",Supplies and Services
 Schools,Stoke on Trent City Council,02/04/2015,"1,595.00",Supplies and Services
 Schools,Stoke on Trent City Council,02/04/2015,22.00,Supplies and Services
 Schools,Stoke on Trent City Council,02/04/2015,19.80,Supplies and Services
 Schools,Stoke on Trent City Council,02/04/2015,13.00,Supplies and Services
 Schools,HAYS EDUCATION PERSONNEL,01/04/2015,890.00,Employees
 Schools,ITN MARK EDUCATION,01/04/2015,525.00,Employees
 Schools,ABC TEACHERS LIMITED,01/04/2015,221.98,Employees
 Schools,ABC TEACHERS LIMITED,01/04/2015,110.99,Employees
 Schools,ABC TEACHERS LIMITED,01/04/2015,110.99,Employees
 Schools,ABC TEACHERS LIMITED,01/04/2015,110.99,Employees
 Schools,ABC TEACHERS LIMITED,01/04/2015,110.99,Employees
 Schools,ABC TEACHERS LIMITED,01/04/2015,221.98,Employees
 Schools,ABC TEACHERS LIMITED,01/04/2015,332.97,Employees
 Schools,ABC TEACHERS LIMITED,01/04/2015,110.99,Employees
 Schools,ABC TEACHERS LIMITED,01/04/2015,110.99,Employees
 Schools,ABC TEACHERS LIMITED,01/04/2015,221.98,Employees
 Schools,ABC TEACHERS LIMITED,01/04/2015,110.99,Employees
 Schools,ABC TEACHERS LIMITED,01/04/2015,221.98,Employees
 Schools,ABC TEACHERS LIMITED,01/04/2015,221.98,Employees
 Schools,ABC TEACHERS LIMITED,01/04/2015,110.99,Employees
 Schools,ABC TEACHERS LIMITED,01/04/2015,221.98,Employees
Adult Social Care,Neopost,10/04/2015,900.00,Supplies and Services
Adult Social Care,Neopost,10/04/2015,200.00,Supplies and Services
Adult Social Care,Neopost,10/04/2015,100.00,Supplies and Services
Adult Social Care,Neopost,10/04/2015,100.00,Supplies and Services
Other Education and Children's services,Neopost,10/04/2015,200.00,Supplies and Services
Other Education and Children's services,Neopost,10/04/2015,600.00,Supplies and Services
Other Education and Children's services,Neopost,10/04/2015,300.00,Supplies and Services
Other Education and Children's services,Neopost,10/04/2015,400.00,Supplies and Services
Other Education and Children's services,Neopost,10/04/2015,400.00,Supplies and Services
Adult Social Care,Neopost,10/04/2015,67.00,Supplies and Services
Other Education and Children's services,Neopost,10/04/2015,300.00,Supplies and Services
Planning & Economic Development,Neopost,02/04/2015,"2,429.30",Supplies and Services
Other Education and Children's services,SPACEKRAFT LTD,08/04/2015,"10,748.55",Supplies and Services
 Schools,SIMPLYICT LTD,07/04/2015,930.00,Supplies and Services
 Schools,SIMPLYICT LTD,07/04/2015,180.00,Supplies and Services
 Schools,ASPIRE PEOPLE LTD,10/04/2015,495.00,Employees
 Schools,ASPIRE PEOPLE LTD,02/04/2015,575.00,Employees
Highways and transport,Penna Plc,07/04/2015,565.40,Supplies and Services
Adult Social Care,WELLINGS FUNERAL SERVICE,24/04/2015,518.94,Supplies and Services
Health Trust,Angel Homecaring,02/04/2015,588.08,Supplies and Services
 Schools,ASPIRE PEOPLE LTD,09/04/2015,819.00,Employees
 Schools,Academics,08/04/2015,"1,312.50",Employees
 Schools,Smile Education Recruitment,09/04/2015,803.00,Employees
 Schools,Smile Education Recruitment,09/04/2015,845.00,Employees
 Schools,Smile Education Recruitment,09/04/2015,42.00,Employees
 Schools,PELL FRISCHMANN  CONSULTANTS,02/04/2015,635.99,Supplies and Services
 Schools,I.M.P.A.C.T First Ltd,09/04/2015,"6,000.00",Supplies and Services
 Schools,I.M.P.A.C.T First Ltd,09/04/2015,3.95,Supplies and Services
 Schools,Mellors Catering Services Ltd,02/04/2015,707.70,Supplies and Services
 Schools,Mellors Catering Services Ltd,02/04/2015,434.70,Supplies and Services
 Schools,Mellors Catering Services Ltd,02/04/2015,109.71,Supplies and Services
 Schools,Mellors Catering Services Ltd,02/04/2015,12.60,Supplies and Services
Environment,STOKE CITY COUNCIL (ALL ACCS),07/04/2015,"45,000.00",Supplies and Services
Other Education and Children's services,L BRAZIER,09/04/2015,"4,483.65",Supplies and Services
Other Education and Children's services,L BRAZIER,09/04/2015,396.00,Supplies and Services
 Schools,ABC TEACHERS LIMITED,01/04/2015,110.99,Employees
 Schools,ABC TEACHERS LIMITED,01/04/2015,110.99,Employees
 Schools,ABC TEACHERS LIMITED,01/04/2015,"1,664.85",Employees
 Schools,RM Education Plc,02/04/2015,"1,317.00",Supplies and Services
 Schools,BOURNE ELECTRICAL CONTR LTD,01/04/2015,688.35,Premises
 Schools,MISCO,02/04/2015,496.26,Supplies and Services
Adult Social Care,BRIARS BARN LTD,09/04/2015,"1,027.00",Supplies and Services
 Schools,Prospero Teaching,07/04/2015,899.95,Employees
 Schools,SOUTH STAFFORDSHIRE WATER PLC,02/04/2015,956.34,Premises
 Schools,RICOH UK LTD,02/04/2015,424.50,Supplies and Services
 Schools,ABC TEACHERS LIMITED,07/04/2015,"1,595.91",Employees
 Schools,Prospero Teaching,07/04/2015,719.96,Employees
 Schools,ABC TEACHERS LIMITED,07/04/2015,"1,776.92",Employees
Adult Social Care,Voyage Ltd,24/04/2015,"-2,500.00",Supplies and Services
Adult Social Care,Voyage Ltd,24/04/2015,"-2,500.00",Supplies and Services
 Schools,BLACKBOARD RECRUITMENT LTD,07/04/2015,"1,726.00",Employees
 Schools,Academics,01/04/2015,"2,000.00",Employees
 CXO,STAFFORD BOROUGH COUNCIL,08/04/2015,"10,000.00",Supplies and Services
 Schools,ABC TEACHERS LIMITED,07/04/2015,574.95,Employees
 Schools,ABC TEACHERS LIMITED,07/04/2015,500.00,Employees
 Schools,ABC TEACHERS LIMITED,07/04/2015,270.00,Employees
 Schools,ABC TEACHERS LIMITED,07/04/2015,808.93,Employees
 Schools,Aquinas Education Ltd,08/04/2015,450.00,Employees
 Schools,ASPIRE PEOPLE LTD,10/04/2015,562.50,Employees
 Schools,Project CSI Limited,09/04/2015,695.00,Supplies and Services
 Schools,EDUCATION CITY LTD,07/04/2015,"1,316.25",Supplies and Services
 Schools,EDUCATION CITY LTD,02/04/2015,"1,298.40",Supplies and Services
 Schools,HAYS EDUCATION PERSONNEL,01/04/2015,756.00,Employees
 Schools,ABC TEACHERS LIMITED,07/04/2015,"3,221.82",Employees
 Schools,ASPIRE PEOPLE LTD,02/04/2015,507.00,Employees
Adult Social Care,Corona Energy Retail 4 Ltd,07/04/2015,513.94,Premises
Highways and transport,J Airey,07/04/2015,"1,715.00",Income
 Schools,W Gleeson,09/04/2015,540.00,Supplies and Services
 Schools,ABC TEACHERS LIMITED,07/04/2015,583.96,Employees
 Schools,INFO & DATA NETWORK SUPPLIES L,10/04/2015,457.18,Supplies and Services
 Schools,Prospero Teaching,07/04/2015,899.95,Employees
Highways and transport,S Charlson,08/04/2015,980.00,Income
ICT,Painsley Catholic Academy,08/04/2015,800.00,Supplies and Services
ICT,Painsley Catholic Academy,08/04/2015,200.00,Supplies and Services
ICT,Painsley Catholic Academy,08/04/2015,100.00,Supplies and Services
Finance,LOOKERS LEASING LTD,01/04/2015,"2,175.84",Transport
Finance,LOOKERS LEASING LTD,01/04/2015,"1,845.50",Transport
Finance,LOOKERS LEASING LTD,01/04/2015,"1,293.36",Transport
Finance,LOOKERS LEASING LTD,01/04/2015,"1,021.68",Transport
Finance,LOOKERS LEASING LTD,02/04/2015,"1,206.12",Transport
Finance,LOOKERS LEASING LTD,02/04/2015,896.11,Transport
Finance,LOOKERS LEASING LTD,08/04/2015,"2,317.20",Transport
Finance,LOOKERS LEASING LTD,08/04/2015,"2,007.79",Transport
Finance,LOOKERS LEASING LTD,01/04/2015,237.01,Transport
Finance,LOOKERS LEASING LTD,01/04/2015,257.08,Transport
 Schools,Mellors Catering Services Ltd,21/04/2015,"1,927.80",Supplies and Services
 Schools,Mellors Catering Services Ltd,21/04/2015,995.40,Supplies and Services
 Schools,Mellors Catering Services Ltd,21/04/2015,84.80,Supplies and Services
 Schools,Mellors Catering Services Ltd,21/04/2015,60.90,Supplies and Services
 Schools,Discovery Education Europe Lim,09/04/2015,"1,572.00",Supplies and Services
Adult Social Care,ARCH NORTH STAFFS LTD,10/04/2015,"18,862.45",Supplies and Services
 Schools,MATT GARDNER ELEC SERVICES,09/04/2015,"1,650.00",Premises
Planning & Economic Development,S K WELCH,02/04/2015,"1,110.00",Third Party
Planning & Economic Development,Brereton & Ravenhill Parish Co,10/04/2015,"1,175.00",Third Party
 Schools,Mellors Catering Services Ltd,09/04/2015,"1,793.40",Supplies and Services
 Schools,Mellors Catering Services Ltd,09/04/2015,23.10,Supplies and Services
Planning & Economic Development,Beaudesert Trust,10/04/2015,"1,407.25",Third Party
 Schools,Macquarie Equipment Finance UK,10/04/2015,610.55,Supplies and Services
Planning & Economic Development,HUDSON & MIDDLETON LTD,02/04/2015,"5,000.00",Supplies and Services
Adult Social Care,MEDILINE NURSES,10/04/2015,"2,757.12",Third Party
Adult Social Care,WESSEX LIFT CO LTD,07/04/2015,875.00,Supplies and Services
 Schools,BLACKBOARD RECRUITMENT LTD,07/04/2015,"1,777.00",Employees
Adult Social Care,WESSEX LIFT CO LTD,07/04/2015,720.00,Supplies and Services
Adult Social Care,MEDILINE NURSES,01/04/2015,"2,757.12",Third Party
Adult Social Care,MEDILINE NURSES,01/04/2015,"5,024.00",Third Party
Adult Social Care,MEDILINE NURSES,01/04/2015,"5,024.00",Third Party
Finance,Pricewaterhousecoopers LLP,07/04/2015,"6,139.82",Employees
Adult Social Care,MEDILINE NURSES,02/04/2015,"1,503.42",Supplies and Services
Finance,Pricewaterhousecoopers LLP,07/04/2015,"3,771.24",Employees
 Schools,Royal Mail Group Ltd,02/04/2015,787.00,Supplies and Services
 Schools,ETEACH,09/04/2015,695.00,Supplies and Services
 Schools,School Furniture Direct Ltd,09/04/2015,"2,112.00",Supplies and Services
 Schools,Shaw Education Consultancy Ltd,10/04/2015,812.00,Supplies and Services
 Schools,POLYCOPY PAPER & STATIONERY,01/04/2015,507.91,Supplies and Services
 Schools,ASPIRE PEOPLE LTD,10/04/2015,465.00,Employees
Adult Social Care,WESSEX LIFT CO LTD,02/04/2015,"1,840.00",Supplies and Services
 Schools,HAYS EDUCATION PERSONNEL,01/04/2015,850.00,Employees
Adult Social Care,WESSEX LIFT CO LTD,02/04/2015,"1,610.00",Supplies and Services
Adult Social Care,CARE UK,01/04/2015,"21,586.60",Third Party
Adult Social Care,CARE UK,02/04/2015,"21,586.60",Third Party
Adult Social Care,CARE UK,01/04/2015,"12,629.68",Third Party
Adult Social Care,CARE UK,02/04/2015,"12,629.68",Third Party
Adult Social Care,Lifeways Community Care Ltd,01/04/2015,"1,432.08",Supplies and Services
Adult Social Care,Lifeways Community Care Ltd,01/04/2015,"9,826.70",Third Party
 Schools,A HILL,10/04/2015,600.00,Employees
 Schools,PEARSON EDUCATION LTD,07/04/2015,452.16,Supplies and Services
 Schools,PEARSON EDUCATION LTD,07/04/2015,3.75,Supplies and Services
 Schools,ASM SPORTS UK LTD,10/04/2015,720.00,Employees
 Schools,RUGELEY HORIZON PRIORY,01/04/2015,"28,500.00",Supplies and Services
 Schools,ITN MARK EDUCATION,08/04/2015,525.00,Employees
 Schools,MAPLE HAYES SCHOOL,02/04/2015,"4,735.20",Supplies and Services
 Schools,MAPLE HAYES SCHOOL,02/04/2015,"4,735.20",Supplies and Services
 Schools,Rugeley School - Mayfield Prio,01/04/2015,"16,800.00",Supplies and Services
Trading Service County Fleet Care,ALLSTAR BUSINESS SOLUTIONS LTD,01/04/2015,"6,299.60",Transport
 Schools,Rugeley School - Mayfield Prio,01/04/2015,"63,000.00",Supplies and Services
 Schools,Plaza Cars,10/04/2015,350.00,Supplies and Services
 Schools,Plaza Cars,10/04/2015,260.00,Supplies and Services
 Schools,Plaza Cars,10/04/2015,200.00,Supplies and Services
Adult Social Care,WESSEX LIFT CO LTD,02/04/2015,"1,000.00",Supplies and Services
Adult Social Care,WESSEX LIFT CO LTD,02/04/2015,770.00,Supplies and Services
 Schools,FOCUS EDUCATION,07/04/2015,875.00,Employees
 Schools,FOCUS EDUCATION,07/04/2015,875.00,Employees
 Schools,STAFFORDSHIRE MOORLANDS DIS CN,01/04/2015,533.02,Supplies and Services
 Schools,MAUDESPORT LTD,07/04/2015,"1,037.01",Supplies and Services
 Schools,Prospero Teaching,07/04/2015,64.00,Employees
 Schools,Prospero Teaching,07/04/2015,250.97,Employees
 Schools,Prospero Teaching,07/04/2015,370.97,Employees
 Schools,Prospero Teaching,07/04/2015,20.00,Employees
 Schools,Prospero Teaching,07/04/2015,247.98,Employees
 Schools,Prospero Teaching,07/04/2015,160.99,Employees
 Schools,Prospero Teaching,07/04/2015,751.94,Employees
 Schools,RICOH UK LTD,02/04/2015,"1,524.68",Supplies and Services
 Schools,RICOH UK LTD,02/04/2015,"2,464.97",Supplies and Services
 Schools,Chadsmead Primary Academy,08/04/2015,600.00,Employees
 Schools,PEARSON EDUCATION LTD,01/04/2015,600.30,Supplies and Services
 Schools,Mellors Catering Services Ltd,09/04/2015,"2,843.40",Supplies and Services
 Schools,Mellors Catering Services Ltd,09/04/2015,"1,253.70",Supplies and Services
 Schools,Mellors Catering Services Ltd,09/04/2015,374.00,Supplies and Services
 Schools,Mellors Catering Services Ltd,09/04/2015,92.40,Supplies and Services
 Schools,Mellors Catering Services Ltd,09/04/2015,2.10,Supplies and Services
 Schools,Mellors Catering Services Ltd,09/04/2015,9.00,Supplies and Services
 Schools,Mellors Catering Services Ltd,02/04/2015,"2,626.20",Supplies and Services
 Schools,Mellors Catering Services Ltd,02/04/2015,17.22,Supplies and Services
 Schools,Mellors Catering Services Ltd,02/04/2015,6.15,Supplies and Services
 Schools,Smile Education Recruitment,09/04/2015,895.00,Employees
 Schools,D K S ROOFING LTD,02/04/2015,"3,460.00",Premises
 Schools,Mellors Catering Services Ltd,09/04/2015,634.20,Supplies and Services
 Schools,Mellors Catering Services Ltd,09/04/2015,455.70,Supplies and Services
 Schools,Mellors Catering Services Ltd,09/04/2015,119.70,Supplies and Services
 Schools,Mellors Catering Services Ltd,09/04/2015,27.30,Supplies and Services
 Schools,Mellors Catering Services Ltd,09/04/2015,21.00,Supplies and Services
 Schools,EXCEL MUSIC SCHOOLS LTD,01/04/2015,720.00,Supplies and Services
Planning & Economic Development,WEST MID PASS TRANS EXECUTIVE,02/04/2015,"21,209.00",Supplies and Services
 Schools,TeacherActive Ltd,02/04/2015,900.00,Employees
 Schools,RICOH UK LTD,02/04/2015,585.18,Supplies and Services
Adult Social Care,Lifeways Community Care Ltd,07/04/2015,"25,037.38",Third Party
Adult Social Care,Lifeways Community Care Ltd,07/04/2015,"6,259.34",Third Party
Adult Social Care,Lifeways Community Care Ltd,07/04/2015,"-1,614.12",Income
Adult Social Care,Lifeways Community Care Ltd,07/04/2015,-388.80,Income
Adult Social Care,Lifeways Community Care Ltd,07/04/2015,-583.36,Income
Adult Social Care,Lifeways Community Care Ltd,07/04/2015,-145.84,Income
Highways and transport,Moog Wolverhampton Group,02/04/2015,520.00,Capital
 Schools,ABC TEACHERS LIMITED,07/04/2015,854.95,Employees
 Schools,TeacherActive Ltd,07/04/2015,"1,465.00",Employees
Adult Social Care,Lifeways Community Care Ltd,07/04/2015,"25,037.38",Third Party
Adult Social Care,Lifeways Community Care Ltd,07/04/2015,"6,259.34",Third Party
Adult Social Care,Lifeways Community Care Ltd,07/04/2015,"-1,246.92",Income
Adult Social Care,Lifeways Community Care Ltd,07/04/2015,-362.76,Income
Adult Social Care,Lifeways Community Care Ltd,07/04/2015,-583.36,Income
Adult Social Care,Lifeways Community Care Ltd,07/04/2015,-145.84,Income
Adult Social Care,Lifeways Community Care Ltd,07/04/2015,"2,866.00",Third Party
 Schools,Mellors Catering Services Ltd,09/04/2015,"2,193.12",Supplies and Services
 Schools,Mellors Catering Services Ltd,09/04/2015,112.99,Supplies and Services
 Schools,Mellors Catering Services Ltd,09/04/2015,6.15,Supplies and Services
 Schools,OM INTERACTIVE LTD,09/04/2015,"3,057.00",Supplies and Services
 Schools,SOVEREIGN DESIGN SYSTEMS LTD,10/04/2015,"1,114.71",Supplies and Services
Adult Social Care,Voyage Ltd,24/04/2015,747.50,Supplies and Services
Adult Social Care,Positive Opportunities in Womb,01/04/2015,675.00,Supplies and Services
Adult Social Care,Delam Care Ltd,01/04/2015,"9,964.29",Supplies and Services
Adult Social Care,Delam Care Ltd,09/04/2015,"3,535.71",Supplies and Services
Adult Social Care,BRIARS BARN LTD,10/04/2015,612.00,Supplies and Services
Adult Social Care,BRIARS BARN LTD,10/04/2015,711.00,Supplies and Services
Adult Social Care,Independent Living Alliance Lt,02/04/2015,"4,164.00",Third Party
 Schools,MONARCH EDUCATION LIMITED,07/04/2015,787.50,Employees
Adult Social Care,CREATIVE SUPPORT,07/04/2015,"20,857.64",Third Party
Adult Social Care,CREATIVE SUPPORT,07/04/2015,"4,770.64",Third Party
Adult Social Care,CREATIVE SUPPORT,07/04/2015,"12,267.36",Third Party
 Schools,ITN MARK EDUCATION,08/04/2015,675.00,Employees
 Schools,Prospero Teaching,07/04/2015,599.96,Employees
 Schools,T GRAINGER,02/04/2015,"2,500.00",Supplies and Services
 Schools,TEACHING PERSONNEL LTD,08/04/2015,842.80,Employees
 Schools,TeacherActive Ltd,07/04/2015,"1,030.00",Employees
 Schools,Mellors Catering Services Ltd,09/04/2015,926.20,Supplies and Services
 Schools,Mellors Catering Services Ltd,09/04/2015,12.75,Supplies and Services
 Schools,Mellors Catering Services Ltd,09/04/2015,67.20,Supplies and Services
 Schools,MML FURNITURE,08/04/2015,549.95,Supplies and Services
 Schools,The Key Support Services Limit,07/04/2015,500.00,Employees
 Schools,ROY DYKE ELECTRICAL LTD,09/04/2015,785.33,Premises
 Schools,ParentPay Ltd,09/04/2015,610.00,Supplies and Services
 Schools,TeacherActive Ltd,07/04/2015,500.00,Employees
 Schools,Acer Garden Landscapes Ltd,10/04/2015,"3,197.28",Premises
Adult Social Care,TRINITY SKILLS FOR LIFE LTD,10/04/2015,"1,034.00",Supplies and Services
Adult Social Care,TRINITY SKILLS FOR LIFE LTD,10/04/2015,"1,034.00",Supplies and Services
Adult Social Care,TRINITY SKILLS FOR LIFE LTD,10/04/2015,945.00,Supplies and Services
Adult Social Care,TRINITY SKILLS FOR LIFE LTD,10/04/2015,"1,063.16",Supplies and Services
Adult Social Care,TRINITY SKILLS FOR LIFE LTD,10/04/2015,820.08,Supplies and Services
Adult Social Care,TRINITY SKILLS FOR LIFE LTD,10/04/2015,800.00,Supplies and Services
 Schools,WM M BRIERS & SON (TAMWORTH) L,10/04/2015,"2,026.25",Premises
 Schools,SCIENCE BOFFINS,02/04/2015,605.00,Supplies and Services
Adult Social Care,PSS,07/04/2015,247.00,Supplies and Services
Adult Social Care,PSS,07/04/2015,124.92,Supplies and Services
Adult Social Care,PSS,07/04/2015,136.28,Supplies and Services
Adult Social Care,PSS,07/04/2015,872.87,Supplies and Services
 Schools,Academics,08/04/2015,567.50,Employees
 Schools,Durham University,02/04/2015,688.28,Supplies and Services
Adult Social Care,PSS,07/04/2015,"1,428.34",Supplies and Services
Adult Social Care,PSS,07/04/2015,53.24,Supplies and Services
Adult Social Care,PSS,07/04/2015,"1,147.04",Supplies and Services
Adult Social Care,PSS,07/04/2015,83.50,Supplies and Services
Adult Social Care,PSS,07/04/2015,"1,049.68",Supplies and Services
Adult Social Care,PSS,07/04/2015,872.87,Supplies and Services
Adult Social Care,PSS,07/04/2015,"1,035.84",Supplies and Services
Adult Social Care,PSS,07/04/2015,"1,035.84",Supplies and Services
Adult Social Care,PSS,07/04/2015,20.82,Supplies and Services
Adult Social Care,PSS,07/04/2015,"1,209.31",Supplies and Services
Adult Social Care,PSS,07/04/2015,"1,035.84",Supplies and Services
Adult Social Care,PSS,07/04/2015,872.87,Supplies and Services
Adult Social Care,PSS,07/04/2015,"1,035.84",Supplies and Services
Adult Social Care,BROOK STREET UK LIMITED,08/04/2015,876.93,Supplies and Services
Adult Social Care,BROOK STREET UK LIMITED,08/04/2015,940.23,Supplies and Services
 Schools,Datacraft Installation Service,10/04/2015,480.00,Supplies and Services
 Schools,Mellors Catering Services Ltd,09/04/2015,221.40,Supplies and Services
 Schools,Mellors Catering Services Ltd,09/04/2015,410.00,Supplies and Services
 Schools,ASPIRE PEOPLE LTD,10/04/2015,895.00,Employees
Adult Social Care,BROOK STREET UK LIMITED,08/04/2015,768.78,Supplies and Services
Adult Social Care,BROOK STREET UK LIMITED,08/04/2015,"1,280.09",Supplies and Services
 CXO,CHIEF CONSTABLE OF STAFFORDSHI,08/04/2015,"1,000.00",Supplies and Services
 Schools,BLACKBOARD RECRUITMENT LTD,07/04/2015,820.00,Employees
 Schools,Cruckton Hall Ltd,02/04/2015,"29,166.67",Supplies and Services
 Schools,FOCUS EDUCATION,08/04/2015,600.00,Employees
 Schools,Cruckton Hall Ltd,02/04/2015,"25,166.67",Supplies and Services
 Schools,NPOWER,01/04/2015,594.85,Premises
 Schools,VALUES ACADEMY,27/04/2015,"8,555.00",Supplies and Services
 Schools,HMM MECHANICAL SERVICES LTD,01/04/2015,427.00,Premises
 Schools,Harvills Hawthorn Primary Scho,09/04/2015,660.00,Supplies and Services
 Schools,ENLIGHTKS LTD,02/04/2015,700.00,Supplies and Services
Adult Social Care,CONDOVER COLLEGE LTD,01/04/2015,"7,351.32",Supplies and Services
 Schools,See to a Star Ltd,10/04/2015,"1,089.96",Supplies and Services
Adult Social Care,DAVID LEWIS CENTRE,01/04/2015,"5,741.80",Supplies and Services
Adult Social Care,ASHBOURNE COMMUNITY TRANSPORT,01/04/2015,"1,140.00",Transport
Adult Social Care,SOT & STAFFS FIRE AUTHORITY,10/04/2015,"2,354.26",Supplies and Services
 Schools,UNIVERSITY OF BIRMINGHAM,01/04/2015,"1,980.00",Employees
Other Education and Children's services,Tamworth Borough Council,08/04/2015,"1,164.00",Supplies and Services
Other Education and Children's services,Tamworth Borough Council,08/04/2015,"2,867.50",Supplies and Services
 Schools,HAYS EDUCATION PERSONNEL,02/04/2015,534.00,Employees
 Schools,Mellors Catering Services Ltd,09/04/2015,"1,352.40",Supplies and Services
 Schools,Mellors Catering Services Ltd,09/04/2015,18.10,Supplies and Services
 Schools,Mellors Catering Services Ltd,09/04/2015,"1,493.10",Supplies and Services
Other Education and Children's services,Adoption Matters North West,10/04/2015,"1,666.66",Supplies and Services
 CXO,WEIGHTMANS,09/04/2015,"1,161.00",Third Party
 Schools,EDUCATION CITY LTD,09/04/2015,945.00,Supplies and Services
 Schools,EXCEL MUSIC SCHOOLS LTD,01/04/2015,660.00,Supplies and Services
 Schools,CROFTSHINE LTD,02/04/2015,582.00,Premises
 Schools,2SIMPLE SOFTWARE,02/04/2015,900.00,Supplies and Services
 Schools,SMILE LTD,08/04/2015,"1,650.00",Supplies and Services
 Schools,Prospero Teaching,07/04/2015,"1,100.00",Employees
 Schools,TARA PROFESSIONAL RECRUITMENT,07/04/2015,"2,127.50",Employees
 Schools,Mellors Catering Services Ltd,09/04/2015,"1,416.55",Supplies and Services
 Schools,Mellors Catering Services Ltd,09/04/2015,1.80,Supplies and Services
Finance,LOOKERS LEASING LTD,09/04/2015,"2,386.68",Transport
Finance,LOOKERS LEASING LTD,09/04/2015,"2,246.98",Transport
Finance,LOOKERS LEASING LTD,07/04/2015,974.82,Transport
Finance,LOOKERS LEASING LTD,07/04/2015,912.46,Transport
Finance,LOOKERS LEASING LTD,07/04/2015,"2,789.82",Transport
Finance,LOOKERS LEASING LTD,07/04/2015,"2,597.40",Transport
Finance,LOOKERS LEASING LTD,02/04/2015,"2,396.04",Transport
Finance,LOOKERS LEASING LTD,02/04/2015,"2,185.34",Transport
 Schools,MONARCH EDUCATION LIMITED,07/04/2015,525.00,Employees
 Schools,Staffordshire Education Supply,02/04/2015,984.00,Employees
 Schools,Staffordshire Education Supply,02/04/2015,905.00,Employees
 Schools,ABC TEACHERS LIMITED,07/04/2015,609.97,Employees
Other Education and Children's services,Malvern Achievement Services L,01/04/2015,"7,542.92",Third Party
Adult Social Care,Elite CIC,13/04/2015,"9,250.00",Supplies and Services
 Schools,SIMPLYICT LTD,07/04/2015,"2,153.33",Supplies and Services
 Schools,SIMPLYICT LTD,07/04/2015,30.00,Supplies and Services
Highways and transport,VALUATION OFFICE AGENCY,10/04/2015,"2,804.48",Capital
Highways and transport,VALUATION OFFICE AGENCY,10/04/2015,"2,850.00",Capital
Highways and transport,VALUATION OFFICE AGENCY,10/04/2015,775.18,Capital
Highways and transport,PBM INSPECTION SERVICES LTD,10/04/2015,729.00,Supplies and Services
Highways and transport,PBM INSPECTION SERVICES LTD,10/04/2015,681.12,Supplies and Services
Highways and transport,VALUATION OFFICE AGENCY,10/04/2015,"1,373.72",Capital
 Schools,BLOOMIN GARDENS & LANDSCAPES L,10/04/2015,624.59,Premises
 Schools,PHS GROUP PLC,10/04/2015,692.80,Supplies and Services
 Schools,HAYS EDUCATION PERSONNEL,01/04/2015,945.00,Employees
Adult Social Care,Church Terrace Nursing Home,02/04/2015,"1,680.00",Supplies and Services
 Schools,S Gartland,10/04/2015,700.00,Supplies and Services
Cultural Services,STOKE ON TRENT COLLEGE,02/04/2015,"7,056.03",Supplies and Services
 Schools,R A EDWARDS & PARTNERS LTD,10/04/2015,"1,309.20",Third Party
Other Education and Children's services,NEWCASTLE U LYME BOROUGH COUNC,01/04/2015,"2,195.50",Third Party
 Schools,VALUES ACADEMY,27/04/2015,"8,790.00",Supplies and Services
Adult Social Care,SOUTH STAFFS & SHROPS H'CARE N,02/04/2015,"4,172.00",Supplies and Services
 Schools,Sports Plus Scheme Ltd,10/04/2015,275.00,Employees
 Schools,Sports Plus Scheme Ltd,10/04/2015,220.00,Supplies and Services
Adult Social Care,Addiction Dependency Solutions,10/04/2015,"20,666.67",Supplies and Services
Adult Social Care,Addiction Dependency Solutions,10/04/2015,"30,666.67",Supplies and Services
Adult Social Care,Addiction Dependency Solutions,10/04/2015,"30,666.67",Supplies and Services
 Schools,iLiveSounds,10/04/2015,390.00,Supplies and Services
 Schools,iLiveSounds,10/04/2015,180.00,Supplies and Services
Adult Social Care,Derby Hospital NHS Foundation,02/04/2015,"4,350.65",Supplies and Services
 Schools,FOCUS EDUCATION,08/04/2015,875.00,Employees
 Schools,Prospero Teaching,07/04/2015,899.95,Employees
 Schools,Prospero Teaching,07/04/2015,899.95,Employees
 Schools,ABC TEACHERS LIMITED,07/04/2015,461.98,Employees
 Schools,ABC TEACHERS LIMITED,07/04/2015,321.98,Employees
 Schools,ABC TEACHERS LIMITED,07/04/2015,110.99,Employees
 Schools,ABC TEACHERS LIMITED,07/04/2015,321.98,Employees
 Schools,ABC TEACHERS LIMITED,07/04/2015,221.98,Employees
 Schools,TARA PROFESSIONAL RECRUITMENT,02/04/2015,925.00,Employees
 Schools,Academics,08/04/2015,640.00,Employees
 Schools,TES Global Limited,02/04/2015,"2,261.85",Employees
 Schools,FIRST IN SERVICE LTD,07/04/2015,651.08,Supplies and Services
 Schools,BIDDULPH HIGH SCHOOL (ACADEMY),09/04/2015,570.00,Supplies and Services
 Schools,TES Global Limited,02/04/2015,"2,661.00",Employees
 Schools,BCS Cleaning Services,13/04/2015,900.00,Premises
Other Education and Children's services, Together Trust,10/04/2015,950.00,Supplies and Services
 Schools,ITN MARK EDUCATION,01/04/2015,655.00,Employees
 Schools,ERASMUS DARWIN ACADEMY,07/04/2015,794.66,Supplies and Services
 Schools,Mellors Catering Services Ltd,09/04/2015,980.35,Supplies and Services
 Schools,Mellors Catering Services Ltd,09/04/2015,152.04,Supplies and Services
Adult Social Care,Leading Care and Health Ltd,01/04/2015,"3,050.00",Supplies and Services
 Schools,CONNEX HOLDINGS LTD,02/04/2015,450.00,Employees
 Schools,Mellors Catering Services Ltd,09/04/2015,977.75,Supplies and Services
 Schools,Mellors Catering Services Ltd,09/04/2015,22.72,Supplies and Services
 Schools,FOCUS EDUCATION,08/04/2015,605.00,Employees
 Schools,ASPIRE PEOPLE LTD,10/04/2015,"1,527.73",Employees
 Schools,Cheshire West & Chester Counci,02/04/2015,"4,122.00",Supplies and Services
 Schools,DENSTONE COLLEGE,07/04/2015,"9,998.00",Supplies and Services
 Schools,HAYS EDUCATION PERSONNEL,02/04/2015,500.00,Employees
 Schools,OFFICE LINES LTD,13/04/2015,427.90,Supplies and Services
 Schools,Artis Education Limited,01/04/2015,515.00,Employees
ICT,UNITY EDUCATION & TRAINING SER,08/04/2015,980.00,Supplies and Services
ICT,UNITY EDUCATION & TRAINING SER,08/04/2015,980.00,Supplies and Services
ICT,UNITY EDUCATION & TRAINING SER,08/04/2015,"1,400.00",Supplies and Services
ICT,UNITY EDUCATION & TRAINING SER,08/04/2015,420.00,Supplies and Services
ICT,UNITY EDUCATION & TRAINING SER,08/04/2015,980.00,Supplies and Services
ICT,UNITY EDUCATION & TRAINING SER,08/04/2015,980.00,Supplies and Services
 Schools,J L FINDLOW & SONS LTD,10/04/2015,840.00,Premises
 Schools,HAYS EDUCATION PERSONNEL,01/04/2015,500.00,Employees
 Schools,Edge Hill College,02/04/2015,"1,242.00",Employees
Other Education and Children's services,CAREWORKS LTD,01/04/2015,"75,000.00",Supplies and Services
Other Education and Children's services,RBS Invoice Finance Ltd,01/04/2015,"3,000.00",Third Party
 Schools,Hulme Hall Educational Trust L,10/04/2015,"3,150.00",Supplies and Services
 Schools,Prospero Teaching,07/04/2015,819.96,Employees
 Schools,Hulme Hall Educational Trust L,10/04/2015,"4,200.00",Supplies and Services
 Schools,Arthur Terry School,09/04/2015,750.00,Supplies and Services
 Schools,PROFESSIONAL SUPPLY SERVICE,02/04/2015,660.00,Employees
 Schools,BIFFA WASTE SERVICES LTD,10/04/2015,621.66,Supplies and Services
 Schools,H & H SPALDING (BOOKS),10/04/2015,831.84,Supplies and Services
 Schools,UNIVERSITY OF HERTFORDSHIRE,08/04/2015,640.00,Supplies and Services
 Schools,UNIVERSITY OF HERTFORDSHIRE,08/04/2015,25.00,Supplies and Services
Other Education and Children's services,PLUMBING & HEATING SERVICES,02/04/2015,987.49,Premises
 Schools,ABC TEACHERS LIMITED,07/04/2015,745.00,Supplies and Services
 Schools,H & H SPALDING (BOOKS),10/04/2015,"1,398.92",Supplies and Services
 Schools,H & H SPALDING (BOOKS),10/04/2015,649.20,Supplies and Services
Other Education and Children's services,LITTLEHALES PLANT HIRE,09/04/2015,"1,045.00",Supplies and Services
 Schools,HAYS EDUCATION PERSONNEL,02/04/2015,712.00,Employees
 Schools,SCIENCE BOFFINS,09/04/2015,565.00,Supplies and Services
 Schools,Mellors Catering Services Ltd,09/04/2015,705.60,Supplies and Services
 Schools,Mellors Catering Services Ltd,09/04/2015,432.60,Supplies and Services
 Schools,Mellors Catering Services Ltd,09/04/2015,88.15,Supplies and Services
 Schools,Mellors Catering Services Ltd,09/04/2015,12.60,Supplies and Services
 Schools,EAST STAFFS BOROUGH COUNCIL,10/04/2015,550.63,Supplies and Services
 Schools,Academics,08/04/2015,"1,333.25",Employees
 Schools,ASPIRE PEOPLE LTD,10/04/2015,895.00,Employees
 Schools,ASPIRE PEOPLE LTD,02/04/2015,495.00,Employees
 Schools,EDUCATION CITY LTD,02/04/2015,"2,430.30",Supplies and Services
 Schools,HAYS EDUCATION PERSONNEL,02/04/2015,525.00,Employees
 Schools,OFFICE FURNITURE ONLINE,07/04/2015,"1,075.00",Supplies and Services
 Schools,Smile Education Recruitment,09/04/2015,482.50,Employees
 Schools,Mellors Catering Services Ltd,09/04/2015,"1,756.15",Supplies and Services
 Schools,Mellors Catering Services Ltd,09/04/2015,"1,694.27",Supplies and Services
 Schools,Mellors Catering Services Ltd,02/04/2015,"1,718.15",Supplies and Services
 Schools,OXFORD UNIVERSITY PRESS,02/04/2015,323.84,Supplies and Services
 Schools,OXFORD UNIVERSITY PRESS,02/04/2015,"1,051.90",Supplies and Services
 Schools,CLEAN & PRISTINE,02/04/2015,750.00,Premises
 Schools,VALUES ACADEMY,27/04/2015,"8,495.50",Supplies and Services
 Schools,HAYS EDUCATION PERSONNEL,02/04/2015,470.00,Employees
 Schools,Mellors Catering Services Ltd,09/04/2015,651.00,Supplies and Services
 Schools,Mellors Catering Services Ltd,09/04/2015,49.64,Supplies and Services
 Schools,BLAKEMORE FOOD SERVICE LTD,02/04/2015,463.18,Supplies and Services
 Schools,BLAKEMORE FOOD SERVICE LTD,02/04/2015,74.97,Supplies and Services
 Schools,ABC TEACHERS LIMITED,07/04/2015,440.97,Employees
 Schools,ASPIRE PEOPLE LTD,10/04/2015,815.00,Employees
 Schools,VALUES ACADEMY,27/04/2015,"8,655.00",Supplies and Services
 Schools,HAYS EDUCATION PERSONNEL,01/04/2015,719.00,Employees
Highways and transport,CSE SITES LTD,02/04/2015,551.28,Supplies and Services
 Schools,Optimus Education,01/04/2015,732.00,Supplies and Services
 Schools,ABC TEACHERS LIMITED,07/04/2015,924.95,Employees
Other Education and Children's services,Relate Birmingham,14/04/2015,"9,591.00",Supplies and Services
 Schools,ABC TEACHERS LIMITED,07/04/2015,850.95,Employees
Other Education and Children's services,Relate Birmingham,14/04/2015,"3,340.00",Supplies and Services
Other Education and Children's services,Relate Birmingham,14/04/2015,"6,287.00",Supplies and Services
 Schools,HAYS EDUCATION PERSONNEL,01/04/2015,467.50,Employees
 Schools,EDUCATION CITY LTD,02/04/2015,"1,215.00",Supplies and Services
 Schools,MAGGIE SANGER EDUC SERVICES LT,10/04/2015,700.00,Supplies and Services
 Schools,Market Drayton Judo Club,01/04/2015,500.00,Employees
 Schools,BLACKBOARD RECRUITMENT LTD,01/04/2015,475.60,Employees
 Schools,RELIABLE INSPECTION & TEST,01/04/2015,646.85,Premises
 Schools,SOUTH STAFFORDSHIRE WATER PLC,02/04/2015,"1,118.11",Premises
 Schools,SOUTH STAFFORDSHIRE WATER PLC,02/04/2015,283.34,Premises
 Schools,FORD MAINWARING LTD,02/04/2015,540.47,Third Party
 Schools,TELFORD & WREKIN COUNCIL,07/04/2015,600.00,Supplies and Services
 Schools,ST DAVID'S COLLEGE,09/04/2015,"11,890.00",Supplies and Services
Health Trust,Morecare at Home,01/04/2015,"1,109.60",Supplies and Services
Other Education and Children's services,Prospects for Young People,01/04/2015,"3,915.00",Supplies and Services
Health Trust,Morecare at Home,01/04/2015,"1,919.60",Supplies and Services
 Schools,Virtual College Ltd,09/04/2015,437.40,Supplies and Services
 Schools,Virtual College Ltd,09/04/2015,-437.40,Supplies and Services
 Schools,GCE LLP,07/04/2015,"2,444.00",Supplies and Services
 Schools,HAYS EDUCATION PERSONNEL,02/04/2015,575.00,Employees
 Schools,HAYS EDUCATION PERSONNEL,02/04/2015,575.00,Employees
Health Trust,LSC Nursing Care & Services Lt,02/04/2015,883.69,Supplies and Services
Other Education and Children's services,BROOK STREET UK LIMITED,01/04/2015,991.32,Third Party
 Schools,DACTYL PUBLISHING,10/04/2015,456.00,Supplies and Services
 Schools,Premier Sport Ltd,10/04/2015,"1,260.00",Employees
 Schools,EAST STAFFS BOROUGH COUNCIL,07/04/2015,800.00,Supplies and Services
 Schools,EAST STAFFS BOROUGH COUNCIL,07/04/2015,800.00,Supplies and Services
 Schools,TELFORD & WREKIN COUNCIL,08/04/2015,600.00,Supplies and Services
 Schools,FOCUS EDUCATION,08/04/2015,"1,171.00",Employees
 Schools,EAST STAFFS BOROUGH COUNCIL,10/04/2015,994.50,Supplies and Services
 Schools,A ALEKSA,13/04/2015,510.00,Supplies and Services
 Schools,TEACHING PERSONNEL LTD,08/04/2015,"2,224.30",Employees
 Schools,BLAKEMORE FOOD SERVICE LTD,08/04/2015,386.96,Supplies and Services
 Schools,BLAKEMORE FOOD SERVICE LTD,08/04/2015,116.96,Supplies and Services
 Schools,BLAKEMORE FOOD SERVICE LTD,10/04/2015,440.60,Supplies and Services
 Schools,BLAKEMORE FOOD SERVICE LTD,10/04/2015,62.96,Supplies and Services
 Schools,Jigsaw ICT Solutions- More IT,09/04/2015,479.00,Supplies and Services
 Schools,EDUCATION CITY LTD,07/04/2015,"1,316.25",Supplies and Services
 Schools,INTEGRATED WATER SERVICES,07/04/2015,148.00,Premises
 Schools,INTEGRATED WATER SERVICES,07/04/2015,212.00,Premises
 Schools,INTEGRATED WATER SERVICES,07/04/2015,148.00,Premises
 CXO,INTEGRATED WATER SERVICES,07/04/2015,100.00,Premises
 Schools,INTEGRATED WATER SERVICES,07/04/2015,148.00,Premises
Corporate & Democratic Core,INTEGRATED WATER SERVICES,07/04/2015,148.00,Premises
 Schools,INTEGRATED WATER SERVICES,07/04/2015,212.00,Premises
 Schools,INTEGRATED WATER SERVICES,07/04/2015,148.00,Premises
 Schools,INTEGRATED WATER SERVICES,07/04/2015,148.00,Premises
 Schools,INTEGRATED WATER SERVICES,07/04/2015,424.00,Premises
 Schools,INTEGRATED WATER SERVICES,07/04/2015,276.00,Premises
 Schools,INTEGRATED WATER SERVICES,07/04/2015,148.00,Premises
 CXO,INTEGRATED WATER SERVICES,07/04/2015,100.00,Premises
 Schools,INTEGRATED WATER SERVICES,07/04/2015,148.00,Premises
 Schools,INTEGRATED WATER SERVICES,07/04/2015,148.00,Premises
 Schools,INTEGRATED WATER SERVICES,07/04/2015,148.00,Premises
 CXO,INTEGRATED WATER SERVICES,07/04/2015,100.00,Premises
 Schools,INTEGRATED WATER SERVICES,07/04/2015,148.00,Premises
 Schools,INTEGRATED WATER SERVICES,07/04/2015,148.00,Premises
 Schools,INTEGRATED WATER SERVICES,07/04/2015,148.00,Premises
 Schools,INTEGRATED WATER SERVICES,07/04/2015,148.00,Premises
 Schools,INTEGRATED WATER SERVICES,07/04/2015,148.00,Premises
 Schools,INTEGRATED WATER SERVICES,07/04/2015,148.00,Premises
 Schools,INTEGRATED WATER SERVICES,07/04/2015,148.00,Premises
 Schools,INTEGRATED WATER SERVICES,07/04/2015,148.00,Premises
 Schools,HAYS EDUCATION PERSONNEL,02/04/2015,540.00,Employees
 Schools,INTEGRATED WATER SERVICES,01/04/2015,148.00,Premises
Planning & Economic Development,INTEGRATED WATER SERVICES,01/04/2015,84.00,Premises
 Schools,INTEGRATED WATER SERVICES,01/04/2015,148.00,Premises
 Schools,INTEGRATED WATER SERVICES,01/04/2015,148.00,Premises
 Schools,Edge Hill College,02/04/2015,"2,484.00",Employees
Other Education and Children's services,J Kaminski,09/04/2015,675.00,Supplies and Services
 Schools,Trinity Protection Systems Ltd,07/04/2015,571.43,Capital
 Schools,RICOH UK LTD,08/04/2015,"1,429.56",Supplies and Services
 Schools,RICOH UK LTD,08/04/2015,"2,110.35",Supplies and Services
Cultural Services,M HARPER,10/04/2015,"7,025.00",Supplies and Services
 Schools,H & H SPALDING (BOOKS),01/04/2015,"1,204.80",Supplies and Services
 Schools,KINETIC Academy Limited,10/04/2015,"1,320.00",Supplies and Services
 Schools,CROPPER GROUNDS MAINTENANCE LT,10/04/2015,775.00,Premises
 Schools,H & H SPALDING (BOOKS),01/04/2015,"2,001.63",Supplies and Services
 Schools,Durham University,02/04/2015,"1,245.60",Supplies and Services
 Schools,SAAAB THROUGH SPORT LTD,13/04/2015,"3,200.00",Employees
 Schools,SMILE LTD,10/04/2015,"2,000.00",Supplies and Services
Environment,STOKE CITY COUNCIL (ALL ACCS),10/04/2015,"2,732.04",Supplies and Services
Environment,STOKE CITY COUNCIL (ALL ACCS),10/04/2015,"3,235.43",Supplies and Services
Environment,STOKE CITY COUNCIL (ALL ACCS),10/04/2015,"1,410.86",Supplies and Services
Environment,STOKE CITY COUNCIL (ALL ACCS),10/04/2015,"444,617.10",Supplies and Services
Environment,STOKE CITY COUNCIL (ALL ACCS),10/04/2015,"-330,245.74",Supplies and Services
Environment,STOKE CITY COUNCIL (ALL ACCS),10/04/2015,"6,794.37",Supplies and Services
Environment,STOKE CITY COUNCIL (ALL ACCS),10/04/2015,"24,431.52",Supplies and Services
Environment,STOKE CITY COUNCIL (ALL ACCS),10/04/2015,"17,430.95",Supplies and Services
Environment,STOKE CITY COUNCIL (ALL ACCS),10/04/2015,274.12,Supplies and Services
 Schools,SEVERN TRENT WATER,01/04/2015,"1,765.70",Premises
Environment,STOKE CITY COUNCIL (ALL ACCS),10/04/2015,"298,286.47",Supplies and Services
 Schools,HAYS EDUCATION PERSONNEL,01/04/2015,594.00,Employees
 Schools,S Gartland,07/04/2015,700.00,Supplies and Services
 Schools,ABC TEACHERS LIMITED,07/04/2015,554.97,Employees
 Schools,JELLY JAMES PUBLISHING LTD,07/04/2015,598.33,Supplies and Services
 CXO,WILKINSON ASSOCIATES,02/04/2015,"8,400.00",Employees
 CXO,Portfolio.Max,02/04/2015,"6,832.25",Employees
 Schools,Mellors Catering Services Ltd,09/04/2015,"2,668.20",Supplies and Services
 Schools,Mellors Catering Services Ltd,09/04/2015,55.10,Supplies and Services
 Schools,HAYS EDUCATION PERSONNEL,01/04/2015,775.00,Employees
Planning & Economic Development,G W Skip Hire Ltd,01/04/2015,"2,905.00",Supplies and Services
 CXO,PHS GROUP PLC,02/04/2015,"1,042.10",Supplies and Services
Adult Social Care,C Hardy,10/04/2015,850.00,Supplies and Services
Adult Social Care,Psylutions Ltd,02/04/2015,910.00,Supplies and Services
 Schools,Mellors Catering Services Ltd,09/04/2015,"1,050.00",Supplies and Services
 Schools,Mellors Catering Services Ltd,09/04/2015,323.40,Supplies and Services
 Schools,Mellors Catering Services Ltd,09/04/2015,16.80,Supplies and Services
 Schools,R Meehan,02/04/2015,578.01,Supplies and Services
 Schools,ASM SPORTS UK LTD,02/04/2015,"2,160.00",Employees
Other Education and Children's services,SPACEKRAFT LTD,09/04/2015,"2,170.00",Supplies and Services
 Schools,4 FUELS,13/04/2015,805.00,Premises
 Schools,Mellors Catering Services Ltd,09/04/2015,580.15,Supplies and Services
 Schools,Mellors Catering Services Ltd,09/04/2015,"1,285.35",Supplies and Services
 Schools,Mellors Catering Services Ltd,09/04/2015,213.62,Supplies and Services
 Schools,Mellors Catering Services Ltd,09/04/2015,25.20,Supplies and Services
 Schools,HANDS ON SCIENCE LTD,13/04/2015,804.00,Supplies and Services
 Schools,BUSINESS PRODUCTS,08/04/2015,880.20,Supplies and Services
 Schools,CROPPER GROUNDS MAINTENANCE LT,07/04/2015,826.25,Premises
 Schools,OVERLEY HALL SCHOOL LTD,02/04/2015,"46,641.66",Supplies and Services
 Schools,Rayners Special Education Trus,08/04/2015,"23,257.66",Supplies and Services
 Schools,V RAY,13/04/2015,"1,083.00",Supplies and Services
ICT,J Roberts,13/04/2015,"2,587.50",Supplies and Services
Other Education and Children's services,BARNARDO'S,02/04/2015,"3,199.00",Supplies and Services
 Schools,CRICK SOFTWARE LTD,09/04/2015,"2,452.50",Supplies and Services
Adult Social Care,K Sandhu,01/04/2015,"1,525.50",Supplies and Services
Planning & Economic Development,Mantec Technical Ceramics Ltd,01/04/2015,"1,000.00",Supplies and Services
Planning & Economic Development,James Kent Ceramics Ltd,01/04/2015,"1,000.00",Supplies and Services
Planning & Economic Development,Butterfly Conservation,14/04/2015,"1,194.22",Third Party
 Schools,COMPLETE PRODUCTION RIGGING,13/04/2015,512.50,Supplies and Services
Planning & Economic Development,Advanced Innovative Eng  (UK),01/04/2015,"2,250.94",Supplies and Services
Planning & Economic Development,Thermaset Ltd,01/04/2015,"2,000.00",Supplies and Services
 Schools,EAST STAFFS BOROUGH COUNCIL,10/04/2015,595.00,Supplies and Services
Planning & Economic Development,Raleigh Adhesive Coatings Ltd,01/04/2015,"1,499.00",Supplies and Services
 Schools,EAST STAFFS BOROUGH COUNCIL,10/04/2015,612.00,Supplies and Services
ICT,THE MOAT HOUSE ACTON TRUSSELL,02/04/2015,443.75,Supplies and Services
Cultural Services,SOUTH STAFFORDSHIRE COLLEGE,07/04/2015,800.00,Income
Adult Social Care,WESSEX LIFT CO LTD,02/04/2015,750.00,Supplies and Services
 Schools,Prospero Teaching,07/04/2015,589.95,Employees
Other Education and Children's services,Atkinson Lewis,07/04/2015,805.00,Supplies and Services
 Schools,CROPPER GROUNDS MAINTENANCE LT,07/04/2015,900.00,Premises
 Schools,Trinity Protection Systems Ltd,02/04/2015,855.25,Third Party
 Schools,D Leeming,01/04/2015,225.00,Supplies and Services
 Schools,D Leeming,01/04/2015,675.00,Supplies and Services
 Schools,G TAYLOR & SON LTD,08/04/2015,"1,000.00",Premises
 Schools,COSTCUTTERSUK.COM,02/04/2015,"1,759.00",Premises
Cultural Services,WEST CHADSMOOR FAMILY CENTRE,09/04/2015,"5,611.72",Third Party
 Schools,Elevate Education UK Pty Ltd,13/04/2015,786.00,Supplies and Services
 Schools,HAYS HR PERSONNEL,01/04/2015,875.00,Employees
 Schools,TES Global Limited,10/04/2015,"1,274.00",Employees
 Schools,HAYS EDUCATION PERSONNEL,01/04/2015,570.00,Employees
Adult Social Care,Gillian Browne Deputy Warren B,14/04/2015,"1,063.50",Premises
 Schools,Mellors Catering Services Ltd,09/04/2015,"1,555.75",Supplies and Services
 Schools,Mellors Catering Services Ltd,09/04/2015,221.45,Supplies and Services
Other Education and Children's services,Legal Service Translation & In,10/04/2015,"1,388.77",Supplies and Services
 Schools,NOE MUSIC,02/04/2015,649.00,Supplies and Services
 Schools,Mellors Catering Services Ltd,02/04/2015,"1,682.20",Supplies and Services
 Schools,Mellors Catering Services Ltd,02/04/2015,129.30,Supplies and Services
 Schools,Mellors Catering Services Ltd,09/04/2015,"1,363.95",Supplies and Services
 Schools,Mellors Catering Services Ltd,09/04/2015,98.05,Supplies and Services
 Schools,Sports Active,10/04/2015,825.00,Employees
 Schools,R A EDWARDS & PARTNERS LTD,02/04/2015,432.00,Premises
 Schools,Sports Active,10/04/2015,660.00,Employees
 Schools,CONNECT ELECTRICAL (STAFFS) LT,13/04/2015,784.13,Premises
 Schools,ASM SPORTS UK LTD,14/04/2015,"1,265.00",Employees
 Schools,Halsbury Travel Ltd,13/04/2015,"1,053.00",Supplies and Services
 Schools,Insigns,02/04/2015,832.30,Premises
 Schools,ASM SPORTS UK LTD,14/04/2015,600.00,Supplies and Services
Trading Service County Fleet Care,BRISTOL STREET MOTORS,07/04/2015,476.36,Supplies and Services
 Schools,TES Global Limited,10/04/2015,875.00,Supplies and Services
 Schools,W V HOWE (HARDWARE) LTD,01/04/2015,960.44,Supplies and Services
 Schools,Corona Energy Retail 4 Ltd,01/04/2015,846.95,Premises
Law & Governence,Weightmans LLP,02/04/2015,"11,357.84",Supplies and Services
 Schools,Corona Energy Retail 4 Ltd,01/04/2015,881.24,Premises
 Schools,Emo Oil Ltd,02/04/2015,644.32,Premises
 Schools,ABC TEACHERS LIMITED,07/04/2015,579.96,Employees
 Schools,OCR,02/04/2015,670.40,Supplies and Services
 Schools,AQA,02/04/2015,"15,198.25",Supplies and Services
Other Education and Children's services,Freedom Support Limited,08/04/2015,539.41,Supplies and Services
 Schools,NEWCASTLE CITY COUNCIL,09/04/2015,"7,000.00",Supplies and Services
Law & Governence,BURTON ON TRENT CIVIC SOC,01/04/2015,715.00,Third Party
Other Education and Children's services,AMG NURSING & CARE SERVICES,08/04/2015,855.60,Supplies and Services
Other Education and Children's services,AMG NURSING & CARE SERVICES,08/04/2015,855.60,Supplies and Services
Education services - Entrust,Entrust Support Services Ltd,01/04/2015,"505,375.00",Third Party
Education services - Entrust,Entrust Support Services Ltd,01/04/2015,"-430,869.00",Third Party
Education services - Entrust,Entrust Support Services Ltd,01/04/2015,"11,550.00",Third Party
 Schools,H BEXSON,13/04/2015,600.00,Supplies and Services
 Schools,EDUCATION CITY LTD,02/04/2015,435.00,Supplies and Services
 Schools,Joan Hingley Consultancy,08/04/2015,900.00,Employees
Adult Social Care,SOT & STAFFS FIRE AUTHORITY,01/04/2015,698.42,Supplies and Services
 Schools,Edge Hill College,02/04/2015,700.00,Supplies and Services
 Schools,P Hayfield,10/04/2015,660.00,Supplies and Services
Adult Social Care,SOT & STAFFS FIRE AUTHORITY,01/04/2015,"1,711.88",Supplies and Services
 CXO,WEST MIDS EMPLOYERS,01/04/2015,"1,500.00",Supplies and Services
 Schools,OXFORD UNIVERSITY PRESS,02/04/2015,"1,572.00",Supplies and Services
Education services - Entrust,Entrust Support Services Ltd,08/04/2015,"2,088,589.44",Third Party
Education services - Entrust,Entrust Support Services Ltd,08/04/2015,319.19,Third Party
Education services - Entrust,Entrust Support Services Ltd,08/04/2015,"128,093.44",Third Party
Education services - Entrust,Entrust Support Services Ltd,08/04/2015,"73,220.00",Third Party
Adult Social Care,NPOWER,01/04/2015,"1,021.37",Premises
 Schools,Cascaid Ltd,02/04/2015,469.99,Supplies and Services
Education services - Entrust,Entrust Support Services Ltd,08/04/2015,"1,800.00",Third Party
Adult Social Care,Corona Energy Retail 4 Ltd,01/04/2015,"1,843.56",Premises
 Schools,ASPIRE PEOPLE LTD,14/04/2015,"1,560.00",Employees
Other Education and Children's services,AMG NURSING & CARE SERVICES,22/04/2015,855.60,Supplies and Services
 Schools,HAYS EDUCATION PERSONNEL,02/04/2015,780.00,Employees
 Schools,EQ Associates Ltd,13/04/2015,650.00,Supplies and Services
 Schools,J Maddison,14/04/2015,856.25,Supplies and Services
 Schools,HAYS EDUCATION PERSONNEL,01/04/2015,945.00,Employees
Planning & Economic Development,Birmingham City Council,07/04/2015,"14,446.67",Supplies and Services
Adult Social Care,COVENTRY CITY COUNCIL,14/04/2015,799.00,Supplies and Services
 Schools,N POPOVIC T/A SCORE,02/04/2015,778.00,Supplies and Services
 Schools,WICKSONS TRAVEL,07/04/2015,570.00,Supplies and Services
 Schools,HAYS EDUCATION PERSONNEL,02/04/2015,663.00,Employees
Planning & Economic Development,Twilight Designs,01/04/2015,608.67,Supplies and Services
 Schools,A I D FUEL OILS LTD,09/04/2015,"3,034.15",Premises
 Schools,EXCEL MUSIC SCHOOLS LTD,01/04/2015,"1,260.00",Supplies and Services
ICT,E-Quality Training Ltd,13/04/2015,600.00,Supplies and Services
 Schools,TEACHING PERSONNEL LTD,08/04/2015,791.00,Employees
ICT,E-Quality Training Ltd,13/04/2015,800.00,Supplies and Services
ICT,E-Quality Training Ltd,13/04/2015,32.00,Supplies and Services
 Schools,BLOOMIN GARDENS & LANDSCAPES L,10/04/2015,466.40,Premises
ICT,E-Quality Training Ltd,13/04/2015,600.00,Supplies and Services
ICT,E-Quality Training Ltd,13/04/2015,600.00,Supplies and Services
ICT,E-Quality Training Ltd,13/04/2015,600.00,Supplies and Services
 Schools,ASPIRE PEOPLE LTD,10/04/2015,544.00,Employees
 Schools,ASPIRE PEOPLE LTD,10/04/2015,457.00,Employees
 Schools,Premier Sport Ltd,10/04/2015,981.00,Supplies and Services
 Schools,SOUTH STAFFORDSHIRE WATER PLC,02/04/2015,816.34,Premises
Entrust,Freshview Foods Ltd,02/04/2015,"17,658.38",Supplies and Services
 Schools,SOUTH STAFFORDSHIRE WATER PLC,02/04/2015,"1,091.54",Premises
Entrust,Freshview Foods Ltd,22/04/2015,86.12,Supplies and Services
Entrust,Freshview Foods Ltd,22/04/2015,288.76,Supplies and Services
Entrust,Freshview Foods Ltd,22/04/2015,109.76,Supplies and Services
Entrust,Freshview Foods Ltd,22/04/2015,208.46,Supplies and Services
 Schools,Academics,08/04/2015,970.00,Employees
 Schools,Edge Hill College,02/04/2015,"1,242.00",Supplies and Services
Entrust,WELLS FARM DAIRY,22/04/2015,70.90,Supplies and Services
Entrust,WELLS FARM DAIRY,22/04/2015,156.20,Supplies and Services
Entrust,WELLS FARM DAIRY,22/04/2015,125.00,Supplies and Services
Entrust,WELLS FARM DAIRY,22/04/2015,234.20,Supplies and Services
Law & Governence,HMCTS,01/04/2015,"2,055.00",Supplies and Services
Adult Social Care,CARE SHOP,01/04/2015,804.97,Supplies and Services
Adult Social Care,CARE SHOP,01/04/2015,51.15,Supplies and Services
Law & Governence,HMCTS,01/04/2015,"2,055.00",Supplies and Services
Adult Social Care,Positive Opportunities in Womb,14/04/2015,990.00,Supplies and Services
Adult Social Care,In Out and About Ltd,13/04/2015,"1,633.60",Supplies and Services
Adult Social Care,Support Staffordshire,07/04/2015,"5,491.80",Supplies and Services
Other Education and Children's services,S C V Y S,01/04/2015,"20,958.33",Third Party
 Schools,Durham University,02/04/2015,774.55,Supplies and Services
 Schools,Phenix Digital,14/04/2015,675.00,Supplies and Services
 Schools,BIFFA WASTE SERVICES LTD,10/04/2015,418.86,Supplies and Services
Adult Social Care,PAGE TURNER HALL & SUTTON,01/04/2015,700.00,Supplies and Services
Adult Social Care,Lifeways Community Care Ltd,07/04/2015,"23,659.12",Supplies and Services
Adult Social Care,Lifeways Community Care Ltd,07/04/2015,"15,150.00",Supplies and Services
Adult Social Care,Lifeways Community Care Ltd,07/04/2015,"27,500.00",Supplies and Services
Adult Social Care,Lifeways Community Care Ltd,02/04/2015,"2,472.33",Third Party
Adult Social Care,Lifeways Community Care Ltd,01/04/2015,"6,314.00",Supplies and Services
Adult Social Care,Lifeways Community Care Ltd,07/04/2015,"36,600.00",Supplies and Services
Adult Social Care,Helping Hands,10/04/2015,"3,416.00",Third Party
 Schools,ACTION CENTRES UK LTD,14/04/2015,"5,261.67",Supplies and Services
Other Education and Children's services,K Hulse,13/04/2015,906.85,Supplies and Services
Other Education and Children's services,K Hulse,13/04/2015,911.60,Supplies and Services
 Schools,Horizon Care & Education Group,01/04/2015,"2,924.88",Supplies and Services
 Schools,Horizon Care & Education Group,01/04/2015,"3,238.26",Supplies and Services
Adult Social Care,Housing & Care 21,01/04/2015,"8,043.84",Supplies and Services
ICT,Clickers Archery Ltd,09/04/2015,495.83,Supplies and Services
 Schools,SOLUS COACHES,01/04/2015,595.00,Supplies and Services
 Schools,TEACHERS UK LTD,13/04/2015,525.00,Employees
Highways and transport,MAYFLOWER CONTROL LTD,09/04/2015,550.80,Supplies and Services
 Schools,TEACHERS UK LTD,07/04/2015,525.00,Employees
 Schools,ESPO,01/04/2015,464.45,Supplies and Services
 Schools,Celsian Group limited,01/04/2015,"1,090.00",Employees
Adult Social Care,Stoke on Trent City Council,08/04/2015,"36,000.00",Third Party
 Schools,Academics,08/04/2015,"2,000.00",Employees
 Schools,Aquinas Education Ltd,10/04/2015,500.00,Employees
 Schools,Durham University,02/04/2015,937.80,Supplies and Services
 Schools,AQA,01/04/2015,-526.10,Supplies and Services
 Schools,SPORTS COACHING NORTHWEST,01/04/2015,"1,380.00",Supplies and Services
Adult Social Care,Sandwell & West B'ham Hsptls N,09/04/2015,664.00,Supplies and Services
Adult Social Care,Heart of England NHS F'dation,02/04/2015,"1,672.00",Supplies and Services
 Schools,TARA PROFESSIONAL RECRUITMENT,01/04/2015,565.00,Employees
 Schools,DECORER DECORATING SOLUTIONS,02/04/2015,"4,360.00",Premises
 Schools,Pitney Bowes Purchase Power,01/04/2015,512.00,Supplies and Services
 Schools,ASPIRE PEOPLE LTD,10/04/2015,660.00,Employees
Adult Social Care,Heart of England NHS F'dation,01/04/2015,"9,961.00",Supplies and Services
Adult Social Care,WALSALL HEALTHCARE NHS TRUST,09/04/2015,864.00,Supplies and Services
 Schools,Discovery Education Europe Lim,10/04/2015,530.00,Supplies and Services
Adult Social Care,WALSALL HEALTHCARE NHS TRUST,10/04/2015,"8,114.00",Supplies and Services
 Schools,ITN MARK EDUCATION,08/04/2015,569.85,Employees
 Schools,ITN MARK EDUCATION,08/04/2015,924.80,Employees
 Schools,ITN MARK EDUCATION,08/04/2015,"1,044.00",Employees
Other Education and Children's services,D Bate,10/04/2015,"2,000.00",Employees
Other Education and Children's services,Busy Bees Day Nursery,01/04/2015,599.75,Supplies and Services
 Schools,ITN MARK EDUCATION,01/04/2015,999.75,Employees
 Schools,Staffs & Stoke on Trent P'shp,01/04/2015,"22,500.00",Supplies and Services
 Schools,ITN MARK EDUCATION,01/04/2015,"1,125.00",Employees
 Schools,SOUTH STAFFORDSHIRE WATER PLC,09/04/2015,"1,795.89",Premises
 Schools,ITN MARK EDUCATION,01/04/2015,569.85,Employees
Adult Social Care,Think Jessica,14/04/2015,472.50,Supplies and Services
Adult Social Care,Think Jessica,14/04/2015,472.50,Supplies and Services
 Schools,CAPITA BUSINESS SERVICES LTD,01/04/2015,"1,025.50",Employees
 Schools,ANTHONY CHARLES LANDSCAPES,09/04/2015,960.00,Premises
 Schools,Saint Benedict,01/04/2015,"1,065.00",Employees
 Schools,RICOH UK LTD,01/04/2015,"2,569.79",Supplies and Services
Planning & Economic Development,Sciachem Ltd,02/04/2015,"1,000.00",Supplies and Services
ICT,TCHA,10/04/2015,600.00,Supplies and Services
 Schools,OCR,02/04/2015,"-1,701.70",Supplies and Services
 Schools,KONICA BUSINESS MACHINES (UK)L,02/04/2015,458.58,Supplies and Services
 Schools,ABC TEACHERS LIMITED,14/04/2015,514.97,Employees
 Schools,R A EDWARDS & PARTNERS LTD,08/04/2015,620.00,Premises
 Schools,CONNEX HOLDINGS LTD,13/04/2015,450.00,Employees
 Schools,AQA,01/04/2015,"37,616.45",Supplies and Services
 Schools,Emo Oil Ltd,09/04/2015,917.46,Premises
 Schools,AQA,02/04/2015,"13,785.55",Supplies and Services
Planning & Economic Development,FMA Process Engineering Ltd,02/04/2015,"2,450.00",Supplies and Services
 Schools,SOUTH STAFFORDSHIRE WATER PLC,02/04/2015,852.56,Premises
ICT,TCHA,10/04/2015,600.00,Supplies and Services
 Schools,ABC TEACHERS LIMITED,14/04/2015,463.96,Employees
 Schools,ABC TEACHERS LIMITED,14/04/2015,497.97,Employees
 Schools,ABC TEACHERS LIMITED,14/04/2015,79.99,Employees
 Schools,Smile Education Recruitment,14/04/2015,895.00,Employees
ICT,TCHA,10/04/2015,600.00,Supplies and Services
Planning & Economic Development,D R Anslow,01/04/2015,600.00,Supplies and Services
Highways and transport,D R Anslow,01/04/2015,225.00,Supplies and Services
 Schools,SANDERS CYCLES,14/04/2015,535.04,Supplies and Services
 Schools,Pearson Shared Services,01/04/2015,"1,386.69",Supplies and Services
Planning & Economic Development,R PROCTOR,01/04/2015,412.95,Supplies and Services
Highways and transport,R PROCTOR,01/04/2015,575.00,Supplies and Services
Planning & Economic Development,R PROCTOR,01/04/2015,325.00,Supplies and Services
Highways and transport,R PROCTOR,01/04/2015,750.00,Supplies and Services
 Schools,Burton Albion Community Trust,01/04/2015,"3,960.00",Employees
 Schools,ABC TEACHERS LIMITED,14/04/2015,504.95,Employees
Planning & Economic Development,A WILLIAMS,01/04/2015,250.00,Supplies and Services
Highways and transport,A WILLIAMS,01/04/2015,700.00,Supplies and Services
Planning & Economic Development,ATKINS TRANSPORT PLANNING,01/04/2015,"10,264.00",Supplies and Services
Planning & Economic Development,MIDLAND NEWS ASSOCIATION LTD,01/04/2015,820.00,Supplies and Services
 Schools,ABC TEACHERS LIMITED,14/04/2015,927.92,Employees
 Schools,Macquarie Equipment Finance UK,01/04/2015,681.43,Supplies and Services
 Schools,123Comms Limited,01/04/2015,"1,679.00",Supplies and Services
Planning & Economic Development,MIDLAND NEWS ASSOCIATION LTD,01/04/2015,460.00,Supplies and Services
Adult Social Care,GovNet Communications,08/04/2015,445.00,Supplies and Services
 Schools,BLACKBOARD RECRUITMENT LTD,01/04/2015,475.60,Employees
 Schools,L Smith,01/04/2015,920.00,Supplies and Services
 Schools,Pearson Shared Services,01/04/2015,"2,612.90",Supplies and Services
 Schools,MICRO LIBRARIAN SYSTEMS LTD,01/04/2015,590.00,Supplies and Services
Planning & Economic Development,A Highman,01/04/2015,625.00,Supplies and Services
Highways and transport,A Highman,01/04/2015,100.00,Supplies and Services
Planning & Economic Development,Digital Ceramic Systems Ltd,02/04/2015,500.00,Supplies and Services
 Schools,ITN MARK EDUCATION,14/04/2015,"1,125.00",Employees
 Schools,TeacherActive Ltd,01/04/2015,555.00,Employees
 Schools,ITN MARK EDUCATION,14/04/2015,569.85,Employees
 Schools,Macquarie Equipment Finance UK,01/04/2015,"1,047.69",Supplies and Services
 Schools,Prospero Teaching,01/04/2015,407.97,Employees
 Schools,Prospero Teaching,01/04/2015,"1,025.00",Employees
 Schools,Prospero Teaching,07/04/2015,271.98,Employees
 Schools,Prospero Teaching,07/04/2015,895.99,Employees
Educational Endownments,SPIN,01/04/2015,"2,297.00",Supplies and Services
Planning & Economic Development,Chiltern District Council,20/04/2015,"5,000.00",Supplies and Services
 Schools,HAYS EDUCATION PERSONNEL,01/04/2015,562.50,Employees
Highways and transport,Keycom,07/04/2015,"4,799.00",Capital
 Schools,Painsley Catholic Academy,01/04/2015,777.58,Employees
 Schools,SMILE EDUCATION RECRUITMENT,09/04/2015,925.00,Employees
 Schools,SMILE EDUCATION RECRUITMENT,09/04/2015,805.50,Employees
 Schools,ASPIRE PEOPLE LTD,14/04/2015,"1,263.00",Employees
 Schools,BOOKPOINT LTD,10/04/2015,890.00,Supplies and Services
 Schools,TeacherActive Ltd,14/04/2015,830.00,Employees
 Schools,SMART SCHOOL UNIFORM,01/04/2015,556.00,Supplies and Services
 Schools,TeacherActive Ltd,07/04/2015,975.00,Employees
ICT,MATT JOHNSON ILLUSTRATION,10/04/2015,"1,050.00",Supplies and Services
 Schools,ABC TEACHERS LIMITED,07/04/2015,"1,718.37",Employees
 Schools,FORWARD PRODUCTS (2013) LTD,08/04/2015,559.33,Supplies and Services
 Schools,DIFFERENT CLASS SOLUTIONS,14/04/2015,"1,750.00",Supplies and Services
 Schools,CROPPER GROUNDS MAINTENANCE LT,07/04/2015,866.66,Premises
 Schools,smooga Ltd,02/04/2015,"4,551.47",Supplies and Services
 Schools,L C Batty,14/04/2015,"2,090.00",Employees
 Schools,ASM SPORTS UK LTD,14/04/2015,405.00,Supplies and Services
 Schools,ASM SPORTS UK LTD,14/04/2015,99.00,Supplies and Services
 Schools,TES Global Limited,02/04/2015,789.00,Employees
 Schools,Elite Cleaning & Environmental,01/04/2015,"7,343.60",Premises
 Schools,ABC TEACHERS LIMITED,14/04/2015,896.93,Employees
 Schools,Painsley Catholic Academy,01/04/2015,777.58,Employees
 Schools,ITN MARK EDUCATION,14/04/2015,"1,140.42",Employees
 Schools,RISING STARS UK LTD,01/04/2015,600.00,Supplies and Services
 Schools,BLAKEMORE FOOD SERVICE LTD,02/04/2015,636.86,Supplies and Services
 Schools,BLAKEMORE FOOD SERVICE LTD,02/04/2015,128.31,Supplies and Services
 Schools,ASM SPORTS UK LTD,14/04/2015,"1,020.00",Employees
Health Trust,Tamworth Home Care Ltd,13/04/2015,"1,399.04",Supplies and Services
 Schools,EDUCATIONAL CONSULTANCY LTD,09/04/2015,500.00,Employees
 Schools,SEVERN TRENT WATER LTD,01/04/2015,"1,914.29",Premises
 Schools,BLACKBOARD RECRUITMENT LTD,07/04/2015,475.60,Employees
 Schools,Beanstalk,01/04/2015,560.00,Income
 Schools,ABC TEACHERS LIMITED,14/04/2015,874.95,Employees
Adult Social Care,Hays Social Care Ltd,01/04/2015,853.61,Employees
 Schools,HAYS EDUCATION PERSONNEL,08/04/2015,467.50,Employees
 Schools,Shropshire Community Leisure T,01/04/2015,441.25,Supplies and Services
 Schools,Shropshire Community Leisure T,01/04/2015,225.75,Supplies and Services
 Schools,HAYS EDUCATION PERSONNEL,08/04/2015,467.50,Employees
Health Trust,STAFFORDSHIRE RURAL SUPPORT,01/04/2015,972.00,Supplies and Services
 Schools,School Cloud Systems,10/04/2015,649.00,Supplies and Services
Health Trust,STAFFORDSHIRE RURAL SUPPORT,01/04/2015,953.00,Supplies and Services
 Schools,Ruth Miskin Literacy Ltd,02/04/2015,600.00,Supplies and Services
 Schools,Discovery Education Europe Lim,01/04/2015,"1,251.65",Supplies and Services
Adult Social Care,CARE PLUS,01/04/2015,963.75,Supplies and Services
Health Trust,Morecare at Home,01/04/2015,878.40,Supplies and Services
Health Trust,Morecare at Home,01/04/2015,860.80,Supplies and Services
Health Trust,Cheshire & Staffs Homecare Ltd,01/04/2015,908.42,Supplies and Services
 Schools,Breeze House Designs Ltd,02/04/2015,713.33,Supplies and Services
Health Trust,Cheshire & Staffs Homecare Ltd,01/04/2015,"1,601.24",Supplies and Services
 CXO,POTTERIES MARATHON,02/04/2015,"2,100.00",Third Party
 Schools,Prospero Teaching,14/04/2015,719.96,Employees
 Schools,ABC TEACHERS LIMITED,14/04/2015,"1,921.33",Employees
 Schools,SIEMENS FINANCIAL SERVICES LTD,01/04/2015,700.00,Employees
 Schools,M GREAVES,01/04/2015,700.00,Supplies and Services
 Schools,Mass Sports,13/04/2015,875.00,Supplies and Services
Adult Social Care,Tillington Hall Hotel,13/04/2015,250.00,Supplies and Services
Adult Social Care,Tillington Hall Hotel,13/04/2015,333.33,Supplies and Services
Adult Social Care,Tillington Hall Hotel,13/04/2015,15.00,Supplies and Services
Adult Social Care,Tillington Hall Hotel,13/04/2015,54.17,Supplies and Services
 Schools,Mass Sports,13/04/2015,800.00,Supplies and Services
 Schools,ANGEL SOLUTIONS LTD,14/04/2015,450.00,Supplies and Services
 Schools,Painsley Catholic Academy,08/04/2015,"1,305.00",Employees
 Schools,WM M BRIERS & SON (TAMWORTH) L,01/04/2015,"1,697.25",Supplies and Services
 Schools,NATIONAL TEACHING ADVISORY SER,01/04/2015,540.00,Supplies and Services
Adult Social Care,OPCC Staffordshire,01/04/2015,"12,201.00",Premises
 Schools,NATIONAL TEACHING ADVISORY SER,01/04/2015,780.00,Supplies and Services
 Schools,NPOWER,14/04/2015,602.29,Premises
 Schools,SENGARD,14/04/2015,990.00,Premises
 Schools,NPOWER,02/04/2015,718.06,Premises
 Schools,Servicemaster Ltd,01/04/2015,"1,947.13",Premises
Planning & Economic Development,K Slater,01/04/2015,225.00,Supplies and Services
Highways and transport,K Slater,01/04/2015,700.00,Supplies and Services
 Schools,WEST MERCIA SUPPLIES,10/04/2015,596.14,Supplies and Services
 Schools,NPOWER,01/04/2015,672.22,Premises
 Schools,ABC TEACHERS LIMITED,14/04/2015,459.96,Employees
 Schools,ABC TEACHERS LIMITED,14/04/2015,500.00,Employees
 Schools,ABC TEACHERS LIMITED,14/04/2015,270.00,Employees
 Schools,ABC TEACHERS LIMITED,14/04/2015,807.93,Employees
Adult Social Care,CANNOCK CHASE COUNCIL,08/04/2015,"1,645.00",Premises
 CXO,CIPD ENTERPRISES LTD,14/04/2015,"5,656.05",Supplies and Services
 CXO,CIPD ENTERPRISES LTD,14/04/2015,"6,000.00",Supplies and Services
 Schools,Horizon Care Ltd,01/04/2015,"12,675.00",Supplies and Services
 Schools,ABC TEACHERS LIMITED,14/04/2015,429.98,Employees
Health Trust,Sanctuary Housing Association,01/04/2015,"3,350.70",Premises
 Schools,CHESTER ZOO (NTH ENG ZOO SOC),09/04/2015,"1,045.00",Supplies and Services
Other Education and Children's services,STAFFORDSHIRE MOORLANDS DIS CN,01/04/2015,"12,000.00",Supplies and Services
 Schools,EDUCATE SCHOOL SERVICES LTD,10/04/2015,"1,550.00",Supplies and Services
Highways and transport,RICOH UK LTD,07/04/2015,693.84,Capital
Planning & Economic Development,SPECIALIZED CONCEPT STORE,01/04/2015,"2,436.57",Supplies and Services
Planning & Economic Development,SPECIALIZED CONCEPT STORE,01/04/2015,600.00,Supplies and Services
 Schools,SEVERN TRENT WATER,01/04/2015,"1,806.98",Premises
Property,First City Ltd,07/04/2015,"10,125.00",Capital
Property,FPCR Environment & Design Ltd,09/04/2015,"15,747.41",Capital
 Schools,SEVERN TRENT WATER LTD,01/04/2015,"1,062.10",Premises
 Schools,SEVERN TRENT WATER LTD,01/04/2015,"1,143.58",Premises
Adult Social Care,Task Works CIC,08/04/2015,"2,589.60",Supplies and Services
 Schools,Wilnecote High School Academy,01/04/2015,546.00,Supplies and Services
 Schools,THE BEAUDESERT TRUST,02/04/2015,576.60,Supplies and Services
 Schools,P COLLINS,14/04/2015,"1,229.15",Supplies and Services
 Schools,THE BEAUDESERT TRUST,02/04/2015,576.55,Supplies and Services
 Schools,ABC TEACHERS LIMITED,14/04/2015,"1,109.94",Employees
 Schools,THE BEAUDESERT TRUST,02/04/2015,576.60,Supplies and Services
Other Education and Children's services,Stafford & Rural Homes,01/04/2015,"5,451.78",Supplies and Services
 Schools,KIDS ADVENTUROUS ACTIVITIES,01/04/2015,"1,980.00",Supplies and Services
 Schools,Acti Sport Coaching Ltd,14/04/2015,900.00,Supplies and Services
 Schools,L GLYNN-HUISMAN,17/04/2015,900.00,Employees
 Schools,Newmarket Holidays,08/04/2015,"2,824.00",Supplies and Services
 Schools,BLAKEMORE FOOD SERVICE LTD,13/04/2015,389.53,Supplies and Services
 Schools,BLAKEMORE FOOD SERVICE LTD,13/04/2015,128.19,Supplies and Services
 Schools,ABC TEACHERS LIMITED,14/04/2015,854.95,Employees
 Schools,Beenotice Ltd,09/04/2015,635.00,Supplies and Services
 Schools,FOCUS EDUCATION,08/04/2015,"1,050.00",Employees
Other Education and Children's services,HOME INSTEAD SENIOR CARE,01/04/2015,"1,931.67",Transport
 Schools,123 Comms Ltd,01/04/2015,"1,497.00",Supplies and Services
Other Education and Children's services,EVOLVE YP,01/04/2015,"81,453.00",Supplies and Services
 Schools,HANCHURCH ELECTRICAL SERVICES,14/04/2015,601.33,Premises
 Schools,FLEET (LINE MARKERS) LTD,02/04/2015,427.30,Premises
 Schools,TARA PROFESSIONAL RECRUITMENT,13/04/2015,925.00,Employees
 Schools,Discovery Education Europe Lim,15/04/2015,"1,357.10",Supplies and Services
 Schools,New Era Education Ltd,02/04/2015,"2,158.75",Supplies and Services
Trading Service Scientific Services,TELFORD & WREKIN COUNCIL,13/04/2015,810.00,Supplies and Services
Adult Social Care,NEWCASTLE U LYME BOROUGH COUNC,07/04/2015,"11,792.00",Supplies and Services
 Schools,JOHN MAIN LTD,14/04/2015,"1,970.00",Premises
 Schools,FORTRESS RECYCLING LTD,15/04/2015,"2,701.07",Premises
 Schools,STAFFORDSHIRE MOORLANDS DIS CN,15/04/2015,"1,626.90",Premises
 Schools,RESULTS SQUARED LTD,01/04/2015,"1,800.00",Supplies and Services
 Schools,STAFFORDSHIRE MOORLANDS DIS CN,29/04/2015,"1,009.39",Supplies and Services
 Schools,PHS GROUP PLC,01/04/2015,484.12,Premises
Law & Governence,Lexglade Ltd,14/04/2015,"2,590.55",Employees
 Schools,CAPITA BUSINESS SERVICES LTD,01/04/2015,"1,995.00",Supplies and Services
 Schools,Rosenglen Limited,02/04/2015,"1,305.00",Employees
Education services - Entrust,Entrust Support Services Ltd,01/04/2015,"127,440.00",Third Party
 Schools,SIEMENS FINANCIAL SERVICES LTD,15/04/2015,600.00,Supplies and Services
Education services - Entrust,Entrust Support Services Ltd,01/04/2015,"3,720.00",Third Party
 Schools,Teachers2Parents Ltd,23/04/2015,"1,105.00",Supplies and Services
 Schools,MAJESTIC TRAVEL,14/04/2015,"8,316.00",Transport
 Schools,BIFFA WASTE SERVICES LTD,15/04/2015,520.26,Supplies and Services
 Schools,STAFFORDSHIRE MOORLANDS DIS CN,15/04/2015,"1,009.39",Supplies and Services
 Schools,SOUTH STAFFORDSHIRE COLLEGE,02/04/2015,"6,657.00",Supplies and Services
Other Education and Children's services,NW Sexual Abuse Consultancy,10/04/2015,600.00,Supplies and Services
Childrens Services,Bright Stars Day Care Ltd,15/04/2015,"5,000.00",Capital
 Schools,STAFFORDSHIRE MOORLANDS DIS CN,09/04/2015,"4,856.05",Premises
 Schools,STAFFORDSHIRE MOORLANDS DIS CN,09/04/2015,696.00,Premises
Finance,RAIL SETTLEMENT PLAN LTD,10/04/2015,"2,659.85",Transport
 Schools,SF Software Limited T/A Pebble,01/04/2015,499.00,Supplies and Services
 Schools,NEWCASTLE U LYME BOROUGH COUNC,15/04/2015,"13,212.40",Premises
 Schools,Painsley Catholic Academy,14/04/2015,777.58,Employees
 Schools,SEVERN TRENT WATER LTD,01/04/2015,"1,217.99",Premises
 Schools,Schools Advisory Service,15/04/2015,"7,501.12",Employees
Other Education and Children's services,Ami Creative,02/04/2015,"2,035.00",Supplies and Services
 Schools,NEXUS THE EDUCATORS CONN LTD,10/04/2015,"1,923.94",Supplies and Services
 Schools,Teachers2Parents Ltd,01/04/2015,800.00,Supplies and Services
 Schools,Plas Dolau,08/04/2015,612.50,Supplies and Services
 Schools,Discovery Education Europe Lim,01/04/2015,970.60,Supplies and Services
 Schools,E L S Euro Ltd,10/04/2015,449.88,Supplies and Services
 Schools,E L S Euro Ltd,01/04/2015,573.12,Supplies and Services
 Schools,Pebble,15/04/2015,699.00,Supplies and Services
 Schools,Pebble,14/04/2015,599.00,Supplies and Services
 Schools,Beanstalk,02/04/2015,810.00,Supplies and Services
 Schools,SUPER SHARKY'S SWIM SCHOOL LTD,14/04/2015,"1,305.00",Supplies and Services
 Schools,S L Morris,14/04/2015,843.75,Supplies and Services
Planning & Economic Development,PHS GROUP PLC,02/04/2015,"3,673.28",Supplies and Services
Adult Social Care,Ashtenne Industrl Fnd Ltd Prtn,15/04/2015,"2,193.67",Supplies and Services
 Schools,SEVERN TRENT WATER LTD,15/04/2015,"1,529.77",Premises
Planning & Economic Development,METRIC GROUP LTD,02/04/2015,547.20,Supplies and Services
 Schools,DIOCESAN EDUCATION SERVICE,01/04/2015,"3,340.00",Premises
Adult Social Care,Ashtenne Industrl Fnd Ltd Prtn,08/04/2015,"1,124.51",Supplies and Services
 Schools,Corona Energy Retail 4 Ltd,02/04/2015,584.16,Premises
 Schools,Tucasi Ltd,15/04/2015,568.05,Supplies and Services
 Schools,EDUCATION CITY LTD,01/04/2015,"1,753.10",Supplies and Services
 Schools,SEVERN TRENT WATER,01/04/2015,964.01,Premises
 Schools,RISING STARS UK LTD,08/04/2015,485.95,Supplies and Services
Other Education and Children's services,Oxford Brookes University,01/04/2015,"2,580.00",Supplies and Services
 Schools,R A EDWARDS & PARTNERS LTD,14/04/2015,534.00,Premises
Adult Social Care,BJC Consulting Services - Nott,07/04/2015,"2,093.60",Supplies and Services
 Schools,Teachers2Parents Ltd,15/04/2015,999.00,Supplies and Services
 Schools,HAYS EDUCATION PERSONNEL,10/04/2015,440.00,Employees
 Schools,TARA PROFESSIONAL RECRUITMENT,13/04/2015,925.00,Employees
 Schools,DIOCESAN EDUCATION SERVICE,07/04/2015,"1,022.82",Premises
 Schools,FIRST PERSON SUPPLY,14/04/2015,240.00,Supplies and Services
 Schools,FIRST PERSON SUPPLY,14/04/2015,550.00,Supplies and Services
 Schools,ABC TEACHERS LIMITED,14/04/2015,554.97,Employees
 Schools,ASPIRE PEOPLE LTD,10/04/2015,495.00,Employees
 Schools,R A EDWARDS & PARTNERS LTD,02/04/2015,"2,196.00",Capital
 Schools,Discovery Education Europe Lim,15/04/2015,"1,297.80",Supplies and Services
 Schools,BIFFA WASTE SERVICES LTD,10/04/2015,520.26,Supplies and Services
 Schools,ASPIRE PEOPLE LTD,15/04/2015,"1,074.00",Employees
 Schools,ASPIRE PEOPLE LTD,15/04/2015,560.00,Employees
 Schools,Staffordshire Education Supply,02/04/2015,"1,134.00",Employees
 Schools,ANGEL SOLUTIONS LTD,15/04/2015,"1,275.00",Supplies and Services
 Schools,ASPIRE PEOPLE LTD,17/04/2015,189.00,Employees
 Schools,ASPIRE PEOPLE LTD,17/04/2015,378.00,Employees
 Schools,ASPIRE PEOPLE LTD,17/04/2015,945.00,Employees
 Schools,ASPIRE PEOPLE LTD,17/04/2015,189.00,Employees
 Schools,ASPIRE PEOPLE LTD,17/04/2015,567.00,Employees
 Schools,ASPIRE PEOPLE LTD,17/04/2015,112.50,Employees
 Schools,STAFFORDSHIRE MOORLANDS DIS CN,01/04/2015,"20,508.80",Premises
 Schools,R A EDWARDS & PARTNERS LTD,02/04/2015,"15,225.00",Capital
 Schools,TAMWORTH BOROUGH COUNCIL,15/04/2015,"5,521.60",Premises
 Schools,SEVERN TRENT WATER,02/04/2015,"5,371.67",Premises
 Schools,AQA,02/04/2015,"26,740.65",Supplies and Services
 Schools,TES Global Limited,10/04/2015,"2,903.60",Employees
 Schools,PEARSON EDUCATION LTD,01/04/2015,"1,924.55",Supplies and Services
 Schools,TES Global Limited,02/04/2015,"3,416.00",Employees
 Schools,Premier Sport Ltd,10/04/2015,520.00,Supplies and Services
 Schools,OCR,02/04/2015,"15,823.80",Supplies and Services
 Schools,SCHOOL WEBSITE,14/04/2015,500.00,Supplies and Services
 Schools,SOUTH STAFFORDSHIRE WATER PLC,02/04/2015,"1,695.84",Premises
 Schools,C HOLLINGHURST,13/04/2015,"1,350.00",Supplies and Services
Adult Social Care,Macro Media Ltd,01/04/2015,795.00,Supplies and Services
 CXO,Stafford & District Polish Ass,09/04/2015,"3,750.00",Supplies and Services
 Schools,ABC TEACHERS LIMITED,01/04/2015,"1,040.30",Employees
 Schools,ABC TEACHERS LIMITED,01/04/2015,347.97,Employees
 Schools,ABC TEACHERS LIMITED,01/04/2015,161.98,Employees
 Schools,BIFFA WASTE SERVICES LTD,10/04/2015,"2,051.01",Supplies and Services
 Schools,FOCUS EDUCATION (UK) LTD,14/04/2015,560.00,Employees
 Schools,RICOH UK LTD,02/04/2015,"4,429.15",Supplies and Services
 Schools,Edge Hill College,02/04/2015,700.00,Employees
 Schools,TeacherActive Ltd,14/04/2015,515.00,Employees
 Schools,Buildbase,09/04/2015,"1,476.08",Supplies and Services
 Schools,Lichfield Diocesan Academies S,07/04/2015,700.00,Employees
 Schools,4Imprint Direct Ltd,01/04/2015,"1,572.95",Supplies and Services
 Schools,Forward Products (2013) Ltd,02/04/2015,"3,381.88",Supplies and Services
 Schools,RM Education Plc,01/04/2015,523.95,Supplies and Services
 Schools,Factor 21 plc,01/04/2015,"1,815.00",Supplies and Services
 Schools,ASPIRE PEOPLE LTD,01/04/2015,603.00,Employees
Cultural Services,Sporting Communities CIC,02/04/2015,965.00,Supplies and Services
 Schools,ASM SPORTS UK LTD,14/04/2015,"1,440.00",Employees
 Schools,SEVERN TRENT WATER LTD,01/04/2015,"1,568.01",Premises
Cultural Services,M LIPPETT,10/04/2015,500.00,Supplies and Services
Cultural Services,M LIPPETT,10/04/2015,100.00,Third Party
Cultural Services,L Hernandez,15/04/2015,500.00,Income
 Schools,West Midlands Sports Developme,02/04/2015,530.00,Employees
 Schools,ASPIRE PEOPLE LTD,14/04/2015,767.00,Employees
 Schools,ASPIRE PEOPLE LTD,14/04/2015,308.00,Employees
Adult Social Care,HAWTHORN HOUSE,02/04/2015,"1,163.05",Income
 Schools,ASPIRE PEOPLE LTD,10/04/2015,672.00,Supplies and Services
 Schools,Reed Specialist Recruitment Lt,02/04/2015,786.03,Employees
 Schools,Smile Education Recruitment,14/04/2015,169.00,Employees
 Schools,Smile Education Recruitment,14/04/2015,80.00,Employees
 Schools,Smile Education Recruitment,14/04/2015,20.00,Employees
 Schools,Smile Education Recruitment,14/04/2015,740.00,Employees
 Schools,MICRO LIBRARIAN SYSTEMS LTD,21/04/2015,"1,040.00",Supplies and Services
 Schools,L Hirst,02/04/2015,967.50,Supplies and Services
 Schools,RM Education Plc,21/04/2015,"2,565.00",Supplies and Services
Adult Social Care,SPECIALIST COMPUTER CENTRES PL,02/04/2015,"1,900.00",Supplies and Services
Adult Social Care,SPECIALIST COMPUTER CENTRES PL,02/04/2015,"3,325.00",Supplies and Services
 Schools,CLASS INSURANCE,10/04/2015,"1,690.60",Supplies and Services
 Schools,Discovery Education Europe Lim,02/04/2015,672.40,Supplies and Services
 Schools,NEWCASTLE BOROUGH COUNCIL,08/04/2015,535.20,Supplies and Services
 Schools,WM M BRIERS & SON (TAMWORTH) L,02/04/2015,463.05,Supplies and Services
 Schools,ABC TEACHERS LIMITED,14/04/2015,461.98,Employees
 Schools,ABC TEACHERS LIMITED,14/04/2015,160.99,Employees
 Schools,ABC TEACHERS LIMITED,14/04/2015,160.99,Employees
 Schools,ABC TEACHERS LIMITED,14/04/2015,482.97,Employees
 Schools,SEVERN TRENT WATER LTD,15/04/2015,861.32,Premises
 Schools,ABC TEACHERS LIMITED,14/04/2015,969.96,Employees
Other Education and Children's services,EVOLVE YP,02/04/2015,"2,559.23",Third Party
Other Education and Children's services,EVOLVE YP,02/04/2015,372.00,Third Party
Other Education and Children's services,EVOLVE YP,02/04/2015,144.00,Third Party
Other Education and Children's services,EVOLVE YP,02/04/2015,"1,811.94",Third Party
 Schools,Discovery Education Europe Lim,15/04/2015,"1,247.00",Supplies and Services
 Schools,Harrington Bates,17/04/2015,"5,492.54",Supplies and Services
 Schools,TARA PROFESSIONAL RECRUITMENT,13/04/2015,925.00,Employees
 Schools,Syscap Leasing Company,07/04/2015,446.71,Supplies and Services
 Schools,PHS LTD,15/04/2015,"1,948.23",Supplies and Services
 Schools,ABC TEACHERS LIMITED,01/04/2015,"-1,040.30",Employees
 Schools,ABC TEACHERS LIMITED,01/04/2015,-347.97,Employees
 Schools,ABC TEACHERS LIMITED,01/04/2015,-161.98,Employees
 Schools,GEES (IRONMONGERS),10/04/2015,239.70,Supplies and Services
 Schools,GEES (IRONMONGERS),10/04/2015,945.69,Supplies and Services
 Schools,BRIMSTONE ADVANTAGE LTD,15/04/2015,490.00,Supplies and Services
 Schools,BRIMSTONE ADVANTAGE LTD,15/04/2015,42.68,Supplies and Services
 Schools,ABC TEACHERS LIMITED,14/04/2015,184.99,Employees
 Schools,ABC TEACHERS LIMITED,14/04/2015,92.79,Employees
 Schools,ABC TEACHERS LIMITED,14/04/2015,134.98,Employees
 Schools,ABC TEACHERS LIMITED,14/04/2015,22.50,Employees
 Schools,ABC TEACHERS LIMITED,14/04/2015,23.20,Employees
 Schools,ABC TEACHERS LIMITED,14/04/2015,22.50,Employees
 Schools,ABC TEACHERS LIMITED,14/04/2015,765.96,Employees
 Schools,INTEGRATED WATER SERVICES,07/04/2015,148.00,Premises
Adult Social Care,INTEGRATED WATER SERVICES,07/04/2015,100.00,Premises
 Schools,INTEGRATED WATER SERVICES,07/04/2015,148.00,Premises
 Schools,INTEGRATED WATER SERVICES,07/04/2015,148.00,Premises
 CXO,INTEGRATED WATER SERVICES,07/04/2015,148.00,Premises
 Schools,INTEGRATED WATER SERVICES,07/04/2015,148.00,Premises
 Schools,INTEGRATED WATER SERVICES,07/04/2015,100.00,Premises
 Schools,INTEGRATED WATER SERVICES,07/04/2015,148.00,Premises
 Schools,INTEGRATED WATER SERVICES,07/04/2015,276.00,Premises
 Schools,INTEGRATED WATER SERVICES,07/04/2015,424.00,Premises
 Schools,INTEGRATED WATER SERVICES,07/04/2015,424.00,Premises
 CXO,INTEGRATED WATER SERVICES,07/04/2015,100.00,Premises
 Schools,RUGELEY OPEN SPACES ASSOCIATIO,17/04/2015,"1,500.00",Premises
ICT,FRANCESCO GROUP HOLDINGS LTD,02/04/2015,"5,650.00",Supplies and Services
Health Trust,INTEGRATED WATER SERVICES,07/04/2015,84.00,Premises
Corporate & Democratic Core,INTEGRATED WATER SERVICES,07/04/2015,148.00,Premises
 CXO,INTEGRATED WATER SERVICES,07/04/2015,84.00,Premises
 Schools,INTEGRATED WATER SERVICES,07/04/2015,148.00,Premises
 CXO,INTEGRATED WATER SERVICES,07/04/2015,100.00,Premises
 Schools,ITN MARK EDUCATION,08/04/2015,975.00,Employees
 Schools,INTEGRATED WATER SERVICES,07/04/2015,424.00,Premises
Corporate & Democratic Core,INTEGRATED WATER SERVICES,07/04/2015,148.00,Premises
 Schools,INTEGRATED WATER SERVICES,07/04/2015,148.00,Premises
 Schools,INTEGRATED WATER SERVICES,07/04/2015,148.00,Premises
 Schools,INTEGRATED WATER SERVICES,07/04/2015,212.00,Premises
 Schools,INTEGRATED WATER SERVICES,07/04/2015,148.00,Premises
 CXO,SOUTH STAFFORDSHIRE WATER PLC,02/04/2015,761.52,Premises
 CXO,PHS GROUP PLC,02/04/2015,"1,257.94",Supplies and Services
 CXO,SG4 Consulting,02/04/2015,"11,000.00",Employees
 CXO,myProteus Ltd,02/04/2015,833.34,Supplies and Services
 Schools,Halsbury Travel Ltd,08/04/2015,"3,380.00",Supplies and Services
Corporate & Democratic Core,Maximeyes Security Ltd,02/04/2015,"1,057.50",Supplies and Services
Corporate & Democratic Core,Maximeyes Security Ltd,02/04/2015,"1,057.50",Supplies and Services
 Schools,ABC TEACHERS LIMITED,14/04/2015,"1,040.30",Employees
 Schools,ABC TEACHERS LIMITED,14/04/2015,347.97,Employees
 Schools,ABC TEACHERS LIMITED,14/04/2015,161.98,Employees
 Schools,CLEANING FORCE OFFICE CLEANERS,14/04/2015,"2,099.86",Premises
 Schools,CLEANING FORCE OFFICE CLEANERS,14/04/2015,68.35,Premises
 Schools,Small Bubble Ltd,02/04/2015,605.00,Employees
 Schools,NPOWER,22/04/2015,581.64,Premises
 Schools,WALTON HALL ACADEMY,02/04/2015,"315,190.00",Supplies and Services
 Schools,TAXICO,14/04/2015,595.00,Supplies and Services
 Schools,BLACKFRIARS ACADEMY,02/04/2015,"143,780.00",Supplies and Services
 Schools,ABC TEACHERS LIMITED,14/04/2015,"1,693.37",Employees
 Schools,SMILE EDUCATION RECRUITMENT,14/04/2015,925.00,Employees
 Schools,COPPICE ACADEMY,02/04/2015,"50,340.00",Supplies and Services
 Schools,SOUTH STAFFORDSHIRE COLLEGE,13/04/2015,"2,808.00",Supplies and Services
 Schools,STAFFORDSHIRE MOORLANDS DIS CN,29/04/2015,533.02,Supplies and Services
 Schools,ROY DYKE ELECTRICAL LTD,02/04/2015,981.12,Premises
 Schools,NOVATECH DIRECT PLC,09/04/2015,"2,355.28",Supplies and Services
 Schools,CMSC,14/04/2015,660.00,Employees
 Schools,NOVATECH DIRECT PLC,10/04/2015,"2,380.00",Supplies and Services
Finance,Haines Watts,09/04/2015,"2,600.00",Employees
Finance,Haines Watts,09/04/2015,"2,600.00",Employees
 Schools,RISING STARS UK LTD,02/04/2015,"1,844.96",Supplies and Services
 Schools,CAPITA BUSINESS SERVICES LTD,07/04/2015,"3,990.00",Supplies and Services
 Schools,PHS GROUP PLC,02/04/2015,487.26,Premises
 Schools,PHS GROUP PLC,07/04/2015,"3,410.09",Premises
 Schools,FIREHORSE PRODUCTIONS,02/04/2015,435.00,Supplies and Services
 Schools,MONARCH EDUCATION LIMITED,07/04/2015,974.20,Employees
Corporate & Democratic Core,CALBARRIE COMPLIANCE SERVICES,02/04/2015,551.25,Premises
 Schools,SEVERN TRENT WATER LTD,07/04/2015,"6,909.76",Premises
Corporate & Democratic Core,Staton Young (Residential) Ltd,02/04/2015,"1,060.00",Premises
 Schools,WASHINGTON & RILEY LTD,10/04/2015,516.14,Premises
Corporate & Democratic Core,Staton Young (Residential) Ltd,15/04/2015,"1,060.00",Premises
 Schools,SEVERN TRENT WATER LTD,07/04/2015,"3,292.93",Premises
 Schools,PHS GROUP PLC,22/04/2015,548.40,Supplies and Services
 Schools,STAFFORDSHIRE MOORLANDS DIS CN,29/04/2015,533.02,Supplies and Services
 Schools,TAMWORTH BOROUGH COUNCIL,07/04/2015,"4,732.80",Premises
 Schools,G Smith,14/04/2015,531.62,Supplies and Services
 Schools,WICKSONS TRAVEL,10/04/2015,"3,100.00",Transport
 Schools,SEVERN TRENT WATER,22/04/2015,784.84,Premises
Corporate & Democratic Core,WOMBOURNE PARISH COUNCIL,02/04/2015,780.00,Premises
Corporate & Democratic Core,WOMBOURNE PARISH COUNCIL,02/04/2015,"1,877.50",Premises
 Schools,SOUTH STAFFORDSHIRE COLLEGE,02/04/2015,"1,350.00",Supplies and Services
 Schools,SOUTH STAFFORDSHIRE COLLEGE,14/04/2015,"1,237.50",Supplies and Services
 Schools,SOUTH STAFFORDSHIRE COLLEGE,14/04/2015,"2,587.50",Supplies and Services
 Schools,Creat3d,14/04/2015,"1,304.75",Supplies and Services
Corporate & Democratic Core,Hogarth Investments (1961) Ltd,08/04/2015,"17,500.00",Premises
Corporate & Democratic Core,Hogarth Investments (1961) Ltd,08/04/2015,"1,142.35",Premises
 Schools,SOUTH STAFFORDSHIRE WATER PLC,02/04/2015,"2,102.30",Premises
 Schools,CONNEX HOLDINGS LTD,13/04/2015,425.00,Employees
Adult Social Care,CREATIVE SUPPORT,07/04/2015,"17,769.18",Third Party
Adult Social Care,CREATIVE SUPPORT,07/04/2015,-547.68,Income
Adult Social Care,CREATIVE SUPPORT,07/04/2015,-364.40,Income
Other Education and Children's services,Cji-Ltd,02/04/2015,"1,004.00",Supplies and Services
 Schools,Lichfield Diocesan Academies S,07/04/2015,700.00,Supplies and Services
 Schools,Edge Hill College,07/04/2015,700.00,Employees
Other Education and Children's services,Cji-Ltd,02/04/2015,840.00,Supplies and Services
 Schools,Trinity Protection Systems Ltd,08/04/2015,63.00,Premises
 Schools,Trinity Protection Systems Ltd,08/04/2015,63.00,Premises
 CXO,Trinity Protection Systems Ltd,08/04/2015,152.50,Premises
 Schools,Trinity Protection Systems Ltd,08/04/2015,152.50,Premises
Corporate & Democratic Core,Trinity Protection Systems Ltd,08/04/2015,112.00,Premises
 CXO,Trinity Protection Systems Ltd,08/04/2015,63.00,Premises
 CXO,Trinity Protection Systems Ltd,08/04/2015,63.00,Premises
 Schools,Trinity Protection Systems Ltd,08/04/2015,112.00,Premises
 Schools,Trinity Protection Systems Ltd,08/04/2015,112.00,Premises
 Schools,Trinity Protection Systems Ltd,08/04/2015,63.00,Premises
 Schools,Trinity Protection Systems Ltd,08/04/2015,63.00,Premises
Planning & Economic Development,Trinity Protection Systems Ltd,08/04/2015,63.00,Premises
 Schools,Trinity Protection Systems Ltd,08/04/2015,63.00,Premises
 Schools,Trinity Protection Systems Ltd,08/04/2015,112.00,Premises
 Schools,Trinity Protection Systems Ltd,08/04/2015,152.50,Premises
 Schools,Trinity Protection Systems Ltd,08/04/2015,112.00,Premises
 Schools,Trinity Protection Systems Ltd,08/04/2015,63.00,Premises
 Schools,Trinity Protection Systems Ltd,08/04/2015,112.00,Premises
 Schools,Trinity Protection Systems Ltd,08/04/2015,112.00,Premises
Corporate & Democratic Core,Trinity Protection Systems Ltd,08/04/2015,63.00,Premises
Adult Social Care,Trinity Protection Systems Ltd,08/04/2015,227.50,Premises
Corporate & Democratic Core,Trinity Protection Systems Ltd,08/04/2015,112.00,Premises
 Schools,Trinity Protection Systems Ltd,08/04/2015,63.00,Premises
 Schools,Trinity Protection Systems Ltd,08/04/2015,112.00,Premises
 Schools,Trinity Protection Systems Ltd,08/04/2015,63.00,Premises
 Schools,Trinity Protection Systems Ltd,08/04/2015,63.00,Premises
 Schools,Trinity Protection Systems Ltd,08/04/2015,63.00,Premises
 CXO,Trinity Protection Systems Ltd,08/04/2015,112.00,Premises
Corporate & Democratic Core,Trinity Protection Systems Ltd,08/04/2015,112.00,Premises
 Schools,Trinity Protection Systems Ltd,08/04/2015,152.50,Premises
 Schools,Trinity Protection Systems Ltd,08/04/2015,152.50,Premises
Corporate & Democratic Core,Trinity Protection Systems Ltd,08/04/2015,112.00,Premises
 Schools,Trinity Protection Systems Ltd,08/04/2015,152.50,Premises
 CXO,Trinity Protection Systems Ltd,08/04/2015,63.00,Premises
 Schools,Trinity Protection Systems Ltd,08/04/2015,112.00,Premises
 Schools,Trinity Protection Systems Ltd,08/04/2015,152.50,Premises
Corporate & Democratic Core,Trinity Protection Systems Ltd,08/04/2015,112.00,Premises
 Schools,Trinity Protection Systems Ltd,08/04/2015,112.00,Premises
 Schools,Trinity Protection Systems Ltd,08/04/2015,63.00,Premises
Adult Social Care,MOORLANDS HOUSING,08/04/2015,"150,000.00",Capital
 Schools,Discovery Education Europe Lim,02/04/2015,690.00,Supplies and Services
Other Education and Children's services,IMAP CENTRE LTD,02/04/2015,"4,112.00",Third Party
 Schools,Schools Advisory Service,15/04/2015,"1,864.41",Employees
 Schools,SOUTH STAFFORDSHIRE WATER PLC,02/04/2015,916.61,Premises
 Schools,Phenix Digital,15/04/2015,"2,000.00",Supplies and Services
 Schools,TEACHERS2PARENTS,02/04/2015,545.00,Supplies and Services
 Schools,SOUTH STAFFORDSHIRE WATER PLC,02/04/2015,"12,337.97",Premises
 Schools,ABC TEACHERS LIMITED,14/04/2015,"3,966.77",Employees
 Schools,RICOH UK LTD,14/04/2015,850.27,Supplies and Services
 Schools,ITN MARK EDUCATION,14/04/2015,525.00,Employees
 Schools,PHS GROUP PLC,09/04/2015,962.23,Supplies and Services
 Schools,INDEPENDENT LEARNING CENTRE,14/04/2015,"4,799.00",Supplies and Services
Other Education and Children's services,Charles Watson Taxis,10/04/2015,"1,375.00",Transport
 Schools,Academics,14/04/2015,"1,122.50",Employees
Other Education and Children's services,Charles Watson Taxis,14/04/2015,"1,652.00",Transport
 Schools,SEVERN TRENT WATER LTD,02/04/2015,"1,889.35",Premises
Other Education and Children's services,Charles Watson Taxis,02/04/2015,588.00,Transport
 Schools,GARTMORE RIDING SCHOOL,14/04/2015,504.00,Supplies and Services
Other Education and Children's services,Charles Watson Taxis,14/04/2015,882.00,Transport
 Schools,KINGSWOOD LEARN & LEIS GRP LTD,15/04/2015,"1,180.00",Supplies and Services
 Schools,SOUTH STAFFORDSHIRE WATER PLC,15/04/2015,"1,262.89",Premises
Finance,BDO LLP,13/04/2015,"6,000.00",Employees
Law & Governence,Tiger Legal Services Limited,02/04/2015,"1,406.00",Employees
Law & Governence,Tiger Legal Services Limited,02/04/2015,"1,406.00",Employees
Trading Service County Fleet Care,ECON ENGINEERING LTD,09/04/2015,"1,669.98",Supplies and Services
 Schools,Country Grounds Service Ltd,15/04/2015,936.00,Premises
 Schools,ABC TEACHERS LIMITED,14/04/2015,"1,154.99",Employees
Trading Service County Fleet Care,SHERWOOD COMMERCIAL VEHICLES L,09/04/2015,620.98,Supplies and Services
 Schools,Absence Protection Limited,14/04/2015,"1,736.00",Employees
 Schools,RICOH UK LTD,02/04/2015,669.17,Supplies and Services
 Schools,RICOH UK LTD,02/04/2015,462.18,Supplies and Services
 Schools,Penna Plc,09/04/2015,833.63,Employees
 Schools,Penna Plc,07/04/2015,817.55,Employees
 Schools,Penna Plc,02/04/2015,817.55,Employees
 Schools,Penna Plc,07/04/2015,817.55,Employees
 Schools,Penna Plc,02/04/2015,817.55,Employees
 Schools,1ST CLASS FOOTBALL COACHING,13/04/2015,720.00,Supplies and Services
Highways and transport,STAFFORDSHIRE FIRE & RESCUE SE,07/04/2015,"1,000.00",Supplies and Services
Adult Social Care,Imagaprint,13/04/2015,"4,942.00",Supplies and Services
 Schools,EDUCATION CITY LTD,02/04/2015,945.00,Supplies and Services
Adult Social Care,WESSEX LIFT CO LTD,10/04/2015,500.00,Supplies and Services
Adult Social Care,WESSEX LIFT CO LTD,10/04/2015,"1,250.00",Supplies and Services
 Schools,SEVERN TRENT WATER,21/04/2015,"2,031.94",Premises
Adult Social Care,WESSEX LIFT CO LTD,10/04/2015,"2,000.00",Supplies and Services
Adult Social Care,WESSEX LIFT CO LTD,10/04/2015,640.00,Supplies and Services
Adult Social Care,Imagaprint,07/04/2015,423.62,Supplies and Services
Other Education and Children's services,Motion Picture Licensing Compa,20/04/2015,467.57,Supplies and Services
Other Education and Children's services,Motion Picture Licensing Compa,20/04/2015,467.57,Supplies and Services
Other Education and Children's services,Motion Picture Licensing Compa,20/04/2015,467.57,Supplies and Services
Other Education and Children's services,Motion Picture Licensing Compa,20/04/2015,467.57,Supplies and Services
Other Education and Children's services,Motion Picture Licensing Compa,20/04/2015,467.58,Supplies and Services
Other Education and Children's services,Motion Picture Licensing Compa,20/04/2015,467.58,Supplies and Services
 Schools,Schools Advisory Service,15/04/2015,"11,163.59",Employees
Adult Social Care,WESSEX LIFT CO LTD,10/04/2015,"1,750.00",Supplies and Services
Adult Social Care,WESSEX LIFT CO LTD,10/04/2015,"1,750.00",Supplies and Services
Adult Social Care,WESSEX LIFT CO LTD,10/04/2015,"1,820.00",Supplies and Services
 Schools,The Key Support Services Limit,02/04/2015,660.00,Supplies and Services
 Schools,LICHFIELD DISTRICT COUNCIL,02/04/2015,800.00,Supplies and Services
 Schools,OSIRIS EDUCATIONAL,02/04/2015,"8,549.00",Supplies and Services
ICT,Elliott Baxter & Company Ltd,02/04/2015,510.00,Supplies and Services
 Schools,SPORTING STARS COMM INTEREST C,02/04/2015,"1,680.00",Supplies and Services
 Schools,University of Derby,02/04/2015,"1,408.80",Supplies and Services
 Schools,MEI,14/04/2015,992.00,Supplies and Services
 Schools,BIFFA WASTE SERVICES LTD,10/04/2015,436.80,Supplies and Services
 Schools,AV PARTS MASTER LTD,14/04/2015,"1,414.99",Supplies and Services
 Schools,G EVANS (SERVICES) LTD,14/04/2015,"2,673.00",Third Party
Planning & Economic Development,JKT International Ltd T/A Karv,14/04/2015,720.00,Transport
Planning & Economic Development,JKT International Ltd T/A Karv,14/04/2015,"1,340.00",Transport
Adult Social Care,GALLOWAY TRAINING CONSULTANCY,13/04/2015,"1,531.66",Supplies and Services
Corporate & Democratic Core,Brook House Properties,07/04/2015,"5,750.00",Premises
 CXO,STAFFORDSHIRE MOORLANDS DIS CN,15/04/2015,"19,599.39",Premises
 CXO,STAFFORDSHIRE MOORLANDS DIS CN,15/04/2015,"1,267.00",Premises
 CXO,LICHFIELD DISTRICT COUNCIL,15/04/2015,"8,450.00",Premises
 CXO,LICHFIELD DISTRICT COUNCIL,15/04/2015,916.67,Premises
Highways and transport,Western Power Distribution,07/04/2015,"8,809.00",Capital
Corporate & Democratic Core,NEWCASTLE U LYME BOROUGH COUNC,07/04/2015,"1,475.00",Premises
Other Education and Children's services,A1 EMBASSY TAXIS LTD,15/04/2015,"1,210.00",Transport
Other Education and Children's services,A1 EMBASSY TAXIS LTD,15/04/2015,550.00,Transport
Other Education and Children's services,A1 EMBASSY TAXIS LTD,15/04/2015,"3,316.94",Transport
Other Education and Children's services,A1 EMBASSY TAXIS LTD,15/04/2015,"1,405.00",Transport
Other Education and Children's services,A1 EMBASSY TAXIS LTD,15/04/2015,"1,111.22",Transport
Adult Social Care,P Hayler,14/04/2015,"2,235.00",Supplies and Services
 Schools,Children's Choice Therapy Serv,13/04/2015,"1,122.00",Supplies and Services
 CXO,NEWCASTLE U LYME BOROUGH COUNC,07/04/2015,"1,450.00",Premises
 CXO,NEWCASTLE U LYME BOROUGH COUNC,07/04/2015,"38,850.00",Premises
 Schools,Teachers2Parents Ltd,07/04/2015,"1,545.00",Supplies and Services
Corporate & Democratic Core,NEWCASTLE U LYME BOROUGH COUNC,07/04/2015,"7,500.00",Premises
Corporate & Democratic Core,ISE Estates Ltd,07/04/2015,"24,983.57",Premises
Corporate & Democratic Core,ISE Estates Ltd,07/04/2015,"7,900.50",Premises
Corporate & Democratic Core,ISE Estates Ltd,07/04/2015,"2,643.75",Premises
Corporate & Democratic Core,ISE Estates Ltd,07/04/2015,"52,898.30",Premises
Corporate & Democratic Core,ISE Estates Ltd,07/04/2015,"2,643.75",Premises
 Schools,Principal HR Partner Limited,15/04/2015,"2,500.00",Supplies and Services
Corporate & Democratic Core,NEWCASTLE U LYME BOROUGH COUNC,07/04/2015,"11,366.25",Premises
Other Education and Children's services,JKT International Ltd T/A Karv,14/04/2015,"1,485.00",Transport
Corporate & Democratic Core,STAFFORDSHIRE MOORLANDS DIS CN,15/04/2015,"1,172.50",Premises
 Schools,STEVE BROWN (BOOKS),15/04/2015,500.00,Employees
Other Education and Children's services,JKT International Ltd T/A Karv,14/04/2015,"5,292.64",Transport
 Schools,ANGEL SOLUTIONS LTD,15/04/2015,450.00,Supplies and Services
 Schools,RICOH UK LTD,07/04/2015,"1,239.62",Supplies and Services
Other Education and Children's services,JKT International Ltd T/A Karv,14/04/2015,"2,417.00",Transport
Other Education and Children's services,JKT International Ltd T/A Karv,14/04/2015,528.00,Transport
 Schools,ABC TEACHERS LIMITED,14/04/2015,924.95,Employees
 Schools,E Quality Training Ltd,13/04/2015,600.00,Employees
Planning & Economic Development,Penna Plc,14/04/2015,540.08,Supplies and Services
Adult Social Care,SOUTH STAFFORDSHIRE WATER PLC,07/04/2015,"1,547.23",Premises
 CXO,SEVERN TRENT WATER LTD,07/04/2015,"1,896.83",Premises
 CXO,SOUTH STAFFORDSHIRE WATER PLC,07/04/2015,"2,063.94",Premises
Other Education and Children's services,JKT International Ltd T/A Karv,14/04/2015,"2,090.00",Transport
Other Education and Children's services,JKT International Ltd T/A Karv,14/04/2015,528.00,Transport
Planning & Economic Development,KPL Landscapes,10/04/2015,839.62,Premises
Highways and transport,J P C S Signs Ltd,07/04/2015,"3,592.05",Supplies and Services
Highways and transport,J P C S Signs Ltd,13/04/2015,"3,961.65",Supplies and Services
 CXO,SOUTH STAFFORDSHIRE WATER PLC,07/04/2015,"3,452.61",Premises
 Schools,J M Anderton,21/04/2015,630.00,Supplies and Services
Highways and transport,H Richards,13/04/2015,"1,400.00",Capital
 CXO,SOUTH STAFFORDSHIRE WATER PLC,07/04/2015,716.78,Premises
Planning & Economic Development,Maximeyes Security Ltd,14/04/2015,423.00,Supplies and Services
 Schools,SNEYD BUILDING CONTRACTORS,14/04/2015,"1,750.00",Premises
Corporate & Democratic Core,SOUTH STAFFORDSHIRE WATER PLC,07/04/2015,"2,063.94",Premises
Corporate & Democratic Core,SOUTH STAFFORDSHIRE WATER PLC,07/04/2015,"2,063.94",Premises
Adult Social Care,TAMWORTH BOROUGH COUNCIL,09/04/2015,"3,500.00",Supplies and Services
 CXO,SOUTH STAFFORDSHIRE WATER PLC,07/04/2015,"9,270.87",Premises
 CXO,SOUTH STAFFORDSHIRE WATER PLC,07/04/2015,549.55,Premises
 Schools,Beanstalk,07/04/2015,"1,080.00",Supplies and Services
 CXO,SOUTH STAFFORDSHIRE WATER PLC,07/04/2015,642.04,Premises
 Schools,SOUTH STAFFORDSHIRE WATER PLC,02/04/2015,"1,370.56",Capital
Other Education and Children's services,S Blundred,14/04/2015,"1,056.00",Transport
Other Education and Children's services,S Blundred,14/04/2015,220.00,Transport
Other Education and Children's services,S Blundred,14/04/2015,"4,996.42",Transport
Corporate & Democratic Core,SEVERN TRENT WATER LTD,07/04/2015,"9,520.28",Premises
Corporate & Democratic Core,SOUTH STAFFORDSHIRE WATER PLC,07/04/2015,"1,455.91",Premises
Other Education and Children's services,WILLIAMS MINI TRAVEL,14/04/2015,"3,902.58",Transport
Environment,EAST STAFFS BOROUGH COUNCIL,10/04/2015,"2,166.25",Premises
Other Education and Children's services,PKS TRAVEL,14/04/2015,"7,392.00",Transport
 Schools,ASPIRE PEOPLE LTD,14/04/2015,566.00,Employees
 Schools,PARADIGM OFFICE INTERIORS LTD,07/04/2015,963.60,Supplies and Services
 Schools,ANGEL SOLUTIONS LTD,15/04/2015,"1,275.00",Supplies and Services
 Schools,School Cloud Systems,02/04/2015,499.00,Supplies and Services
Other Education and Children's services,FUTURE TRAVEL,14/04/2015,"1,188.00",Transport
 Schools,LICHFIELD DISTRICT COUNCIL,24/04/2015,640.90,Premises
 Schools,Teachers2Parents Ltd,07/04/2015,"2,625.00",Supplies and Services
 Schools,TeacherActive Ltd,14/04/2015,"1,330.00",Employees
 Schools,Schools Advisory Service,22/04/2015,"10,728.03",Employees
Other Education and Children's services,Going My Way Ltd T/A Stantons,14/04/2015,"3,517.30",Transport
Finance,Veritau Ltd,14/04/2015,394.24,Employees
Finance,Veritau Ltd,14/04/2015,188.76,Employees
 Schools,Chancery Consulting Ltd,16/04/2015,924.00,Premises
 Schools,Discovery Education Europe Lim,15/04/2015,"1,395.14",Supplies and Services
 Schools,UNIVERSITY CAMB LOCAL EXAM SYN,02/04/2015,574.80,Supplies and Services
 Schools,PRIME PRINCIPLE LIMITED,02/04/2015,"1,890.00",Supplies and Services
 Schools,AQA,02/04/2015,"9,150.35",Supplies and Services
Planning & Economic Development,PAULS COACHES,15/04/2015,"2,080.00",Transport
 Schools,Catering Management Cons Ltd,02/04/2015,"2,750.00",Supplies and Services
 Schools,Discovery Education Europe Lim,17/04/2015,"1,236.60",Supplies and Services
 Schools,KTSH PLUMBING SERVICES,23/04/2015,543.69,Premises
 Schools,Premier Sport Ltd,10/04/2015,891.00,Supplies and Services
 Schools,AQA,02/04/2015,"-9,150.35",Supplies and Services
 Schools,HAPPY DAYS COACHES,14/04/2015,"1,162.80",Transport
Other Education and Children's services,HAPPY DAYS COACHES,14/04/2015,"17,823.08",Transport
 Schools,Prospero Teaching,14/04/2015,599.96,Employees
 Schools,AQA,02/04/2015,"9,150.35",Supplies and Services
 Schools,Academics,14/04/2015,655.00,Supplies and Services
 Schools,Principal HR Partner Limited,15/04/2015,945.00,Supplies and Services
Other Education and Children's services,LEON'S COACH TRAVEL STAFFORD L,14/04/2015,"22,715.44",Transport
Other Education and Children's services,LEON'S COACH TRAVEL STAFFORD L,14/04/2015,"7,613.44",Transport
Other Education and Children's services,LEON'S COACH TRAVEL STAFFORD L,14/04/2015,"2,317.80",Transport
 Schools,Reed Specialist Recruitment Lt,10/04/2015,570.00,Employees
Environment,ENITIAL PROJECTS LTD,08/04/2015,575.00,Supplies and Services
Environment,ENITIAL PROJECTS LTD,08/04/2015,"3,691.74",Supplies and Services
Environment,ENITIAL PROJECTS LTD,08/04/2015,"22,973.78",Supplies and Services
Environment,ENITIAL PROJECTS LTD,08/04/2015,-300.00,Income
 Schools,EDUCATION CITY LTD,17/04/2015,"1,890.00",Supplies and Services
 Schools,Veale Wasbrough Vizards,02/04/2015,600.00,Supplies and Services
 Schools,SCHOOL WEBSITE,14/04/2015,500.00,Supplies and Services
Other Education and Children's services,Community Transport Swadlincot,14/04/2015,796.84,Transport
Other Education and Children's services,Community Transport Swadlincot,14/04/2015,797.06,Transport
Other Education and Children's services,Community Transport Swadlincot,14/04/2015,"9,297.12",Transport
Other Education and Children's services,Community Transport Swadlincot,14/04/2015,"1,009.26",Transport
Other Education and Children's services,Community Transport Swadlincot,14/04/2015,"9,238.90",Transport
Other Education and Children's services,Community Transport Swadlincot,14/04/2015,466.62,Transport
Other Education and Children's services,Community Transport Swadlincot,14/04/2015,550.00,Transport
Other Education and Children's services,Community Transport Swadlincot,14/04/2015,375.00,Transport
Other Education and Children's services,Community Transport Swadlincot,14/04/2015,250.00,Transport
Other Education and Children's services,Community Transport Swadlincot,14/04/2015,550.00,Transport
Other Education and Children's services,PLANTS LUXURY TRAVEL LTD,14/04/2015,"11,734.80",Transport
Other Education and Children's services,PLANTS LUXURY TRAVEL LTD,14/04/2015,"1,914.92",Transport
 Schools,ZINGS MUSIC LTD,07/04/2015,503.98,Supplies and Services
 Schools,RM Education Plc,02/04/2015,"1,312.50",Supplies and Services
 Schools,Teachers2Parents Ltd,07/04/2015,"1,055.00",Supplies and Services
 Schools,ParentPay Ltd,02/04/2015,"1,180.80",Supplies and Services
 Schools,RICOH UK LTD,02/04/2015,286.57,Supplies and Services
 Schools,RICOH UK LTD,02/04/2015,286.58,Supplies and Services
 Schools,RM Education Plc,02/04/2015,523.95,Supplies and Services
 Schools,Discovery Education Europe Lim,07/04/2015,"1,255.40",Supplies and Services
 Schools,Syscap Leasing Company,02/04/2015,"3,037.95",Supplies and Services
 Schools,ASM SPORTS UK LTD,21/04/2015,570.00,Employees
Other Education and Children's services,PLANTS LUXURY TRAVEL LTD,14/04/2015,"1,344.20",Transport
Other Education and Children's services,PLANTS LUXURY TRAVEL LTD,14/04/2015,311.30,Transport
Other Education and Children's services,PLANTS LUXURY TRAVEL LTD,14/04/2015,"1,344.20",Transport
Other Education and Children's services,PLANTS LUXURY TRAVEL LTD,14/04/2015,311.30,Transport
Other Education and Children's services,PLANTS LUXURY TRAVEL LTD,14/04/2015,"3,025.00",Transport
Other Education and Children's services,PLANTS LUXURY TRAVEL LTD,14/04/2015,"1,334.52",Transport
 Schools,Syscap Leasing Company,02/04/2015,"1,187.94",Supplies and Services
Finance,LICHFIELD DISTRICT COUNCIL,02/04/2015,"2,500.00",Supplies and Services
 Schools,ASM SPORTS UK LTD,21/04/2015,780.00,Employees
 Schools,Hibernia College UK Ltd,02/04/2015,500.00,Employees
Cultural Services,GARTMORE RIDING SCHOOL,16/04/2015,"4,425.00",Third Party
 Schools,ABC TEACHERS LIMITED,14/04/2015,221.98,Employees
 Schools,ABC TEACHERS LIMITED,14/04/2015,110.99,Employees
 Schools,ABC TEACHERS LIMITED,14/04/2015,221.98,Employees
 Schools,ABC TEACHERS LIMITED,14/04/2015,221.98,Employees
 Schools,ABC TEACHERS LIMITED,14/04/2015,110.99,Employees
 Schools,ABC TEACHERS LIMITED,14/04/2015,110.99,Employees
 Schools,Myscience.co Ltd,02/04/2015,"1,287.00",Employees
Other Education and Children's services,S J McGuire (Steve's Cars),14/04/2015,"1,204.50",Transport
 Schools,SIEMENS FINANCIAL SERVICES LTD,02/04/2015,950.00,Supplies and Services
 Schools,SIEMENS FINANCIAL SERVICES LTD,02/04/2015,528.70,Supplies and Services
 Schools,SIEMENS FINANCIAL SERVICES LTD,02/04/2015,"3,475.00",Supplies and Services
 Schools,Prospero Teaching,14/04/2015,899.95,Employees
Adult Social Care,Stafford & Rural Homes,13/04/2015,"2,090.00",Supplies and Services
Other Education and Children's services,TAXICO,14/04/2015,792.00,Transport
Other Education and Children's services,TAXICO,14/04/2015,"2,491.06",Transport
Other Education and Children's services,TAXICO,14/04/2015,711.70,Transport
Other Education and Children's services,TAXICO,14/04/2015,"2,847.02",Transport
Other Education and Children's services,TAXICO,14/04/2015,"1,112.10",Transport
Other Education and Children's services,TAXICO,14/04/2015,664.18,Transport
Other Education and Children's services,TAXICO,14/04/2015,622.60,Transport
Other Education and Children's services,TAXICO,14/04/2015,"1,112.10",Transport
 Schools,Prospero Teaching,14/04/2015,899.95,Employees
Other Education and Children's services,T Yunus T/A S T Travel,15/04/2015,"1,298.88",Transport
Other Education and Children's services,T Yunus T/A S T Travel,15/04/2015,526.90,Transport
Other Education and Children's services,T Yunus T/A S T Travel,15/04/2015,"1,298.88",Transport
Other Education and Children's services,T Yunus T/A S T Travel,15/04/2015,526.90,Transport
 Schools,STAFFORDSHIRE REFRIG. & AIR CO,02/04/2015,948.00,Supplies and Services
Other Education and Children's services,NATIONWIDE MINIBUS TRAVEL,15/04/2015,"3,008.72",Transport
Other Education and Children's services,NATIONWIDE MINIBUS TRAVEL,15/04/2015,802.56,Transport
Other Education and Children's services,NATIONWIDE MINIBUS TRAVEL,15/04/2015,"3,008.72",Transport
Other Education and Children's services,NATIONWIDE MINIBUS TRAVEL,15/04/2015,802.56,Transport
 Schools,EAST STAFFS BOROUGH COUNCIL,10/04/2015,501.50,Supplies and Services
Law & Governence,ILT LEGAL SERVICES LIMITED,07/04/2015,"1,443.00",Employees
 Schools,BLAKEMORE FOOD SERVICE LTD,10/04/2015,721.61,Supplies and Services
 Schools,BLAKEMORE FOOD SERVICE LTD,10/04/2015,150.56,Supplies and Services
 Schools,ABC TEACHERS LIMITED,07/04/2015,575.00,Employees
Other Education and Children's services,D T Travel,15/04/2015,"2,144.31",Transport
Other Education and Children's services,D T Travel,15/04/2015,552.09,Transport
 Schools,iLiveSounds,16/04/2015,390.00,Supplies and Services
 Schools,iLiveSounds,16/04/2015,180.00,Supplies and Services
 Schools,HAYS EDUCATION PERSONNEL,08/04/2015,"1,150.00",Employees
 Schools,ABC TEACHERS LIMITED,14/04/2015,575.00,Employees
Other Education and Children's services,TELE TAXIS,15/04/2015,"3,883.00",Transport
Other Education and Children's services,TELE TAXIS,15/04/2015,"2,365.00",Transport
 Schools,Prospero Teaching,07/04/2015,599.96,Employees
 Schools,SISRA LTD,07/04/2015,995.00,Supplies and Services
 Schools,Grenke Leasing Ltd,15/04/2015,895.86,Supplies and Services
Other Education and Children's services,Charles Watson Taxis,14/04/2015,"1,273.86",Transport
Other Education and Children's services,Charles Watson Taxis,14/04/2015,528.00,Transport
 Schools,Prospero Teaching,07/04/2015,736.96,Employees
 Schools,Prospero Teaching,07/04/2015,599.96,Employees
 Schools,JM MacDonald,09/04/2015,600.00,Supplies and Services
Planning & Economic Development,STANWAYS COACHES,14/04/2015,"2,826.14",Transport
 Schools,Voice 2 Voice Ltd,07/04/2015,744.10,Supplies and Services
 Schools,Prospero Teaching,07/04/2015,529.95,Employees
 Schools,Prospero Teaching,07/04/2015,-736.96,Employees
 Schools,Sarah Terry trading as Purple,13/04/2015,750.00,Supplies and Services
Other Education and Children's services,STANWAYS COACHES,14/04/2015,"5,262.76",Transport
 Schools,Sarah Terry trading as Purple,13/04/2015,575.00,Supplies and Services
Highways and transport,R D WILLIAMS DESIGN & BUILD LT,08/04/2015,"2,659.00",Capital
 Schools,BIFFA WASTE SERVICES LTD,10/04/2015,418.86,Supplies and Services
Other Education and Children's services,Wombourne Travel Ltd,14/04/2015,"1,980.00",Transport
Other Education and Children's services,Wombourne Travel Ltd,14/04/2015,"2,179.76",Transport
Other Education and Children's services,Wombourne Travel Ltd,14/04/2015,"4,265.80",Transport
Other Education and Children's services,Wombourne Travel Ltd,14/04/2015,"1,136.80",Transport
Other Education and Children's services,T MAHMOOD,14/04/2015,"1,462.56",Transport
Other Education and Children's services,T MAHMOOD,14/04/2015,572.22,Transport
Planning & Economic Development,EMBLEM PRINT PRODUCTS LIMITED,09/04/2015,540.80,Supplies and Services
Other Education and Children's services,JOHN M WALLEY TAXI,15/04/2015,880.00,Transport
Planning & Economic Development,CEN GROUP LTD,15/04/2015,"5,044.00",Transport
 Schools,M Holland,14/04/2015,576.00,Supplies and Services
Planning & Economic Development,EMBLEM PRINT PRODUCTS LIMITED,07/04/2015,769.92,Supplies and Services
 Schools,JET2.COM,07/04/2015,"7,752.00",Transport
 Schools,John Taylor High School,10/04/2015,500.00,Employees
 Schools,A Stops,27/04/2015,662.80,Employees
Other Education and Children's services,A1 EMBASSY TAXIS LTD,15/04/2015,"1,408.00",Transport
Other Education and Children's services,A1 EMBASSY TAXIS LTD,15/04/2015,664.18,Transport
Other Education and Children's services,A1 EMBASSY TAXIS LTD,15/04/2015,"3,542.00",Transport
Other Education and Children's services,A1 EMBASSY TAXIS LTD,15/04/2015,"1,465.20",Transport
Other Education and Children's services,A1 EMBASSY TAXIS LTD,15/04/2015,"1,100.00",Transport
Other Education and Children's services,A1 EMBASSY TAXIS LTD,15/04/2015,374.00,Transport
Other Education and Children's services,A1 EMBASSY TAXIS LTD,15/04/2015,"5,084.79",Transport
Other Education and Children's services,A1 EMBASSY TAXIS LTD,15/04/2015,290.29,Transport
Other Education and Children's services,A1 EMBASSY TAXIS LTD,15/04/2015,"1,080.16",Transport
Other Education and Children's services,A1 EMBASSY TAXIS LTD,15/04/2015,675.00,Transport
 Schools,Impact Tennis Ltd,15/04/2015,166.00,Supplies and Services
 Schools,Impact Tennis Ltd,15/04/2015,759.00,Supplies and Services
Other Education and Children's services,Stone Valley Cabz,14/04/2015,100.00,Transport
Other Education and Children's services,Stone Valley Cabz,14/04/2015,80.00,Transport
Other Education and Children's services,Stone Valley Cabz,14/04/2015,"3,096.28",Transport
Other Education and Children's services,Stone Valley Cabz,14/04/2015,601.70,Transport
Other Education and Children's services,SHIRE TRAVEL INTERNATIONAL LTD,14/04/2015,"3,801.16",Transport
 Schools,FENETRE LTD,14/04/2015,433.95,Supplies and Services
Other Education and Children's services,SHIRE TRAVEL INTERNATIONAL LTD,14/04/2015,"2,189.00",Transport
Other Education and Children's services,SHIRE TRAVEL INTERNATIONAL LTD,14/04/2015,"1,023.00",Transport
Other Education and Children's services,SHIRE TRAVEL INTERNATIONAL LTD,14/04/2015,"2,189.00",Transport
Other Education and Children's services,SHIRE TRAVEL INTERNATIONAL LTD,14/04/2015,"1,023.00",Transport
Other Education and Children's services,SHIRE TRAVEL INTERNATIONAL LTD,14/04/2015,"2,272.16",Transport
Other Education and Children's services,SHIRE TRAVEL INTERNATIONAL LTD,14/04/2015,"1,515.14",Transport
 Schools,M J GOODHEAD,16/04/2015,936.00,Employees
 Schools,Discovery Education Europe Lim,10/04/2015,834.30,Supplies and Services
Other Education and Children's services,J & T HILL COACHES,14/04/2015,"10,292.80",Transport
 Schools,Corona Energy Retail 4 Ltd,07/04/2015,725.94,Premises
Other Education and Children's services,KINGSWINFORD COACHWAYS LTD,14/04/2015,"3,520.00",Transport
 Schools,Schools Advisory Service,15/04/2015,"9,059.99",Employees
Other Education and Children's services,Gian Singh Sidhu,10/04/2015,730.00,Transport
Other Education and Children's services,Gian Singh Sidhu,10/04/2015,480.00,Transport
 Schools,Schools Advisory Service,30/04/2015,"7,529.77",Employees
 Schools,Oxford University Press,07/04/2015,630.00,Supplies and Services
 Schools,Oxford University Press,07/04/2015,435.35,Supplies and Services
Other Education and Children's services,HELEN SANDERSON ASSOCIATES LTD,14/04/2015,"6,609.15",Supplies and Services
 CXO,Hertel (UK) Ltd,07/04/2015,"4,778.42",Premises
 Schools,Discovery Education Europe Lim,07/04/2015,"1,093.35",Supplies and Services
 Schools,Elliott Baxter & Company Ltd,14/04/2015,529.70,Supplies and Services
 Schools,Absence Protection Limited,16/04/2015,"12,519.00",Employees
 Schools,Absence Protection Limited,16/04/2015,500.00,Employees
 Schools,Prospero Teaching,14/04/2015,"1,004.96",Employees
 Schools,LEON'S COACH TRAVEL STAFFORD L,15/04/2015,840.00,Supplies and Services
 Schools,PHS GROUP PLC,07/04/2015,600.00,Supplies and Services
 Schools,Oxford University Press,07/04/2015,-630.00,Supplies and Services
 Schools,Oxford University Press,07/04/2015,-435.35,Supplies and Services
 Schools,PHS GROUP PLC,07/04/2015,686.60,Supplies and Services
 Schools,EDUCATION CITY LTD,07/04/2015,"1,345.00",Supplies and Services
 Schools,MAXIM SYSTEMS LTD,09/04/2015,750.00,Supplies and Services
 Schools,ALTON CASTLE,07/04/2015,500.00,Supplies and Services
 Schools,OXFORD UNIVERSITY PRESS,07/04/2015,"1,055.04",Supplies and Services
 Schools,TEACHING PERSONNEL LTD,14/04/2015,632.10,Employees
 Schools,CAPITA BUSINESS SERVICES,07/04/2015,"1,995.00",Supplies and Services
 Schools,Oxford University Press,14/04/2015,598.50,Supplies and Services
 Schools,Oxford University Press,14/04/2015,413.77,Supplies and Services
 Schools,Now Recruitment Ltd,07/04/2015,"1,170.00",Employees
Adult Social Care,NORTHGATE INFORMATION SOL UK L,13/04/2015,"5,966.95",Supplies and Services
 Schools,UNIVERSITY CAMB LOCAL EXAM SYN,07/04/2015,"13,220.40",Supplies and Services
 Schools,EDUCATE SCHOOL SERVICES LTD,07/04/2015,"1,100.00",Supplies and Services
Other Education and Children's services,6061 CARS,14/04/2015,"3,169.98",Transport
Other Education and Children's services,6061 CARS,14/04/2015,"2,200.00",Transport
Other Education and Children's services,6061 CARS,14/04/2015,"1,100.00",Transport
Other Education and Children's services,6061 CARS,14/04/2015,352.00,Transport
Other Education and Children's services,6061 CARS,14/04/2015,"1,530.32",Transport
Other Education and Children's services,6061 CARS,14/04/2015,384.34,Transport
Other Education and Children's services,6061 CARS,14/04/2015,"2,792.93",Transport
Other Education and Children's services,6061 CARS,14/04/2015,270.00,Transport
Other Education and Children's services,6061 CARS,14/04/2015,"5,443.24",Transport
Other Education and Children's services,6061 CARS,14/04/2015,"2,634.50",Transport
Other Education and Children's services,6061 CARS,14/04/2015,773.74,Transport
Other Education and Children's services,6061 CARS,14/04/2015,603.68,Transport
 Schools,2SIMPLE SOFTWARE,10/04/2015,"2,400.00",Supplies and Services
 Schools,Macquarie Equipment Finance UK,07/04/2015,"1,074.01",Supplies and Services
Environment,NEWCASTLE BOROUGH COUNCIL,14/04/2015,"14,748.93",Supplies and Services
 Schools,Now Recruitment Ltd,07/04/2015,975.00,Employees
 Schools,Macquarie Equipment Finance UK,07/04/2015,768.67,Supplies and Services
 Schools,Discovery Education Europe Lim,07/04/2015,"2,360.60",Supplies and Services
 Schools,NATIONAL TEACHING ADVISORY SER,07/04/2015,"1,536.00",Supplies and Services
Other Education and Children's services,GOLDEN GREEN GARAGE,14/04/2015,"18,980.30",Transport
 Schools,SIEMENS FINANCIAL SERVICES LTD,07/04/2015,"9,372.06",Supplies and Services
 Schools,NATIONAL TEACHING ADVISORY SER,07/04/2015,"1,152.00",Supplies and Services
 Schools,HARPER COLLINS PUBLISHERS LTD,10/04/2015,949.67,Supplies and Services
 Schools,Now Recruitment Ltd,07/04/2015,"1,170.00",Employees
 Schools,JJFOX LTD,07/04/2015,967.50,Employees
 Schools,R A EDWARDS & PARTNERS LTD,07/04/2015,"2,040.00",Third Party
 Schools,OCN West Mids Region,07/04/2015,"1,000.00",Supplies and Services
 Schools,BIFFA WASTE SERVICES LTD,10/04/2015,824.46,Supplies and Services
 Schools,NATIONAL TEACHING ADVISORY SER,07/04/2015,"1,024.00",Supplies and Services
Other Education and Children's services,Total Travel Transport UK Ltd,14/04/2015,"1,320.00",Transport
Other Education and Children's services,Total Travel Transport UK Ltd,14/04/2015,330.00,Transport
 Schools,NATIONAL TEACHING ADVISORY SER,07/04/2015,768.00,Supplies and Services
 Schools,FORD MAINWARING LTD,07/04/2015,604.00,Premises
 Schools,Now Recruitment Ltd,07/04/2015,"1,365.00",Employees
 Schools,JJFOX LTD,13/04/2015,645.00,Employees
Other Education and Children's services,CHASE TRAVEL LTD,08/04/2015,"2,153.55",Transport
 Schools,BIFFA WASTE SERVICES LTD,10/04/2015,800.67,Supplies and Services
 Schools,Principal HR Partner Limited,15/04/2015,"1,400.00",Supplies and Services
 Schools,CANNOCK CHASE COUNCIL,13/04/2015,"1,947.35",Premises
 Schools,FORD MAINWARING LTD,07/04/2015,754.00,Premises
Other Education and Children's services,BAGNALLS COACHES,14/04/2015,"12,184.26",Transport
 Schools,Principal HR Partner Limited,15/04/2015,725.00,Supplies and Services
 Schools,OWNESS SOLUTIONS LTD,07/04/2015,"2,912.00",Supplies and Services
Adult Social Care,SITEON LTD,15/04/2015,"2,500.00",Supplies and Services
 Schools,VINE TRUST,08/04/2015,"1,040.00",Supplies and Services
 Schools,Pebble,14/04/2015,839.25,Supplies and Services
 Schools,SOUTH STAFFORDSHIRE COLLEGE,30/04/2015,"4,212.00",Supplies and Services
Other Education and Children's services,ROYAL CABS,14/04/2015,"1,760.00",Transport
 Schools,SOUTH STAFFORDSHIRE COLLEGE,30/04/2015,"4,680.00",Supplies and Services
 Schools,Premier Sport Ltd,10/04/2015,570.00,Supplies and Services
 Schools,SOUTH STAFFORDSHIRE COLLEGE,07/04/2015,"2,640.00",Supplies and Services
Other Education and Children's services,CITY BUSES & COACHES,14/04/2015,"2,750.00",Transport
Other Education and Children's services,CITY BUSES & COACHES,14/04/2015,880.00,Transport
 Schools,POOL MAINTENANCE LTD,08/04/2015,500.00,Premises
 Schools,Technology Rentals Ltd,07/04/2015,"1,937.00",Supplies and Services
 Schools,SOUTH STAFFORDSHIRE COLLEGE,07/04/2015,"2,640.00",Supplies and Services
 Schools,STAFFORDSHIRE MOORLANDS DIS CN,29/04/2015,"1,485.76",Supplies and Services
 Schools,SOUTH STAFFORDSHIRE WATER PLC,07/04/2015,"1,416.83",Premises
 Schools,POOL MAINTENANCE LTD,08/04/2015,500.00,Premises
 Schools,SOUTH STAFFORDSHIRE WATER PLC,07/04/2015,"2,083.90",Premises
 Schools,BIFFA WASTE SERVICES LTD,15/04/2015,723.06,Supplies and Services
 Schools,Discovery Education Europe Lim,07/04/2015,687.92,Supplies and Services
Corporate & Democratic Core,STAFFORD BOROUGH COUNCIL,10/04/2015,"1,350.00",Premises
 Schools,HARPER COLLINS PUBLISHERS LTD,07/04/2015,544.95,Supplies and Services
 Schools,HARPER COLLINS PUBLISHERS LTD,07/04/2015,378.00,Supplies and Services
 Schools,Pearson Shared Services,08/04/2015,"3,646.80",Supplies and Services
 CXO,Victim Supp Staffs (Mid Staffs,10/04/2015,"1,500.00",Third Party
 Schools,EAST STAFFS BOROUGH COUNCIL,10/04/2015,502.50,Supplies and Services
 Schools,D K S ROOFING LTD,07/04/2015,727.00,Premises
Corporate & Democratic Core,SOUTH STAFFS COUNCIL,10/04/2015,"25,659.51",Premises
 CXO,McGraw-Hill Education,07/04/2015,"3,036.15",Supplies and Services
 CXO,McGraw-Hill Education,07/04/2015,78.25,Supplies and Services
 CXO,McGraw-Hill Education,07/04/2015,9.95,Supplies and Services
 Schools,CROPPER GROUNDS MAINTENANCE LT,07/04/2015,841.50,Premises
Corporate & Democratic Core,Maximeyes Security Ltd,07/04/2015,"1,057.50",Supplies and Services
 Schools,LICHFIELD DISTRICT COUNCIL,23/04/2015,"1,331.10",Premises
 Schools,NATIONAL TEACHING SCHOOL,10/04/2015,600.00,Employees
Finance,Gallagher Bassett Internationa,08/04/2015,"20,000.00",Supplies and Services
 Schools,Stoke on Trent City Council,07/04/2015,"4,953.96",Supplies and Services
 Schools,Stoke on Trent City Council,07/04/2015,59.40,Supplies and Services
 Schools,Stoke on Trent City Council,07/04/2015,"4,282.74",Supplies and Services
 Schools,CULTER CLEANING SUPPLIES LTD,14/04/2015,"8,251.38",Premises
 Schools,ABC TEACHERS LIMITED,07/04/2015,669.97,Employees
 Schools,JOHN MAIN LTD,13/04/2015,435.00,Premises
 Schools,DAWKES & CO LTD,13/04/2015,"7,297.00",Premises
 Schools,CULTER CLEANING SUPPLIES LTD,14/04/2015,710.85,Premises
 Schools,Smile Education Recruitment,14/04/2015,482.50,Employees
 CXO,Human Capital Index Limited,07/04/2015,"1,500.00",Supplies and Services
 Schools,PROJECT MANAGEMENT (STAFFS) LT,07/04/2015,552.00,Supplies and Services
 Schools,Discovery Education Europe Lim,07/04/2015,"1,632.55",Supplies and Services
Planning & Economic Development,M J B (DOVEFIELDS) LTD,15/04/2015,784.47,Premises
 CXO,BID,14/04/2015,220.00,Premises
 CXO,BID,14/04/2015,240.00,Premises
 CXO,BID,14/04/2015,240.00,Premises
Adult Social Care,BID,14/04/2015,220.00,Premises
 CXO,BID,14/04/2015,240.00,Premises
 CXO,BID,14/04/2015,220.00,Premises
 CXO,BID,14/04/2015,280.00,Premises
 Schools,BID,14/04/2015,220.00,Premises
 Schools,BID,14/04/2015,240.00,Premises
 Schools,BID,14/04/2015,260.00,Premises
 Schools,BID,14/04/2015,220.00,Premises
 Schools,BID,14/04/2015,220.00,Premises
 Schools,BID,14/04/2015,260.00,Premises
 CXO,BID,14/04/2015,420.00,Premises
Corporate & Democratic Core,BID,14/04/2015,220.00,Premises
 CXO,BID,14/04/2015,220.00,Premises
Corporate & Democratic Core,BID,14/04/2015,220.00,Premises
 CXO,BID,14/04/2015,220.00,Premises
 CXO,BID,14/04/2015,220.00,Premises
Planning & Economic Development,BID,14/04/2015,420.00,Premises
Adult Social Care,BID,14/04/2015,260.00,Premises
 Schools,BID,14/04/2015,220.00,Premises
 Schools,BID,14/04/2015,240.00,Premises
 Schools,BID,14/04/2015,260.00,Premises
 Schools,BID,14/04/2015,360.00,Premises
 Schools,BID,14/04/2015,260.00,Premises
 Schools,BID,14/04/2015,440.00,Premises
 Schools,BID,14/04/2015,260.00,Premises
 CXO,BID,14/04/2015,220.00,Premises
 CXO,BID,14/04/2015,220.00,Premises
 Schools,BID,14/04/2015,220.00,Premises
Adult Social Care,BID,14/04/2015,110.00,Premises
Other Education and Children's services,BID,14/04/2015,110.00,Premises
Adult Social Care,BID,14/04/2015,110.00,Premises
Other Education and Children's services,BID,14/04/2015,110.00,Premises
 CXO,BID,14/04/2015,220.00,Premises
 Schools,NATIONAL TEACHING ADVISORY SER,07/04/2015,-800.00,Supplies and Services
 Schools,BME TRAVEL,14/04/2015,240.00,Supplies and Services
 Schools,BME TRAVEL,14/04/2015,"1,000.00",Supplies and Services
Planning & Economic Development,Midwest Electrical Services Lt,10/04/2015,544.25,Premises
 Schools,PRIME PRINCIPLE LIMITED,14/04/2015,"1,400.00",Supplies and Services
Adult Social Care,Medequip Assistive Tech Ltd,08/04/2015,"67,500.00",Supplies and Services
 Schools,G L Education Group,07/04/2015,381.35,Supplies and Services
 Schools,G L Education Group,07/04/2015,240.00,Supplies and Services
Adult Social Care,Medequip Assistive Tech Ltd,08/04/2015,"357,654.39",Supplies and Services
 Schools,SOUTH STAFFORDSHIRE COLLEGE,07/04/2015,"1,320.00",Supplies and Services
Adult Social Care,Medequip Assistive Tech Ltd,08/04/2015,"86,864.78",Supplies and Services
 Schools,ITN MARK EDUCATION,14/04/2015,975.00,Employees
 Schools,Alliance in Partnership Ltd,10/04/2015,"-12,185.49",Supplies and Services
 Schools,Alliance in Partnership Ltd,10/04/2015,"15,207.81",Supplies and Services
 Schools,DECORER DECORATING SOLUTIONS,02/04/2015,"-4,360.00",Premises
 Schools,BIFFA WASTE SERVICES LTD,10/04/2015,"1,844.70",Supplies and Services
 Schools,CARE TODAY,14/04/2015,"3,126.42",Supplies and Services
 Schools,CARE TODAY,15/04/2015,"3,126.42",Supplies and Services
 Schools,CARE TODAY,15/04/2015,"3,126.20",Supplies and Services
 Schools,Schools Advisory Service,15/04/2015,"1,215.66",Employees
 Schools,CARE TODAY,15/04/2015,"3,126.42",Supplies and Services
Environment,C R WOODWISS,07/04/2015,"5,750.00",Premises
 Schools,TES Global Limited,14/04/2015,"1,274.00",Employees
 Schools,LICHFIELD DISTRICT COUNCIL,07/04/2015,"1,873.40",Premises
 Schools,TES Global Limited,14/04/2015,"1,274.00",Employees
 Schools,CARE TODAY,15/04/2015,"3,126.42",Supplies and Services
 Schools,TES Global Limited,14/04/2015,"1,374.00",Employees
 Schools,HOLLINSHEAD'S COACHES LTD,30/04/2015,850.00,Supplies and Services
 Schools,TES Global Limited,14/04/2015,"1,274.00",Employees
 Schools,ACTIVE LEARNING SPORTS,17/04/2015,"1,050.00",Supplies and Services
 Schools,Teachers2Parents Ltd,07/04/2015,749.00,Supplies and Services
 Schools,Factor 21 plc,07/04/2015,950.00,Employees
Adult Social Care,EMINENCE TRAVEL,14/04/2015,"2,926.00",Transport
 Schools,DUDLEY METRO BOROUGH COUNCIL,13/04/2015,"1,154.13",Supplies and Services
Adult Social Care,ROWAN ORGANISATION,15/04/2015,"31,084.48",Supplies and Services
ICT,Maddison Education Consultancy,13/04/2015,928.25,Supplies and Services
 Schools,J Thomas,21/04/2015,780.00,Employees
 Schools,RAHMQVIST UK LTD,10/04/2015,448.50,Supplies and Services
ICT,KEELE UNIVERSITY,07/04/2015,659.72,Supplies and Services
ICT,KEELE UNIVERSITY,07/04/2015,2.80,Supplies and Services
ICT,KEELE UNIVERSITY,07/04/2015,36.54,Supplies and Services
ICT,KEELE UNIVERSITY,07/04/2015,220.00,Income
ICT,KEELE UNIVERSITY,07/04/2015,166.75,Transport
ICT,KEELE UNIVERSITY,07/04/2015,59.38,Supplies and Services
ICT,KEELE UNIVERSITY,07/04/2015,7.00,Supplies and Services
ICT,KEELE UNIVERSITY,07/04/2015,100.00,Transport
 Schools,Premier Sport Ltd,14/04/2015,"1,112.50",Supplies and Services
 Schools,YORKSHIRE PURCHASING ORG,21/04/2015,989.33,Supplies and Services
 Schools,YORKSHIRE PURCHASING ORG,10/04/2015,486.00,Supplies and Services
Other Education and Children's services,Atkinson Lewis,07/04/2015,"1,540.00",Supplies and Services
 Schools,Premier Sport Ltd,10/04/2015,540.00,Employees
Adult Social Care,E Stobart,09/04/2015,"2,000.00",Supplies and Services
Adult Social Care,E Stobart,09/04/2015,500.00,Supplies and Services
Other Education and Children's services,HOME JAMES & EASY CAB,14/04/2015,"1,779.36",Transport
Other Education and Children's services,HOME JAMES & EASY CAB,14/04/2015,444.84,Transport
Other Education and Children's services,HOME JAMES & EASY CAB,14/04/2015,"1,556.94",Transport
Other Education and Children's services,HOME JAMES & EASY CAB,14/04/2015,266.86,Transport
Other Education and Children's services,J & S Taxis,14/04/2015,"1,668.26",Transport
Other Education and Children's services,J & S Taxis,14/04/2015,277.86,Transport
Other Education and Children's services,Chuckle Productions LTD,15/04/2015,"1,916.25",Supplies and Services
Other Education and Children's services,NEW TRANSPORT,14/04/2015,"2,145.00",Transport
Other Education and Children's services,PRE SCHOOL LEARNING ALLIANCE,14/04/2015,"4,750.00",Supplies and Services
Other Education and Children's services,STEVE'S CARS,14/04/2015,"2,092.00",Transport
Other Education and Children's services,STEVE'S CARS,14/04/2015,770.00,Transport
Other Education and Children's services,PRE SCHOOL LEARNING ALLIANCE,14/04/2015,"1,928.57",Supplies and Services
Other Education and Children's services,J & S Taxis,14/04/2015,"1,210.00",Transport
Other Education and Children's services,J & S Taxis,14/04/2015,308.00,Transport
Other Education and Children's services,PRE SCHOOL LEARNING ALLIANCE,14/04/2015,"7,921.53",Supplies and Services
Other Education and Children's services,Signpost (Stafford) Ltd,07/04/2015,"2,343.01",Supplies and Services
Planning & Economic Development,P & D YORK TRAVEL,14/04/2015,198.00,Transport
Planning & Economic Development,P & D YORK TRAVEL,14/04/2015,613.92,Transport
Other Education and Children's services,P & D YORK TRAVEL,14/04/2015,"24,291.30",Transport
Other Education and Children's services,D P JONES TAXIS,15/04/2015,563.42,Transport
Other Education and Children's services,D P JONES TAXIS,15/04/2015,563.42,Transport
Other Education and Children's services,D P JONES TAXIS,15/04/2015,528.00,Transport
Other Education and Children's services,Signpost (Stafford) Ltd,07/04/2015,"2,343.01",Supplies and Services
Planning & Economic Development,COMMUNITY LINK STAFFORD & DIST,15/04/2015,505.33,Transport
Other Education and Children's services,WARRINGTON COACHES,14/04/2015,"2,220.00",Transport
Other Education and Children's services,Barnardos West,07/04/2015,"20,000.00",Supplies and Services
Other Education and Children's services,COMMUNITY LINK STAFFORD & DIST,15/04/2015,880.00,Transport
Other Education and Children's services,COMMUNITY LINK STAFFORD & DIST,15/04/2015,440.00,Transport
Other Education and Children's services,COMMUNITY LINK STAFFORD & DIST,15/04/2015,"5,005.66",Transport
Other Education and Children's services,COMMUNITY LINK STAFFORD & DIST,15/04/2015,"1,334.74",Transport
Other Education and Children's services,PRE SCHOOL LEARNING ALLIANCE,14/04/2015,"9,509.75",Supplies and Services
Other Education and Children's services,HULMES TAXIS,14/04/2015,792.44,Transport
Other Education and Children's services,Inspired Parenting,07/04/2015,"2,000.00",Supplies and Services
Other Education and Children's services,Inspired Parenting,07/04/2015,"2,500.00",Supplies and Services
Planning & Economic Development,P & D YORK TRAVEL,14/04/2015,890.00,Transport
Other Education and Children's services,Chuckle Productions LTD,07/04/2015,"4,265.50",Supplies and Services
Other Education and Children's services,Oaklands Childcare,14/04/2015,"3,883.35",Supplies and Services
Other Education and Children's services,COMMUNITY LINK STAFFORD & DIST,15/04/2015,"12,443.20",Transport
Other Education and Children's services,Midland Classic Ltd,15/04/2015,"18,427.20",Transport
Other Education and Children's services,L A TRAVEL,14/04/2015,"12,193.06",Transport
Other Education and Children's services,L A TRAVEL,14/04/2015,"2,618.88",Transport
Other Education and Children's services,L A TRAVEL,14/04/2015,"3,300.00",Transport
Other Education and Children's services,L A TRAVEL,14/04/2015,528.00,Transport
Other Education and Children's services,LONDON MIDLAND,08/04/2015,"5,358.60",Transport
Other Education and Children's services,LONDON MIDLAND,08/04/2015,"1,155.50",Transport
Other Education and Children's services,ABC SUPREME LTD,14/04/2015,983.40,Transport
Other Education and Children's services,ABC SUPREME LTD,14/04/2015,740.00,Transport
Other Education and Children's services,ABC SUPREME LTD,14/04/2015,638.00,Transport
Other Education and Children's services,ABC SUPREME LTD,14/04/2015,696.00,Transport
Other Education and Children's services,ABC SUPREME LTD,14/04/2015,"1,040.00",Transport
Other Education and Children's services,ABC SUPREME LTD,14/04/2015,"1,637.12",Transport
Planning & Economic Development,JST INTERNATIONAL LTD,14/04/2015,852.00,Transport
Planning & Economic Development,JST INTERNATIONAL LTD,14/04/2015,332.09,Transport
Other Education and Children's services,Transport Direct,14/04/2015,"19,147.08",Transport
Planning & Economic Development,Midland Classic Ltd,15/04/2015,"19,421.14",Transport
Other Education and Children's services,ELIZABETH ANNE Training Ltd,14/04/2015,"2,762.00",Transport
Other Education and Children's services,ANTHONYS AJ'S A1,14/04/2015,"1,928.08",Transport
Other Education and Children's services,ANTHONYS AJ'S A1,14/04/2015,396.00,Transport
Other Education and Children's services,ANTHONYS AJ'S A1,14/04/2015,440.00,Transport
 Schools,Reed Specialist Recruitment Lt,07/04/2015,738.75,Employees
Finance,CYCLESCHEME,08/04/2015,885.40,Supplies and Services
Finance,CYCLESCHEME,08/04/2015,37.99,Supplies and Services
 Schools,Reed Specialist Recruitment Lt,10/04/2015,738.75,Employees
Other Education and Children's services,H GRIFFITHS,15/04/2015,"2,001.78",Transport
Other Education and Children's services,H GRIFFITHS,15/04/2015,467.06,Transport
Other Education and Children's services,H GRIFFITHS,15/04/2015,"12,480.60",Transport
Other Education and Children's services,H GRIFFITHS,15/04/2015,"3,229.16",Transport
Other Education and Children's services,H GRIFFITHS,15/04/2015,"1,252.02",Transport
Other Education and Children's services,H GRIFFITHS,15/04/2015,135.96,Transport
Other Education and Children's services,H GRIFFITHS,15/04/2015,"5,145.14",Transport
Other Education and Children's services,H GRIFFITHS,15/04/2015,"1,324.40",Transport
Other Education and Children's services,H GRIFFITHS,15/04/2015,"8,119.10",Transport
Other Education and Children's services,H GRIFFITHS,15/04/2015,"1,559.58",Transport
Other Education and Children's services,H GRIFFITHS,15/04/2015,849.24,Transport
Other Education and Children's services,H GRIFFITHS,15/04/2015,"1,501.50",Transport
Other Education and Children's services,H GRIFFITHS,15/04/2015,271.70,Transport
Other Education and Children's services,H GRIFFITHS,15/04/2015,"1,100.00",Transport
Other Education and Children's services,H GRIFFITHS,15/04/2015,308.00,Transport
Other Education and Children's services,H GRIFFITHS,15/04/2015,"2,904.00",Transport
Other Education and Children's services,H GRIFFITHS,15/04/2015,"3,120.48",Transport
Other Education and Children's services,H GRIFFITHS,15/04/2015,948.42,Transport
Other Education and Children's services,H GRIFFITHS,15/04/2015,30.00,Transport
Other Education and Children's services,H GRIFFITHS,15/04/2015,6.51,Transport
Other Education and Children's services,Train To Equip Sue Rastall Ltd,09/04/2015,"2,700.00",Supplies and Services
Other Education and Children's services,Stafford & Rural Homes,10/04/2015,"4,586.09",Supplies and Services
Other Education and Children's services,ARCH NORTH STAFFS LTD,07/04/2015,"18,758.00",Supplies and Services
Other Education and Children's services,ANTHONYS AJ'S A1,14/04/2015,"1,672.00",Transport
Other Education and Children's services,ANTHONYS AJ'S A1,14/04/2015,792.00,Transport
Other Education and Children's services,ANTHONYS AJ'S A1,14/04/2015,"1,672.00",Transport
Other Education and Children's services,ANTHONYS AJ'S A1,14/04/2015,"1,076.04",Transport
Other Education and Children's services,ANTHONYS AJ'S A1,14/04/2015,"1,188.00",Transport
Other Education and Children's services,ANTHONYS AJ'S A1,14/04/2015,"1,452.00",Transport
Other Education and Children's services,ANTHONYS AJ'S A1,14/04/2015,792.00,Transport
Other Education and Children's services,ANTHONYS AJ'S A1,14/04/2015,"3,256.00",Transport
Other Education and Children's services,ANTHONYS AJ'S A1,14/04/2015,750.20,Transport
Other Education and Children's services,ANTHONYS AJ'S A1,14/04/2015,562.76,Transport
Other Education and Children's services,ANTHONYS AJ'S A1,14/04/2015,724.68,Transport
Other Education and Children's services,ANTHONYS AJ'S A1,14/04/2015,"1,468.06",Transport
Other Education and Children's services,ANTHONYS AJ'S A1,14/04/2015,266.88,Transport
Other Education and Children's services,ANTHONYS AJ'S A1,14/04/2015,"2,858.02",Transport
Other Education and Children's services,ANTHONYS AJ'S A1,14/04/2015,"1,782.00",Transport
Other Education and Children's services,ANTHONYS AJ'S A1,14/04/2015,880.00,Transport
Other Education and Children's services,ANTHONYS AJ'S A1,14/04/2015,363.00,Transport
Planning & Economic Development,TAXICO,14/04/2015,"5,000.00",Transport
Finance,WEST MIDS EMPLOYERS,15/04/2015,"25,500.00",Supplies and Services
Other Education and Children's services,BENNETT'S TAXIS,15/04/2015,"3,057.56",Transport
Other Education and Children's services,BENNETT'S TAXIS,15/04/2015,693.00,Transport
Other Education and Children's services,BENNETT'S TAXIS,15/04/2015,"1,016.40",Transport
Other Education and Children's services,BENNETT'S TAXIS,15/04/2015,272.00,Transport
Other Education and Children's services,BENNETT'S TAXIS,15/04/2015,384.20,Transport
Other Education and Children's services,BENNETT'S TAXIS,15/04/2015,"2,940.00",Transport
Other Education and Children's services,BENNETT'S TAXIS,15/04/2015,"3,602.50",Transport
Other Education and Children's services,BENNETT'S TAXIS,15/04/2015,888.58,Transport
Other Education and Children's services,BENNETT'S TAXIS,15/04/2015,567.00,Transport
Other Education and Children's services,BENNETT'S TAXIS,15/04/2015,"1,559.40",Transport
Other Education and Children's services,BENNETT'S TAXIS,15/04/2015,286.65,Transport
Other Education and Children's services,BENNETT'S TAXIS,15/04/2015,"1,511.62",Transport
Other Education and Children's services,BENNETT'S TAXIS,15/04/2015,"3,682.80",Transport
Other Education and Children's services,BENNETT'S TAXIS,15/04/2015,"1,012.00",Transport
Other Education and Children's services,M N MAHMOOD,15/04/2015,"1,087.66",Transport
Other Education and Children's services,M N MAHMOOD,15/04/2015,444.84,Transport
Other Education and Children's services,A D RUTTER,14/04/2015,"2,353.78",Transport
Other Education and Children's services,TCS PRIVATE HIRE,15/04/2015,842.72,Transport
 Schools,ASPIRE PEOPLE LTD,17/04/2015,465.00,Employees
Other Education and Children's services,TRAVELWRIGHT,15/04/2015,"2,577.30",Transport
 Schools,PEARSON EDUCATION LTD,07/04/2015,710.63,Supplies and Services
 Schools,PEARSON EDUCATION LTD,07/04/2015,508.75,Supplies and Services
Other Education and Children's services,57 TAXIS,16/04/2015,"1,494.46",Transport
Other Education and Children's services,57 TAXIS,16/04/2015,271.70,Transport
Other Education and Children's services,57 TAXIS,16/04/2015,748.00,Transport
Other Education and Children's services,57 TAXIS,16/04/2015,"1,283.91",Transport
Other Education and Children's services,57 TAXIS,16/04/2015,420.00,Transport
Other Education and Children's services,57 TAXIS,16/04/2015,"1,760.00",Transport
Other Education and Children's services,57 TAXIS,16/04/2015,440.00,Transport
Other Education and Children's services,STAFFS TRAVEL,14/04/2015,686.40,Transport
Planning & Economic Development,WARDLE TRANSPORT,08/04/2015,"11,281.50",Transport
Other Education and Children's services,WARDLE TRANSPORT,08/04/2015,"2,247.90",Transport
Other Education and Children's services,Voyager Travel,15/04/2015,"2,655.40",Transport
Other Education and Children's services,S Mahmood,14/04/2015,"4,876.39",Transport
Other Education and Children's services,S Mahmood,14/04/2015,922.36,Transport
Other Education and Children's services,58 Taxis,14/04/2015,"2,772.00",Transport
Other Education and Children's services,58 Taxis,14/04/2015,748.00,Transport
Other Education and Children's services,58 Taxis,08/04/2015,"1,890.00",Transport
Other Education and Children's services,58 Taxis,08/04/2015,510.00,Transport
 Schools,Accord Group - MKH Advertising,14/04/2015,"3,025.00",Employees
Other Education and Children's services,AIRPORT CARS LICHFIELD,15/04/2015,"1,300.00",Transport
Other Education and Children's services,AIRPORT CARS LICHFIELD,15/04/2015,"1,271.60",Transport
Other Education and Children's services,AIRPORT CARS LICHFIELD,15/04/2015,465.40,Transport
Other Education and Children's services,AIRPORT CARS LICHFIELD,15/04/2015,"1,607.26",Transport
Other Education and Children's services,S Mahmood,08/04/2015,"3,400.80",Transport
Other Education and Children's services,S Mahmood,08/04/2015,645.60,Transport
Other Education and Children's services,Voyager Travel,15/04/2015,"1,721.28",Transport
Other Education and Children's services,Voyager Travel,15/04/2015,508.64,Transport
Other Education and Children's services,Voyager Travel,15/04/2015,"1,232.00",Transport
Other Education and Children's services,Voyager Travel,15/04/2015,"1,721.28",Transport
Other Education and Children's services,Voyager Travel,15/04/2015,508.64,Transport
Other Education and Children's services,SOLUS COACHES,14/04/2015,"10,264.10",Transport
Other Education and Children's services,SOLUS COACHES,08/04/2015,"7,030.80",Transport
Other Education and Children's services,SOLUS COACHES,08/04/2015,"2,640.00",Transport
 Schools,CANNOCK CHASE COUNCIL,09/04/2015,"21,593.40",Premises
Finance,CAPITA RESOURCING LIMITED,14/04/2015,"1,807.65",Employees
Finance,CAPITA RESOURCING LIMITED,14/04/2015,30.00,Employees
Adult Social Care,CHOICES HOUSING ASSOCIATION,10/04/2015,"1,987.29",Supplies and Services
Adult Social Care,CHOICES HOUSING ASSOCIATION,10/04/2015,"-1,324.86",Income
Adult Social Care,CHOICES HOUSING ASSOCIATION,10/04/2015,"3,582.45",Supplies and Services
Adult Social Care,CHOICES HOUSING ASSOCIATION,10/04/2015,"-1,872.84",Income
 Schools,Academics,14/04/2015,"1,236.60",Employees
 Schools,L.W. SKIPS & CONQUEST TRANSPOR,07/04/2015,"2,769.00",Supplies and Services
 Schools,MIDLAND NEWS ASSOCIATION LTD,07/04/2015,505.70,Supplies and Services
 Schools,Prospero Teaching,14/04/2015,"1,100.00",Employees
Corporate & Democratic Core,LYNDA MALLEN,08/04/2015,"52,738.83",Supplies & Services
 Schools,TARA PROFESSIONAL RECRUITMENT,13/04/2015,"2,035.00",Employees
Other Education and Children's services,Z CARZ PRIVATE HIRE,14/04/2015,"12,366.86",Transport
Other Education and Children's services,Z CARZ PRIVATE HIRE,14/04/2015,"3,591.50",Transport
Other Education and Children's services,Z CARZ PRIVATE HIRE,14/04/2015,"4,822.18",Transport
Other Education and Children's services,Z CARZ PRIVATE HIRE,14/04/2015,"3,669.16",Transport
Other Education and Children's services,Z CARZ PRIVATE HIRE,14/04/2015,"1,577.62",Transport
Other Education and Children's services,Z CARZ PRIVATE HIRE,14/04/2015,"1,045.44",Transport
Other Education and Children's services,Z CARZ PRIVATE HIRE,14/04/2015,"9,134.90",Transport
Other Education and Children's services,Z CARZ PRIVATE HIRE,14/04/2015,"1,436.10",Transport
Other Education and Children's services,Z CARZ PRIVATE HIRE,14/04/2015,712.80,Transport
Other Education and Children's services,Z CARZ PRIVATE HIRE,14/04/2015,"1,840.52",Transport
Other Education and Children's services,Z CARZ PRIVATE HIRE,14/04/2015,522.72,Transport
Other Education and Children's services,Z CARZ PRIVATE HIRE,14/04/2015,"3,863.42",Transport
Other Education and Children's services,Z CARZ PRIVATE HIRE,14/04/2015,"1,704.34",Transport
Other Education and Children's services,Z CARZ PRIVATE HIRE,14/04/2015,"1,857.46",Transport
Other Education and Children's services,Z CARZ PRIVATE HIRE,14/04/2015,777.48,Transport
Other Education and Children's services,Z CARZ PRIVATE HIRE,14/04/2015,"2,635.60",Transport
Other Education and Children's services,Z CARZ PRIVATE HIRE,14/04/2015,598.40,Transport
 Schools,West Mid Lithographic Printing,07/04/2015,599.00,Supplies and Services
 Schools,West Mid Lithographic Printing,07/04/2015,37.00,Supplies and Services
Adult Social Care,NHS CANNOCK CHASE CCG,08/04/2015,"25,057.26",Supplies and Services
Adult Social Care,NHS CANNOCK CHASE CCG,08/04/2015,"25,072.00",Supplies and Services
Adult Social Care,NHS Stafford and Surrounds CCG,09/04/2015,"22,742.67",Supplies and Services
 Schools,RM & C Constultants Ltd,15/04/2015,"1,850.00",Supplies and Services
Adult Social Care,WHITEHOUSE PHARMACY,08/04/2015,511.59,Supplies and Services
Planning & Economic Development,Maximeyes Security Ltd,14/04/2015,423.00,Supplies and Services
Adult Social Care,Asda Pharmacy (Tamworth),08/04/2015,783.65,Supplies and Services
Adult Social Care,BOOTS THE CHEMIST LTD,08/04/2015,540.05,Supplies and Services
Adult Social Care,PRIMARY CARE PHARMACY,08/04/2015,700.13,Supplies and Services
Adult Social Care,Hays Social Care Ltd,14/04/2015,853.61,Employees
 Schools,Entrust Support Services Ltd,08/04/2015,514.80,Supplies and Services
 Schools,Entrust Support Services Ltd,08/04/2015,832.50,Supplies and Services
Health Trust,Daycare Domicilliary Services,14/04/2015,520.80,Supplies and Services
Adult Social Care,RAJJA LTD,10/04/2015,"1,361.05",Supplies and Services
 Schools,CULTER CLEANING SUPPLIES LTD,14/04/2015,651.75,Premises
Finance,CUNNINGHAM LINDSEY UK,08/04/2015,596.00,Supplies and Services
Planning & Economic Development,PHS GROUP PLC,10/04/2015,546.46,Supplies and Services
Adult Social Care,Salters Meadow Ltd,10/04/2015,572.20,Supplies and Services
Adult Social Care,PAGE TURNER HALL & SUTTON,08/04/2015,732.20,Supplies and Services
Adult Social Care,NHS Stafford and Surrounds CCG,08/04/2015,"23,564.00",Supplies and Services
Health Trust,Radfield Home Care,09/04/2015,523.79,Supplies and Services
Health Trust,Radfield Home Care,09/04/2015,577.20,Supplies and Services
 Schools,S C CLOWES & PARTNERS,16/04/2015,"2,073.00",Premises
Other Education and Children's services,K Cabs,15/04/2015,"1,045.66",Transport
Other Education and Children's services,K Cabs,15/04/2015,782.18,Transport
Other Education and Children's services,K Cabs,15/04/2015,356.86,Transport
Other Education and Children's services,K Cabs,15/04/2015,635.00,Transport
Other Education and Children's services,K Cabs,15/04/2015,489.64,Transport
Other Education and Children's services,K Cabs,15/04/2015,"2,530.00",Transport
Other Education and Children's services,K Cabs,15/04/2015,792.00,Transport
Other Education and Children's services,K Cabs,15/04/2015,"1,645.94",Transport
Other Education and Children's services,K Cabs,15/04/2015,440.00,Transport
Planning & Economic Development,ABC SUPREME LTD,14/04/2015,"3,505.42",Transport
Planning & Economic Development,ABC SUPREME LTD,14/04/2015,"2,752.30",Transport
Planning & Economic Development,Pro Secure Ltd,14/04/2015,775.00,Supplies and Services
 Schools,TES Global Limited,16/04/2015,997.00,Employees
Planning & Economic Development,BUSINESS WATCH GUARDING LTD,14/04/2015,"4,787.42",Supplies and Services
Law & Governence,COMMUNITY TOGETHER CIC,14/04/2015,500.00,Third Party
Health Trust,Angel Homecaring,14/04/2015,588.08,Supplies and Services
Other Education and Children's services,AMG NURSING & CARE SERVICES,10/04/2015,840.64,Supplies and Services
Adult Social Care,CARERS ASSOC SOUTHERN STAFFS,13/04/2015,"78,226.00",Supplies and Services
 Schools,ASPIRE PEOPLE LTD,17/04/2015,792.00,Employees
Adult Social Care,NORTH STAFFS CARERS ASSOCIATIO,15/04/2015,"23,009.33",Supplies and Services
Adult Social Care,NORTH STAFFS CARERS ASSOCIATIO,15/04/2015,"1,949.08",Supplies and Services
Other Education and Children's services,ANTHONYS AJ'S A1,14/04/2015,879.50,Transport
Other Education and Children's services,ANTHONYS AJ'S A1,14/04/2015,434.00,Transport
Other Education and Children's services,ANTHONYS AJ'S A1,14/04/2015,792.00,Transport
Other Education and Children's services,ANTHONYS AJ'S A1,14/04/2015,"1,150.55",Transport
Other Education and Children's services,KAMINSKI CORPORATE LTD,14/04/2015,347.00,Transport
Other Education and Children's services,KAMINSKI CORPORATE LTD,14/04/2015,"1,357.86",Transport
 Schools,Forward Products (2013) Ltd,14/04/2015,"1,260.00",Supplies and Services
Other Education and Children's services,COPELAND'S TOURS (S-O-T) LTD,14/04/2015,"6,303.74",Transport
Other Education and Children's services,N B Travels,14/04/2015,"2,355.32",Transport
Other Education and Children's services,N B Travels,14/04/2015,645.04,Transport
Other Education and Children's services,MAJESTIC TRAVEL,14/04/2015,"8,054.64",Transport
 Schools,CAPITA BUSINESS SERVICES LTD,08/04/2015,"1,995.00",Supplies and Services
Planning & Economic Development,Travel West Midlands,14/04/2015,"6,368.26",Transport
Other Education and Children's services,BENNETTS TRAVEL LTD,14/04/2015,"1,200.00",Transport
Other Education and Children's services,BENNETTS TRAVEL LTD,14/04/2015,258.00,Transport
Other Education and Children's services,BENNETTS TRAVEL LTD,14/04/2015,"1,339.00",Transport
Other Education and Children's services,BENNETTS TRAVEL LTD,14/04/2015,"4,005.32",Transport
Other Education and Children's services,BENNETTS TRAVEL LTD,14/04/2015,509.52,Transport
Other Education and Children's services,BENNETTS TRAVEL LTD,14/04/2015,"1,489.54",Transport
Other Education and Children's services,BENNETTS TRAVEL LTD,14/04/2015,311.15,Transport
Other Education and Children's services,BENNETTS TRAVEL LTD,14/04/2015,"2,917.74",Transport
Other Education and Children's services,BENNETTS TRAVEL LTD,14/04/2015,432.18,Transport
Other Education and Children's services,BENNETTS TRAVEL LTD,14/04/2015,"1,762.26",Transport
Other Education and Children's services,BENNETTS TRAVEL LTD,14/04/2015,468.18,Transport
Other Education and Children's services,BENNETTS TRAVEL LTD,14/04/2015,"2,810.48",Transport
Other Education and Children's services,BENNETTS TRAVEL LTD,14/04/2015,498.30,Transport
 Schools,ABC TEACHERS LIMITED,08/04/2015,924.95,Employees
Other Education and Children's services,EMINENCE TRAVEL,14/04/2015,"5,170.00",Transport
Other Education and Children's services,EMINENCE TRAVEL,14/04/2015,"1,848.00",Transport
Other Education and Children's services,EMINENCE TRAVEL,14/04/2015,330.00,Transport
Other Education and Children's services,EMINENCE TRAVEL,14/04/2015,"1,848.00",Transport
Other Education and Children's services,EMINENCE TRAVEL,14/04/2015,330.00,Transport
Other Education and Children's services,EMINENCE TRAVEL,14/04/2015,"4,834.50",Transport
Other Education and Children's services,EMINENCE TRAVEL,14/04/2015,"1,160.50",Transport
Other Education and Children's services,EMINENCE TRAVEL,14/04/2015,"1,078.00",Transport
Other Education and Children's services,EMINENCE TRAVEL,14/04/2015,"2,976.38",Transport
Other Education and Children's services,EMINENCE TRAVEL,14/04/2015,"6,272.86",Transport
Other Education and Children's services,EMINENCE TRAVEL,14/04/2015,"1,346.62",Transport
Other Education and Children's services,EMINENCE TRAVEL,14/04/2015,"3,347.30",Transport
 Schools,ABC TEACHERS LIMITED,14/04/2015,924.95,Employees
Other Education and Children's services,A & H Cars,15/04/2015,"1,486.76",Transport
Other Education and Children's services,A & H Cars,15/04/2015,511.50,Transport
Other Education and Children's services,M G CHALLINOR T/A CHALLINOR TR,14/04/2015,"2,664.64",Transport
Other Education and Children's services,TAMWORTH TAXIS & PRIVATE HIRE,16/04/2015,"2,948.00",Transport
Other Education and Children's services,TAMWORTH TAXIS & PRIVATE HIRE,16/04/2015,880.00,Transport
Other Education and Children's services,TAMWORTH TAXIS & PRIVATE HIRE,16/04/2015,748.00,Transport
Other Education and Children's services,TAMWORTH TAXIS & PRIVATE HIRE,16/04/2015,"2,050.90",Transport
Other Education and Children's services,TAMWORTH TAXIS & PRIVATE HIRE,16/04/2015,841.00,Transport
Other Education and Children's services,TAMWORTH TAXIS & PRIVATE HIRE,16/04/2015,232.00,Transport
Corporate,STOKE CITY COUNCIL (ALL ACCS),28/04/2015,"2,116,027.92",Third Party
Other Education and Children's services,LUCKY SEVEN PRIVATE HIRE,15/04/2015,"1,980.00",Transport
Other Education and Children's services,LUCKY SEVEN PRIVATE HIRE,15/04/2015,594.00,Transport
Other Education and Children's services,LUCKY SEVEN PRIVATE HIRE,15/04/2015,938.52,Transport
Other Education and Children's services,LUCKY SEVEN PRIVATE HIRE,15/04/2015,"9,748.42",Transport
Other Education and Children's services,LUCKY SEVEN PRIVATE HIRE,15/04/2015,"3,395.48",Transport
Other Education and Children's services,LUCKY SEVEN PRIVATE HIRE,15/04/2015,660.00,Transport
Other Education and Children's services,LUCKY SEVEN PRIVATE HIRE,15/04/2015,198.00,Transport
Other Education and Children's services,LUCKY SEVEN PRIVATE HIRE,15/04/2015,"2,179.76",Transport
Other Education and Children's services,LUCKY SEVEN PRIVATE HIRE,15/04/2015,400.40,Transport
Other Education and Children's services,LUCKY SEVEN PRIVATE HIRE,15/04/2015,"1,465.20",Transport
Other Education and Children's services,LUCKY SEVEN PRIVATE HIRE,15/04/2015,"2,065.14",Transport
Other Education and Children's services,LUCKY SEVEN PRIVATE HIRE,15/04/2015,274.78,Transport
Other Education and Children's services,LUCKY SEVEN PRIVATE HIRE,15/04/2015,"1,067.66",Transport
Other Education and Children's services,LUCKY SEVEN PRIVATE HIRE,15/04/2015,400.40,Transport
Other Education and Children's services,LUCKY SEVEN PRIVATE HIRE,15/04/2015,"2,873.20",Transport
Other Education and Children's services,LUCKY SEVEN PRIVATE HIRE,15/04/2015,792.00,Transport
Other Education and Children's services,LUCKY SEVEN PRIVATE HIRE,15/04/2015,"3,218.60",Transport
Other Education and Children's services,LUCKY SEVEN PRIVATE HIRE,15/04/2015,"1,290.08",Transport
Other Education and Children's services,LUCKY SEVEN PRIVATE HIRE,15/04/2015,"2,289.54",Transport
Other Education and Children's services,LUCKY SEVEN PRIVATE HIRE,15/04/2015,675.18,Transport
 Schools,OXFORD UNIVERSITY PRESS,08/04/2015,924.26,Supplies and Services
Other Education and Children's services,M Wyatt,15/04/2015,61.20,Transport
Other Education and Children's services,M Wyatt,15/04/2015,15.17,Transport
Other Education and Children's services,M Wyatt,15/04/2015,"1,285.20",Transport
Other Education and Children's services,M Wyatt,15/04/2015,318.57,Transport
Other Education and Children's services,M Wyatt,15/04/2015,"1,747.68",Transport
Other Education and Children's services,M Wyatt,15/04/2015,553.74,Transport
Other Education and Children's services,M Wyatt,15/04/2015,"2,866.38",Transport
Other Education and Children's services,M Wyatt,15/04/2015,667.26,Transport
Other Education and Children's services,M Wyatt,15/04/2015,633.82,Transport
Other Education and Children's services,M Wyatt,15/04/2015,271.70,Transport
Other Education and Children's services,Flyaway & Amber Travel Uk,17/04/2015,"1,210.00",Transport
Other Education and Children's services,Flyaway & Amber Travel Uk,17/04/2015,277.64,Transport
Other Education and Children's services,Flyaway & Amber Travel Uk,17/04/2015,"1,782.00",Transport
Other Education and Children's services,Flyaway & Amber Travel Uk,17/04/2015,396.00,Transport
Other Education and Children's services,Flyaway & Amber Travel Uk,17/04/2015,"1,210.00",Transport
Other Education and Children's services,Flyaway & Amber Travel Uk,17/04/2015,"1,496.00",Transport
Other Education and Children's services,Flyaway & Amber Travel Uk,17/04/2015,416.46,Transport
Other Education and Children's services,Flyaway & Amber Travel Uk,17/04/2015,"2,373.88",Transport
Other Education and Children's services,Flyaway & Amber Travel Uk,17/04/2015,596.88,Transport
Other Education and Children's services,Flyaway & Amber Travel Uk,17/04/2015,"1,100.00",Transport
Other Education and Children's services,Flyaway & Amber Travel Uk,17/04/2015,277.64,Transport
Other Education and Children's services,Flyaway & Amber Travel Uk,17/04/2015,"1,760.00",Transport
Other Education and Children's services,Flyaway & Amber Travel Uk,17/04/2015,535.04,Transport
Other Education and Children's services,Flyaway & Amber Travel Uk,17/04/2015,"2,706.00",Transport
Other Education and Children's services,Flyaway & Amber Travel Uk,17/04/2015,885.28,Transport
 Schools,Corona Energy Retail 4 Ltd,08/04/2015,"1,126.71",Premises
Planning & Economic Development,COASTAL LINER LTD,14/04/2015,"1,900.68",Transport
Other Education and Children's services,COASTAL LINER LTD,14/04/2015,"2,717.00",Transport
Other Education and Children's services,STEVEN'S TRAVEL,15/04/2015,"2,530.00",Transport
Other Education and Children's services,P STODDARD & SONS CHEADLE LTD,14/04/2015,"6,605.94",Transport
Finance,ESPHERA SOLUTIONS LTD,08/04/2015,"4,165.15",Supplies and Services
Other Education and Children's services,CANNOCK CABS & CO,14/04/2015,"1,067.00",Transport
Other Education and Children's services,CANNOCK CABS & CO,14/04/2015,264.00,Transport
Other Education and Children's services,CANNOCK CABS & CO,14/04/2015,"1,093.40",Transport
Other Education and Children's services,CANNOCK CABS & CO,14/04/2015,334.40,Transport
Other Education and Children's services,CANNOCK CABS & CO,14/04/2015,"1,067.00",Transport
Other Education and Children's services,CANNOCK CABS & CO,14/04/2015,264.00,Transport
Other Education and Children's services,CANNOCK CABS & CO,14/04/2015,"1,177.00",Transport
Other Education and Children's services,CANNOCK CABS & CO,14/04/2015,462.00,Transport
Planning & Economic Development,CANNOCK CABS & CO,14/04/2015,"1,835.60",Transport
Trading Service Scientific Services,Walsall Metropolitan B C,10/04/2015,900.00,Supplies and Services
Finance,ESPHERA SOLUTIONS LTD,08/04/2015,"4,165.15",Supplies and Services
Other Education and Children's services,Bruce Hill,14/04/2015,"1,276.00",Transport
Other Education and Children's services,Bruce Hill,14/04/2015,374.00,Transport
Health Trust,Jump 2 Independence Ltd,10/04/2015,879.62,Supplies and Services
Health Trust,Jump 2 Independence Ltd,10/04/2015,648.90,Supplies and Services
Finance,ESPHERA SOLUTIONS LTD,08/04/2015,"4,165.15",Supplies and Services
Health Trust,Jump 2 Independence Ltd,10/04/2015,894.04,Supplies and Services
Health Trust,Jump 2 Independence Ltd,10/04/2015,894.04,Supplies and Services
Finance,ESPHERA SOLUTIONS LTD,08/04/2015,"4,165.15",Supplies and Services
Trading Service Scientific Services,Scientific Analysis Labs Ltd,14/04/2015,"3,600.80",Supplies and Services
 Schools,SEVERN TRENT WATER LTD,08/04/2015,890.19,Premises
Health Trust,Jump 2 Independence Ltd,10/04/2015,894.04,Supplies and Services
Trading Service Scientific Services,Scientific Analysis Labs Ltd,14/04/2015,780.00,Supplies and Services
Trading Service Scientific Services,Scientific Analysis Labs Ltd,14/04/2015,"10,100.00",Supplies and Services
Health Trust,Jump 2 Independence Ltd,10/04/2015,504.70,Supplies and Services
Trading Service Scientific Services,Scientific Analysis Labs Ltd,14/04/2015,"12,195.00",Supplies and Services
Health Trust,Jump 2 Independence Ltd,10/04/2015,879.62,Supplies and Services
Health Trust,Jump 2 Independence Ltd,10/04/2015,894.04,Supplies and Services
Corporate,STAFFORDSHIRE FIRE & RESCUE SE,28/04/2015,"438,196.82",Third Party
Health Trust,Jump 2 Independence Ltd,10/04/2015,713.20,Supplies and Services
Health Trust,Jump 2 Independence Ltd,10/04/2015,926.66,Supplies and Services
Health Trust,Jump 2 Independence Ltd,10/04/2015,"1,312.22",Supplies and Services
Health Trust,Jump 2 Independence Ltd,10/04/2015,533.54,Supplies and Services
Health Trust,Jump 2 Independence Ltd,10/04/2015,605.64,Supplies and Services
Other Education and Children's services,GRAIL COURT HOTEL,15/04/2015,480.86,Supplies and Services
Other Education and Children's services,Capita Translation & Interpret,14/04/2015,"1,368.24",Supplies and Services
Other Education and Children's services,Capita Translation & Interpret,14/04/2015,672.03,Supplies and Services
Health Trust,Jump 2 Independence Ltd,10/04/2015,771.47,Supplies and Services
Adult Social Care,Richmond Fellowship,20/04/2015,"28,102.75",Supplies and Services
Adult Social Care,Richmond Fellowship,17/04/2015,"37,122.75",Supplies and Services
Health Trust,Jump 2 Independence Ltd,10/04/2015,605.64,Supplies and Services
Health Trust,Jump 2 Independence Ltd,10/04/2015,"1,009.40",Supplies and Services
Adult Social Care,Eden Futures,15/04/2015,"9,410.45",Third Party
Adult Social Care,Eden Futures,10/04/2015,"5,377.40",Third Party
Planning & Economic Development,BUSINESS WATCH GUARDING LTD,14/04/2015,768.52,Supplies and Services
Planning & Economic Development,BUSINESS WATCH GUARDING LTD,14/04/2015,768.52,Supplies and Services
Adult Social Care,Liquid Personnel Ltd,10/04/2015,"3,014.27",Supplies and Services
Adult Social Care,Liquid Personnel Ltd,13/04/2015,"8,612.20",Supplies and Services
Adult Social Care,Eden Futures,15/04/2015,"5,377.40",Third Party
Adult Social Care,Eden Futures,10/04/2015,"5,377.40",Third Party
Adult Social Care,Eden Futures,10/04/2015,"5,377.40",Third Party
Adult Social Care,T HOLLINGWORTH,24/04/2015,"2,081.40",Supplies and Services
Adult Social Care,P R ACLAND,24/04/2015,"1,783.95",Supplies and Services
Adult Social Care,Richmond Fellowship,17/04/2015,"32,007.68",Third Party
Adult Social Care,Richmond Fellowship,17/04/2015,"16,003.84",Third Party
 Schools,SUNSHADE SERVICES LTD,08/04/2015,"2,919.00",Third Party
Adult Social Care,Alton Surgery,14/04/2015,611.00,Supplies and Services
Trading Service County Fleet Care,ALLSTAR BUSINESS SOLUTIONS LTD,08/04/2015,"6,267.86",Transport
 Schools,NEWCASTLE U LYME BOROUGH COUNC,08/04/2015,"1,035.30",Premises
 Schools,BOURNE ELECTRICAL CONTR LTD,09/04/2015,684.02,Premises
Adult Social Care,Jump 2 Independence Ltd,10/04/2015,743.72,Third Party
Adult Social Care,P J LIGHTFOOT & PARTNERS,14/04/2015,"1,653.49",Supplies and Services
 Schools,HARPER COLLINS PUBLISHERS LTD,08/04/2015,662.56,Supplies and Services
Adult Social Care,Audley Health Centre,14/04/2015,"1,476.00",Supplies and Services
Adult Social Care,Jump 2 Independence Ltd,10/04/2015,743.72,Third Party
 Schools,HANCHURCH ELECTRICAL SERVICES,08/04/2015,662.30,Premises
Adult Social Care,Audley Health Centre,14/04/2015,720.00,Supplies and Services
Adult Social Care,Audley Health Centre,14/04/2015,"1,520.16",Supplies and Services
Adult Social Care,GP MORGANS & PARTNERS,14/04/2015,"19,918.30",Supplies and Services
Adult Social Care,Heathcote Street Surgery,14/04/2015,600.00,Supplies and Services
Adult Social Care,Jump 2 Independence Ltd,10/04/2015,"1,001.70",Third Party
Other Education and Children's services,TOTAL SCHOOL SOLUTIONS LTD,08/04/2015,"166,090.71",Supplies and Services
Trading Service County Fleet Care,STAN ROBINSON (STAFFORD) LTD,08/04/2015,"1,000.00",Supplies and Services
Adult Social Care,Jump 2 Independence Ltd,10/04/2015,"1,001.70",Third Party
Adult Social Care,Park Medical Centre,14/04/2015,"1,179.00",Supplies and Services
Adult Social Care,University Medical Centre Keel,14/04/2015,"4,524.98",Supplies and Services
Adult Social Care,University Medical Centre Keel,14/04/2015,746.62,Supplies and Services
Adult Social Care,Talke Pits Clinic,17/04/2015,540.00,Supplies and Services
Adult Social Care,Dr Harbidge and Partners,17/04/2015,"1,289.80",Supplies and Services
Adult Social Care,Dr DO Yates' Practice,14/04/2015,550.12,Supplies and Services
Adult Social Care,Dr DO Yates' Practice,14/04/2015,720.31,Supplies and Services
Adult Social Care,Jump 2 Independence Ltd,10/04/2015,"1,041.14",Third Party
Adult Social Care,Dr DO Yates' Practice,14/04/2015,"1,294.77",Supplies and Services
Adult Social Care,Jump 2 Independence Ltd,10/04/2015,"1,041.14",Third Party
